Workbook

Sheet fixation on confirm_1 (hidden)
A1: =N5 -> dk;kZy; iz/kkukpk;Z jktdh; mPp ek/;fed fo|ky; 13 Mhvks,y Jhxaxkuxj
B2: dzekad | I2: fnukad
A3: dk;kZy; vkns'k
A4: Jheku la;qDr funs'kd ----------------------------------------------------- ds vkns'k Øekad%& --------------------------- fnukad%& ------------------------ dh vuqikyuk esa bl fo|ky; esa dk;Zjr fuEukafdr dkfeZd dk ofj"B v/;kid ds in ij dkWye 5 esa vafdr dk;Zxzg.k djus dh fnukad ls nks o"kZ dh ifjoh{kk/khu izf'k{k.kkFkhZ dh vof/k dks larks"kizn :i ls iw.kZ fd;s tkus ij jktLFkku flfoy lsok ¼iqujhf{kr osrueku½ fu;e 2017 ,oa foŸk foHkkx ds uksfVfQds'ku fnukad 30-10-2017 ds fcUnq la[;k 13¼2½ ds izko/kkukuqlkj dkWye 6 esa vafdr LFkk;hdj.k frfFk ,oa fu;fer osru Ja[kyk izkfIr fnukad ls fuEukuqlkj osru fu;ru fd;k tkrk gS &
L5: dk;kZy; uke fy[ksa | N5: dk;kZy; iz/kkukpk;Z jktdh; mPp ek/;fed fo|ky; 13 Mhvks,y Jhxaxkuxj
A6: dzl | B6: uke dkfeZd | C6: in | D6: tUe frfFk | E6: dk;Zxzg.k frfFk | F6: LFkk;hdj.k frfFk@a fu;fer osru Ja[kyk izkfIr frfFk | G6: LFkk;hdj.k i'pkr osru fu;ru | K6: vkxkeh osruo`f) frfFk | L6: tks dkfeZd iwoZ esa lsok esa ugha jgs gS lsok esa u, fu;qDr gq, gS oks bl 'khV dk iz;ksx djsa ;fn iwoZ esa lsok esa jgs gS rks fixation on confirm _in service sheet dke esa ysos | AU6: =YEAR(F9) -> 2020 | AV6: 7 | AW6: 1 | AX6: =MONTH(F9) -> 9
G7: fnukad | H7: is cS.M | I7: is ysoy | J7: ewy osru | L7: कॉलम 10 में कार्मिक की पे लेवल चुने | N7: कार्यालय मोहर के लिए | Q7: 9 | R7: प्रथम एसीपी | T7: Existing R.P.Band | U7: PB-1 5200-20200 | AD7: PB-2 9300-34800 | AH7: PB-3 15600-39100 | AP7: PB-4 37400-67000 | AU7: =YEAR(F10) -> 1900 | AV7: 7 | AW7: 1 | AX7: =MONTH(F10) -> 1
A8: 1 | B8: 2 | C8: 3 | D8: 4 | E8: 5 | F8: 6 | G8: 8 | H8: 9 | I8: 10 | J8: 11 | K8: 12 | AU8: 1900 | AV8: 7 | AW8: 1 | AX8: 1
A9: =IF(B9="","",1) -> 1 | B9: Lakhan lal | C9: Sr. Teacher | D9: 1991-12-23 | E9: 2018-09-27 | F9: 2020-09-27 | G9: =IF(F9="","",F9) -> 2020-09-27 | H9: =IFERROR(HLOOKUP($I9,Payband,2,0)&"-"&HLOOKUP($I9,Payband,3,0),"") -> 33800-106700 | I9: L_10 | J9: =IFERROR(IF(B9="","",HLOOKUP($I9,Payband,2,0)),"") -> 33800 | K9: =IFERROR(IF(F9="","",IF(F9<DATE(AU6,AV6,AW6),DATE(AU6,AV6,AW6),DATE((AU6)+1,AV6,AW6))),"") -> 2021-07-01 | L9: white सेल में सूचना भरें | N9: iz/kkukpk;Z | Q9: 10 | R9: प्रथम एसीपी | T9: Exist.G.P. | U9: 1700 | V9: 1750 | W9: 1900 | X9: 2000 | Y9: 2400 | Z9: 2400 | AA9: 2400 | AB9: 2800 | AC9: 2800 | AD9: 3600 | AE9: 4200 | AF9: 4800 | AG9: 5400 | AH9: 5400 | AI9: 6000 | AJ9: 6600 | AK9: 6800 | AL9: 7200 | AM9: 7600 | AN9: 8200 | AO9: 8700 | AP9: 8900 | AQ9: 9500 | AR9: 10000 | AU9: 1900 | AV9: 7 | AW9: 1 | AX9: 1
A10: =IF(B10="","",MAX($A$9:A9)+1) ->  | G10: =IF(F10="","",F10) ->  | H10: =IFERROR(HLOOKUP($I10,Payband,2,0)&"-"&HLOOKUP($I10,Payband,3,0),"") ->  | J10: =IFERROR(IF(B10="","",HLOOKUP($I10,Payband,2,0)),"") ->  | K10: =IFERROR(IF(F10="","",IF(F10<DATE(AU7,AV7,AW7),DATE(AU7,AV7,AW7),DATE((AU7)+1,AV7,AW7))),"") ->  | N10: jktdh; mPp ek/;fed fo|ky; | Q10: 18 | R10: द्वितीय एसीपी | T10: Exist.G.P.No | U10: 2 | V10: 3 | W10: 4 | X10: 5 | Y10: 9 | Z10: 9A | AA10: 9B | AB10: 10 | AC10: 10A | AD10: 11 | AE10: 12 | AF10: 14 | AG10: 15 | AH10: 15 | AI10: 16 | AJ10: 17 | AK10: 18 | AL10: 19 | AM10: 20 | AN10: 21 | AO10: 22 | AP10: 23 | AQ10: 23A | AR10: 24 | AU10: 1900 | AV10: 7 | AW10: 1 | AX10: 1
A11: =IF(B11="","",MAX($A$9:A10)+1) ->  | H11: =IFERROR(HLOOKUP($I11,Payband,2,0)&"-"&HLOOKUP($I11,Payband,3,0),"") ->  | J11: =IFERROR(IF(B11="","",HLOOKUP($I11,Payband,2,0)),"") ->  | N11: 13Mhvks,y Jhxaxkuxj | Q11: 20 | R11: द्वितीय एसीपी | T11: Levels → | U11: L_1 | V11: L_2 | W11: L_3 | X11: L_4 | Y11: L_5 | Z11: L_6 | AA11: L_7 | AB11: L_8 | AC11: L_9 | AD11: L_10 | AE11: L_11 | AF11: L_12 | AG11: L_13 | AH11: L_14 | AI11: L_15 | AJ11: L_16 | AK11: L_17 | AL11: L_18 | AM11: L_19 | AN11: L_20 | AO11: L_21 | AP11: L_22 | AQ11: L_23 | AR11: L_24 | AU11: 1900 | AV11: 7 | AW11: 1 | AX11: 1
A12: =IF(B12="","",MAX($A$9:A11)+1) ->  | H12: =IFERROR(HLOOKUP($I12,Payband,2,0)&"-"&HLOOKUP($I12,Payband,3,0),"") ->  | J12: =IFERROR(IF(B12="","",HLOOKUP($I12,Payband,2,0)),"") ->  | Q12: 27 | R12: तृतीय एसीपी | T12: 1 | U12: 17700 | V12: 17900 | W12: 18200 | X12: 19200 | Y12: 20800 | Z12: 21500 | AA12: 22400 | AB12: 26300 | AC12: 28700 | AD12: 33800 | AE12: 37800 | AF12: 44300 | AG12: 53100 | AH12: 56100 | AI12: 60700 | AJ12: 67300 | AK12: 71000 | AL12: 75300 | AM12: 79900 | AN12: 88900 | AO12: 123100 | AP12: 129700 | AQ12: 145800 | AR12: 148800 | AU12: 1900 | AV12: 7 | AW12: 1 | AX12: 1
A13: =IF(B13="","",MAX($A$9:A12)+1) ->  | H13: =IFERROR(HLOOKUP($I13,Payband,2,0)&"-"&HLOOKUP($I13,Payband,3,0),"") ->  | J13: =IFERROR(IF(B13="","",HLOOKUP($I13,Payband,2,0)),"") ->  | Q13: 30 | R13: तृतीय एसीपी | T13: 2 | U13: 18200 | V13: 18400 | W13: 18700 | X13: 19800 | Y13: 21400 | Z13: 22100 | AA13: 23100 | AB13: 27100 | AC13: 29600 | AD13: 34800 | AE13: 38900 | AF13: 45600 | AG13: 54700 | AH13: 57800 | AI13: 62500 | AJ13: 69300 | AK13: 73100 | AL13: 77600 | AM13: 82300 | AN13: 91600 | AO13: 126800 | AP13: 133600 | AQ13: 150200 | AR13: 153300 | AU13: 1900 | AV13: 7 | AW13: 1 | AX13: 1
T14: 3 | U14: 18700 | V14: 19000 | W14: 19300 | X14: 20400 | Y14: =MROUND(Y13*103%,100) -> 22000 | Z14: =MROUND(Z13*103%,100) -> 22800 | AA14: 23800 | AB14: =MROUND(AB13*103%,100) -> 27900 | AC14: =MROUND(AC13*103%,100) -> 30500 | AD14: 35800 | AE14: 40100 | AF14: 47000 | AG14: 56300 | AH14: 59500 | AI14: 64400 | AJ14: 71400 | AK14: 75300 | AL14: 79900 | AM14: 84800 | AN14: 94300 | AO14: 130600 | AP14: 137600 | AQ14: 154700 | AR14: 157900
H15: =N9 -> iz/kkukpk;Z | T15: 4 | U15: 19300 | V15: 19600 | W15: 19900 | X15: 21000 | Y15: 22700 | Z15: 23500 | AA15: 24500 | AB15: 28700 | AC15: 31400 | AD15: 36900 | AE15: 41300 | AF15: 48400 | AG15: 58000 | AH15: 61300 | AI15: 66300 | AJ15: 73500 | AK15: 77600 | AL15: 82300 | AM15: 87300 | AN15: 97100 | AO15: 134500 | AP15: 141700 | AQ15: 159300 | AR15: 162600
H16: =N10 -> jktdh; mPp ek/;fed fo|ky; | T16: 5 | U16: 19900 | V16: 20200 | W16: 20500 | X16: 21600 | Y16: 23400 | Z16: 24200 | AA16: 25200 | AB16: 29600 | AC16: 32300 | AD16: 38000 | AE16: 42500 | AF16: 49900 | AG16: 59700 | AH16: 63100 | AI16: 68300 | AJ16: 75700 | AK16: 79900 | AL16: 84800 | AM16: 89900 | AN16: 100000 | AO16: 138500 | AP16: 146000 | AQ16: 164100 | AR16: 167500
H17: =N11 -> 13Mhvks,y Jhxaxkuxj | T17: 6 | U17: 20500 | V17: 20800 | W17: 21100 | X17: 22200 | Y17: 24100 | Z17: 24900 | AA17: 26000 | AB17: 30500 | AC17: 33300 | AD17: 39100 | AE17: 43800 | AF17: 51400 | AG17: 61500 | AH17: 65000 | AI17: 70300 | AJ17: 78000 | AK17: 82300 | AL17: 87300 | AM17: 92600 | AN17: 103000 | AO17: 142700 | AP17: 150400 | AQ17: 169000 | AR17: 172500
A18: Øekad%& | I18: fnukad%& | T18: 7 | U18: 21100 | V18: 21400 | W18: 21700 | X18: 22900 | Y18: 24800 | Z18: 25600 | AA18: 26800 | AB18: 31400 | AC18: 34300 | AD18: 40300 | AE18: 45100 | AF18: 52900 | AG18: 63300 | AH18: 67000 | AI18: 72400 | AJ18: 80300 | AK18: 84800 | AL18: 89900 | AM18: 95400 | AN18: 106100 | AO18: 147000 | AP18: 154900 | AQ18: 174100 | AR18: 177700
A19: Ikzfrfyih %& | T19: 8 | U19: 21700 | V19: 22000 | W19: 22400 | X19: 23600 | Y19: 25500 | Z19: 26400 | AA19: 27600 | AB19: 32300 | AC19: 35300 | AD19: 41500 | AE19: 46500 | AF19: 54500 | AG19: 65200 | AH19: 69000 | AI19: 74600 | AJ19: 82700 | AK19: 87300 | AL19: 92600 | AM19: 98300 | AN19: 109300 | AO19: 151400 | AP19: 159500 | AQ19: 179300 | AR19: 183000
A20: 1- Jheku la;qDr funs'kd ---------------- | T20: 9 | U20: 22400 | V20: 22700 | W20: 23100 | X20: 24300 | Y20: 26300 | Z20: 27200 | AA20: 28400 | AB20: 33300 | AC20: 36400 | AD20: 42700 | AE20: 47900 | AF20: 56100 | AG20: 67200 | AH20: 71100 | AI20: 76800 | AJ20: 85200 | AK20: 89900 | AL20: 95400 | AM20: 101200 | AN20: 112600 | AO20: 155900 | AP20: 164300 | AQ20: 184700 | AR20: 188500
A21: 2- Jheku~ midks"kkf/kdkjh egksn;----------- | T21: 10 | U21: 23100 | V21: 23400 | W21: 23800 | X21: 25000 | Y21: 27100 | Z21: 28000 | AA21: 29300 | AB21: 34300 | AC21: 37500 | AD21: 44000 | AE21: 49300 | AF21: 57800 | AG21: 69200 | AH21: 73200 | AI21: 79100 | AJ21: 87800 | AK21: 92600 | AL21: 98300 | AM21: 104200 | AN21: 116000 | AO21: 160600 | AP21: 169200 | AQ21: 190200 | AR21: 194200
A22: 3- lacaf/kr dkfeZd Jh ------------------------ | T22: 11 | U22: 23800 | V22: 24100 | W22: 24500 | X22: 25800 | Y22: 27900 | Z22: 28800 | AA22: 30200 | AB22: 35300 | AC22: 38600 | AD22: 45300 | AE22: 50800 | AF22: 59500 | AG22: 71300 | AH22: 75400 | AI22: 81500 | AJ22: 90400 | AK22: 95400 | AL22: 101200 | AM22: 107300 | AN22: 119500 | AO22: 165400 | AP22: 174300 | AQ22: 195900 | AR22: 200000
A23: 4- futh iaftdk lacaf/kr Jh ---------------------- | T23: 12 | U23: 24500 | V23: 24800 | W23: 25200 | X23: 26600 | Y23: 28700 | Z23: 29700 | AA23: 31100 | AB23: 36400 | AC23: 39800 | AD23: 46700 | AE23: 52300 | AF23: 61300 | AG23: 73400 | AH23: 77700 | AI23: 83900 | AJ23: 93100 | AK23: 98300 | AL23: 104200 | AM23: 110500 | AN23: 123100 | AO23: 170400 | AP23: 179500 | AQ23: 201800 | AR23: 206000
A24: 5- ys[kk 'kk[kk dk;kZy; gktk A | T24: 13 | U24: 25200 | V24: 25500 | W24: 26000 | X24: 27400 | Y24: 29600 | Z24: 30600 | AA24: 32000 | AB24: 37500 | AC24: 41000 | AD24: 48100 | AE24: 53900 | AF24: 63100 | AG24: 75600 | AH24: 80000 | AI24: 86400 | AJ24: 95900 | AK24: 101200 | AL24: 107300 | AM24: 113800 | AN24: 126800 | AO24: 175500 | AP24: 184900 | AQ24: 207900 | AR24: 212200
A25: 6-jf{kr iaftdk A | H25: =N9 -> iz/kkukpk;Z | T25: 14 | U25: 26000 | V25: 26300 | W25: 26800 | X25: 28200 | Y25: 30500 | Z25: 31500 | AA25: 33000 | AB25: 38600 | AC25: 42200 | AD25: 49500 | AE25: 55500 | AF25: 65000 | AG25: 77900 | AH25: 82400 | AI25: 89000 | AJ25: 98800 | AK25: 104200 | AL25: 110500 | AM25: 117200 | AN25: 130600 | AO25: 180800 | AP25: 190400 | AQ25: 214100 | AR25: 218600
H26: =N10 -> jktdh; mPp ek/;fed fo|ky; | T26: 15 | U26: 26800 | V26: 27100 | W26: 27600 | X26: 29000 | Y26: 31400 | Z26: 32400 | AA26: 34000 | AB26: 39800 | AC26: 43500 | AD26: 51000 | AE26: 57200 | AF26: 67000 | AG26: 80200 | AH26: 84900 | AI26: 91700 | AJ26: 101800 | AK26: 107300 | AL26: 113800 | AM26: 120700 | AN26: 134500 | AO26: 186200 | AP26: 196100
H27: =N11 -> 13Mhvks,y Jhxaxkuxj | T27: 16 | U27: 27600 | V27: 27900 | W27: 28400 | X27: 29900 | Y27: 32300 | Z27: 33400 | AA27: 35000 | AB27: 41000 | AC27: 44800 | AD27: 52500 | AE27: 58900 | AF27: 69000 | AG27: 82600 | AH27: 87400 | AI27: 94500 | AJ27: 104900 | AK27: 110500 | AL27: 117200 | AM27: 124300 | AN27: 138500 | AO27: 191800 | AP27: 202000
A28: Disclaimer: - All care has been taken to keep the information upto date and correct and is for educational purpose only. You are encouraged to consult your Accountant or Advisor before taking any decesion based on this calculator | T28: 17 | U28: 28400 | V28: 28700 | W28: 29300 | X28: 30800 | Y28: 33300 | Z28: 34400 | AA28: 36100 | AB28: 42200 | AC28: 46100 | AD28: 54100 | AE28: 60700 | AF28: 71100 | AG28: 85100 | AH28: 90000 | AI28: 97300 | AJ28: 108000 | AK28: 113800 | AL28: 120700 | AM28: 128000 | AN28: 142700 | AO28: 197600 | AP28: 208100
H29: Programmed by | T29: 18 | U29: 29300 | V29: 29600 | W29: 30200 | X29: 31700 | Y29: 34300 | Z29: 35400 | AA29: 37200 | AB29: 43500 | AC29: 47500 | AD29: 55700 | AE29: 62500 | AF29: 73200 | AG29: 87700 | AH29: 92700 | AI29: 100200 | AJ29: 111200 | AK29: 117200 | AL29: 124300 | AM29: 131800 | AN29: 147000 | AO29: 203500
B30: सुधार हेतु सुझाव आमंत्रित है | T30: 19 | U30: 30200 | V30: 30500 | W30: 31100 | X30: 32700 | Y30: 35300 | Z30: 36500 | AA30: 38300 | AB30: 44800 | AC30: 48900 | AD30: 57400 | AE30: 64400 | AF30: 75400 | AG30: 90300 | AH30: 95500 | AI30: 103200 | AJ30: 114500 | AK30: 120700 | AL30: 128000 | AM30: 135800 | AN30: 151400
T31: 20 | U31: 31100 | V31: 31400 | W31: 32000 | X31: 33700 | Y31: 36400 | Z31: 37600 | AA31: 39400 | AB31: 46100 | AC31: 50400 | AD31: 59100 | AE31: 66300 | AF31: 77700 | AG31: 93000 | AH31: 98400 | AI31: 106300 | AJ31: 117900 | AK31: 124300 | AL31: 131800 | AM31: 139900 | AN31: 155900
T32: 21 | U32: 32000 | V32: 32300 | W32: 33000 | X32: 34700 | Y32: 37500 | Z32: 38700 | AA32: 40600 | AB32: 47500 | AC32: 51900 | AD32: 60900 | AE32: 68300 | AF32: 80000 | AG32: 95800 | AH32: 101400 | AI32: 109500 | AJ32: 121400 | AK32: 128000 | AL32: 135800 | AM32: 144100 | AN32: 160600
T33: 22 | U33: 33000 | V33: 33300 | W33: 34000 | X33: 35700 | Y33: 38600 | Z33: 39900 | AA33: 41800 | AB33: 48900 | AC33: 53500 | AD33: 62700 | AE33: 70300 | AF33: 82400 | AG33: 98700 | AH33: 104400 | AI33: 112800 | AJ33: 125000 | AK33: 131800 | AL33: 139900 | AM33: 148400 | AN33: 165400
T34: 23 | U34: 34000 | V34: 34300 | W34: 35000 | X34: 36800 | Y34: 39800 | Z34: 41100 | AA34: 43100 | AB34: 50400 | AC34: 55100 | AD34: 64600 | AE34: 72400 | AF34: 84900 | AG34: 101700 | AH34: 107500 | AI34: 116200 | AJ34: 128800 | AK34: 135800 | AL34: 144100 | AM34: 152900 | AN34: 170400
D35: joshihansraj72@gmail.com | T35: 24 | U35: 35000 | V35: 35300 | W35: 36100 | X35: 37900 | Y35: 41000 | Z35: 42300 | AA35: 44400 | AB35: 51900 | AC35: 56800 | AD35: 66500 | AE35: 74600 | AF35: 87400 | AG35: 104800 | AH35: 110700 | AI35: 119700 | AJ35: 132700 | AK35: 139900 | AL35: 148400 | AM35: 157500 | AN35: 175500
T36: 25 | U36: 36100 | V36: 36400 | W36: 37200 | X36: 39000 | Y36: 42200 | Z36: 43600 | AA36: 45700 | AB36: 53500 | AC36: 58500 | AD36: 68500 | AE36: 76800 | AF36: 90000 | AG36: 107900 | AH36: 114000 | AI36: 123300 | AJ36: 136700 | AK36: 144100 | AL36: 152900 | AM36: 162200 | AN36: 180800
T37: 26 | U37: 37200 | V37: 37500 | W37: 38300 | X37: 40200 | Y37: 43500 | Z37: 44900 | AA37: 47100 | AB37: 55100 | AC37: 60300 | AD37: 70600 | AE37: 79100 | AF37: 92700 | AG37: 111100 | AH37: 117400 | AI37: 127000 | AJ37: 140800 | AK37: 148400 | AL37: 157500 | AM37: 167100 | AN37: 186200
T38: 27 | U38: 38300 | V38: 38600 | W38: 39400 | X38: 41400 | Y38: 44800 | Z38: 46200 | AA38: 48500 | AB38: 56800 | AC38: 62100 | AD38: 72700 | AE38: 81500 | AF38: 95500 | AG38: 114400 | AH38: 120900 | AI38: 130800 | AJ38: 145000 | AK38: 152900 | AL38: 162200 | AM38: 172100 | AN38: 191800
T39: 28 | U39: 39400 | V39: 39800 | W39: 40600 | X39: 42600 | Y39: 46100 | Z39: 47600 | AA39: 50000 | AB39: 58500 | AC39: 64000 | AD39: 74900 | AE39: 83900 | AF39: 98400 | AG39: 117800 | AH39: 124500 | AI39: 134700 | AJ39: 149400 | AK39: 157500 | AL39: 167100 | AM39: 177300 | AN39: 197600
T40: 29 | U40: 40600 | V40: 41000 | W40: 41800 | X40: 43900 | Y40: 47500 | Z40: 49000 | AA40: 51500 | AB40: 60300 | AC40: 65900 | AD40: 77100 | AE40: 86400 | AF40: 101400 | AG40: 121300 | AH40: 128200 | AI40: 138700 | AJ40: 153900 | AK40: 162200 | AL40: 172100 | AM40: 182600 | AN40: 203500
T41: 30 | U41: 41800 | V41: 42200 | W41: 43100 | X41: 45200 | Y41: 48900 | Z41: 50500 | AA41: 53000 | AB41: 62100 | AC41: 67900 | AD41: 79400 | AE41: 89000 | AF41: 104400 | AG41: 124900 | AH41: 132000 | AI41: 142900 | AJ41: 158500 | AK41: 167100 | AL41: 177300 | AM41: 188100
T42: 31 | U42: 43100 | V42: 43500 | W42: 44400 | X42: 46600 | Y42: 50400 | Z42: 52000 | AA42: 54600 | AB42: 64000 | AC42: 69900 | AD42: 81800 | AE42: 91700 | AF42: 107500 | AG42: 128600 | AH42: 136000 | AI42: 147200 | AJ42: 163300 | AK42: 172100 | AL42: 182600 | AM42: 193700
T43: 32 | U43: 44400 | V43: 44800 | W43: 45700 | X43: 48000 | Y43: 51900 | Z43: 53600 | AA43: 56200 | AB43: 65900 | AC43: 72000 | AD43: 84300 | AE43: 94500 | AF43: 110700 | AG43: 132500 | AH43: 140100 | AI43: 151600 | AJ43: 168200 | AK43: 177300 | AL43: 188100 | AM43: 199500
T44: 33 | U44: 45700 | V44: 46100 | W44: 47100 | X44: 49400 | Y44: 53500 | Z44: 55200 | AA44: 57900 | AB44: 67900 | AC44: 74200 | AD44: 86800 | AE44: 97300 | AF44: 114000 | AG44: 136500 | AH44: 144300 | AI44: 156100 | AJ44: 173200 | AK44: 182600 | AL44: 193700
T45: 34 | U45: 47100 | V45: 47500 | W45: 48500 | X45: 50900 | Y45: 55100 | Z45: 56900 | AA45: 59600 | AB45: 69900 | AC45: 76400 | AD45: 89400 | AE45: 100200 | AF45: 117400 | AG45: 140600 | AH45: 148600 | AI45: 160800 | AJ45: 178400 | AK45: 188100 | AL45: 199500
T46: 35 | U46: 48500 | V46: 48900 | W46: 50000 | X46: 52400 | Y46: 56800 | Z46: 58600 | AA46: 61400 | AB46: 72000 | AC46: 78700 | AD46: 92100 | AE46: 103200 | AF46: 120900 | AG46: 144800 | AH46: 153100 | AI46: 165600 | AJ46: 183800 | AK46: 193700
T47: 36 | U47: 50000 | V47: 50400 | W47: 51500 | X47: 54000 | Y47: 58500 | Z47: 60400 | AA47: 63200 | AB47: 74200 | AC47: 81100 | AD47: 94900 | AE47: 106300 | AF47: 124500 | AG47: 149100 | AH47: 157700 | AI47: 170600 | AJ47: 189300 | AK47: 199500
T48: 37 | U48: 51500 | V48: 51900 | W48: 53000 | X48: 55600 | Y48: 60300 | Z48: 62200 | AA48: 65100 | AB48: 76400 | AC48: 83500 | AD48: 97700 | AE48: 109500 | AF48: 128200 | AG48: 153600 | AH48: 162400 | AI48: 175700 | AJ48: 195000
T49: 38 | U49: 53000 | V49: 53500 | W49: 54600 | X49: 57300 | Y49: 62100 | Z49: 64100 | AA49: 67100 | AB49: 78700 | AC49: 86000 | AD49: 100600 | AE49: 112800 | AF49: 132000 | AG49: 158200 | AH49: 167300 | AI49: 181000
T50: 39 | U50: 54600 | V50: 55100 | W50: 56200 | X50: 59000 | Y50: 64000 | Z50: 66000 | AA50: 69100 | AB50: 81100 | AC50: 88600 | AD50: 103600 | AE50: 116200 | AF50: 136000 | AG50: 162900 | AH50: 172300 | AI50: 186400
T51: 40 | U51: 56200 | V51: 56800 | W51: 57900 | X51: 60800 | Y51: 65900 | Z51: 68000 | AA51: 71200 | AB51: 83500 | AC51: 91300 | AD51: 106700 | AE51: 119700 | AF51: 140100 | AG51: 167800 | AH51: 177500 | AI51: 192000

Sheet INTRO
B2: ALL-IN-ONE PAY FIXATION AND ARREAR CALCULATION EXCEL UTILITY 2020
B3: HOW TO USE
C4: राजस्थान राज्य कर्मचारियों के लिए PAY FIXATION AND ARREAR बाबत इस UTILITY का प्रयोग किया जा सकता है । FILE को SAVE करने के लिए अपनी सुविधा से नाम देकर SAVE AS से Excel Macro- Enable Workbook के रूप में Save करें। file को open करते समय Enable Macro करें।यह excel utility केवल मात्र राज्य कार्मिको के PAY FIXATION AND ARREAR के लिए सहायतार्थ तैयार की गई है ।यद्यपि इसे तैयार करने में पूर्ण सावधानी बरती गई है फिर भी किसी भूल चूक के लिए तैयार कर्ता उत्तरदायी नहीं है । किसी भी गणना के लिए त्रुटि पाए जाने पर आयकर विभाग के नियम मान्य होंगे किसी प्रकार की तकनीकी कमी पाए जाने पर नीचे दिये गए EMAIL द्वारा अवगत कराने का श्रम करावे।(PLEASE USE LATEST VERSION OF THAT IS OFFICE 2010 AND ABOVE FOR BEST RESULT)
B5: 1. First Enable Macro whenever open file
B6: 1. MASTER :- | C6: MASTER SHEET में कार्मिक के वेतन निर्धारण संबन्धित सूचनाएँ जैसे नाम, पदनाम, वेतन नियतन का प्रकार ,वेतन नियतन दिनांक संबन्धित ,आदेश क्रमांक इत्यादि भरें
B7: 2. DATA ENTRY SHEET | C7: DATA ENTRY SHEET में जितने माह का ARREAR देय है के माह नाम और मास्टर शीट और ORDER SHEET मे भरे डाटा अनुसार BASIC PAY ऑटोमैटिक शो होगी।यदि बेसिक मे किसी माह मे बदलाव अपेक्षित है तो EDIT BASIC PAY कॉलम मे संबन्धित माह के सम्मुख भरे। वार्षिक वेतन वृद्धि ऑटोमैटिक लग जाएगी। इस शीट मे CHECK & EDIT की सुविधा दी गई है।यदि आप NPS EMPLOYEE है तो इसी शीट मे ड्रॉपडाउन से चयन करे। DA और HRA की दर आपको संबन्धित माह के सामने लिखनी है।
B8: 3. ORDER sheet | C8: ORDER की भाषा MASTER शीट मे आप द्वारा चयन किए गए वेतन नियतन के प्रकार के आधार पर डाइनैमिक ऑटोमैटिक तैयार होगा।बाकी स्थायीकरण/एसीपी/पदोन्नति के लिए काम मे लेने के HELPING POINTS शीट मे दिये गए है
B9: 4. ARREAR SHEET | C9: ARREAR शीट मे NPS की DEDUCTION ऑटोमैटिक होगी बाकी आवश्यकतानुसार MANUALLY भरनी होगी। अनावश्यक ROW और कॉलम को HIDE करके प्रिंट निकाल सकते है।
B11: Disclaimer: - | C11: All care has been taken to keep the information upto date and correct and is for educational purpose only. You are encouraged to consult your Accountant or Advisor before taking any decesion based on this calculator
C13: सुधार हेतु सुझाव आमंत्रित है
C19: joshihansraj72@gmail.com
B22: FEATURES | C22: 1. नोशनल लाभ FIXATION और AREEAR CALCULATION सुविधा (NEW FEATURE)
C23: 2 AREEAR CALCULATION SHEET मे प्रिंट हेतु अनचाहे ROWS और COLUMN को ऑटोमैटिक HIDE, UNHIDE की सुविधा (NEW FEATURE)
C24: 3 स्थाईकरण,एसीपी,पदोन्नति और नोशनल फ़िक्सेशन की स्थिति मे एक ही प्रोग्राम से कार्यालय आदेश और ARREAR CALCULATION SHEET मे AUTO SWITCH सुविधा
C25: 4 ARREAR SHEET मे प्रारम्भिक माह मे महीने के दिनों की संख्या के अनुसार ऑटोमैटिक वेतन गणना
B27: UPDATE 02-02-2021 | C27: RECTIFIED ERROR -INCOME TAX COLUMN'S AMOUNT WAS NOT ADDING IN TOTAL DEDUCTION HAS BEEN RECTIFIED.
B28: UPDATE 21-04-2021 | C28: UPGRADED PROGRAM FROM JAN 2017 TO DEC 2021 USEABLE FOR 5 YEARS ARREAR SHEET

Sheet MASTER
B2: कार्यालय | C2: प्रधानाचार्य राजकीय उच्च माध्यमिक विद्यालय 13डीओएल श्री गंगानगर
N3: पदनाम | O3: CONFIRMATION | T3: CADER
N4: PRINCIPAL | O4: ACP | T4: State Service
N5: HEADMASTER | O5: PROMOTION | T5: Subordinate
C6: NAME EMPLOYEE | D6: RAMCHANDER SWAMI | F6: POST | G6: HEADMASTER | H6: CADER | I6: State Service | N6: LECTURER | O6: NOTIONAL | T6: Ministrial
H7: Pay Leval | I7: L_9 | N7: SR.TEACHER | T7: Class IV
C8: पदस्थापन स्थान | D8: GSSS 13DOL | F8: Emp ID | G8: RJGA99999999999 | N8: TEACHER
N9: PRABODHAK
C10: वास्तविक कार्यग्रहण तिथि | D10: 2013-09-11 | F10: =IF($D$12="","Fill reason of fixation above","वेतन नियतन"&" ("&$D$12&")"&"से पूर्व पे -लेवल ") -> वेतन नियतन (CONFIRMATION )से पूर्व पे -लेवल | G10: =IF($D$12="","Fill reason of fixation above","वेतन नियतन"&" ("&$D$12&")"&"दिनांक") -> वेतन नियतन (CONFIRMATION )दिनांक | H10: वेतन नियतन (CONFIRMATION )दिनांक | I10: L_11 | N10: PTI
D11: FIXATION के कारण का चयन करे | N11: LIBRARIAN
C12: वेतन नियतन का कारण | D12: CONFIRMATION | F12: =IF($D$12="","Fill reason of fixation above","वेतन नियतन"&" ("&$D$12&")"&"से पूर्व वेतन ") -> वेतन नियतन (CONFIRMATION )से पूर्व वेतन | G12: वेतन नियतन (CONFIRMATION )दिनांक | H12: वेतन नियतन (CONFIRMATION )दिनांक | I12: 46500 | N12: SENIOR ASSISTANT
N13: JUNIOR ASSISTANT
C14: =IF(D12="NOTIONAL","वास्तविक स्थाईकरण तिथि",IF($D$12="","Fill reason of fixation above","वेतन नियतन"&" ("&$D$12&")"&"दिनांक")) -> वेतन नियतन (CONFIRMATION )दिनांक | D14: 2017-01-01 | F14: =IF($D$12="","Fill reason of fixation above","वेतन नियतन"&" ("&$D$12&")"&"से पूर्व वेतन का प्रकार") -> वेतन नियतन (CONFIRMATION )से पूर्व वेतन का प्रकार | G14: वेतन नियतन (CONFIRMATION )दिनांक | H14: वेतन नियतन (CONFIRMATION )दिनांक | I14: Regular
C16: यदि एसीपी पर वेतन नियतन किया जा रहा है तो,एसीपी का प्रकार | F16: NA
C18: स्थाईकरण /एसीपी/पदोन्नति आदेश संबन्धित विवरण
C20: आदेशकर्ता अधिकारी | D20: श्रीमान संयुक्त निदेशक
C22: आदेशकर्ता कार्यालय | D22: संयुक्त निदेशक स्कूल शिक्षा ,बीकानेर संभाग,बीकानेर
C24: आदेश क्रमांक | D24: सनि/स्कू.शि. /2020/स्थायीकरण/1632 दिनांक 15.10.2020
C27: पदोन्नति पर कार्यालय आदेश हेतु विवरण | M27: कार्यालय मोहर के लिए
C29: पदोन्नति से पूर्व पद | D29: SR.TEACHER | F29: पदोन्नति पश्चात पद | H29: LECTURER | M29: प्रधानाचार्य
M30: राजकीय उच्च माध्यमिक विद्यालय
C31: नोशनल लाभ संबन्धित विवरण | M31: 13डीओएल श्रीगंगानगर
C33: माननीय न्यायालय के निर्णयानुसार नोशनल परिलाभ हेतु निर्धारित तिथि | E33: 2012-11-30 | G33: ORDER SHEET में वास्तविक लाभ देय तिथि को वेतन EDIT करना चाहते है तो नीचे YES चयन कर पे लेवल व वेतन का चयन करे
G34: NO | H34: पे लेवल | I34: वेतन
C35: माननीय न्यायालय के निर्णयानुसार नोशनल परिलाभ हेतु स्थाईकरण तिथि | E35: 2014-11-30 | H35: L_13 | I35: 54700

Sheet ORDER
B2: =MASTER!B2&" "&MASTER!C2 -> कार्यालय प्रधानाचार्य राजकीय उच्च माध्यमिक विद्यालय 13डीओएल श्री गंगानगर
C3: dzekad | L3: fnukad
B4: dk;kZy; vkns'k
B5: =MASTER!D20&" "&MASTER!D22&" के "&MASTER!C24&" "&MASTER!D24&" "&" की अनुपालना में" -> श्रीमान संयुक्त निदेशक संयुक्त निदेशक स्कूल शिक्षा ,बीकानेर संभाग,बीकानेर के आदेश क्रमांक सनि/स्कू.शि. /2020/स्थायीकरण/1632 दिनांक 15.10.2020 की अनुपालना में
B6: =IF(MASTER!D12="CONFIRMATION ",control!K2,IF(MASTER!D12="ACP ",control!Y3,IF(MASTER!D12="PROMOTION ",control!Y7,IF(MASTER!D12="NOTIONAL",control!AA3,"")))) -> इस विद्यालय में कार्यरत निम्नांकित कार्मिक का कॉलम 3 में अंकित पद पर कॉलम 5 में अंकित कार्यग्रहण करने की दिनांक से दो वर्ष की परिवीक्षाधीन प्रशिक्षणार्थी की अवधि को संतोषप्रद रूप से पूर्ण किये जाने पर राजस्थान सिविल सेवा (पुनरीक्षित वेतनमान) नियम 2017 एवं वित्त विभाग के नोटिफिकेशन दिनांक 30.10.2017 के बिन्दु संख्या 13(2) के प्रावधानानुसार कॉलम 6 में अंकित स्थायीकरण तिथि एवं नियमित वेतन श्रंखला प्राप्ति दिनांक से निम्नानुसार वेतन नियतन किया जाता है- | BB6: =TODAY() -> 2021-04-21 | BC6: DATE | BD6: =YEAR(BB6) -> 2021 | BE6: 7 | BF6: 1
B7: =IF(MASTER!D12="ACP ","PAY FIXATION AFTER"&" "&MASTER!D12&"("&MASTER!F16&")","PAY FIXATION AFTER"&" "&MASTER!D12) -> PAY FIXATION AFTER CONFIRMATION
B8: dzl | C8: नाम कार्मिक | D8: पद | E8: पदस्थापन स्थान | F8: =IF(MASTER!$D$12="NOTIONAL","नोशनल लाभ तिथि","कार्यग्रहण तिथि") -> कार्यग्रहण तिथि | G8: =IFERROR(IF(MASTER!$D$12="CONFIRMATION ","स्थायीकरण तिथि/ नियमित वेतन श्रंखला प्राप्ति तिथि",IF(MASTER!$D$12="ACP ","एसीपी प्राप्ति तिथि ",IF(MASTER!$D$12="PROMOTION ","पदौनती प्राप्ति तिथि",IF(MASTER!$D$12="NOTIONAL","नोशनल स्थायीकरण तिथि/ नियमित वेतन श्रंखला प्राप्ति तिथि","मास्टर शीट से चयन करे")))),"") -> स्थायीकरण तिथि/ नियमित वेतन श्रंखला प्राप्ति तिथि | H8: =IF(MASTER!$D$12="CONFIRMATION ","स्थायीकरण दिनांक से पूर्व वेतन",IF(MASTER!$D$12="ACP ","एसीपी दिनांक से पूर्व वेतन",IF(MASTER!$D$12="PROMOTION ","पदौनती दिनांक से पूर्व वेतन",IF(MASTER!$D$12="NOTIONAL","नोशनल लाभ तिथि को देय वेतन","मास्टर शीट से चयन करे")))) -> स्थायीकरण दिनांक से पूर्व वेतन | J8: =IF(MASTER!$D$12="CONFIRMATION ","स्थायीकरण उपरांत वेतन नियतन",IF(MASTER!$D$12="ACP ","एसीपी उपरांत वेतन नियतन",IF(MASTER!$D$12="PROMOTION ","पदौनती उपरांत वेतन नियतन",IF(MASTER!$D$12="NOTIONAL","नोशनल स्थाईकरण उपरांत वेतन नियतन ","मास्टर शीट से चयन करे")))) -> स्थायीकरण उपरांत वेतन नियतन | L8: =IF(MASTER!$D$12="CONFIRMATION ","स्थायीकरण दिनांक से पूर्व वेतन",IF(MASTER!$D$12="ACP ","एसीपी दिनांक से पूर्व वेतन",IF(MASTER!$D$12="PROMOTION ","पदौनती दिनांक से पूर्व वेतन","मास्टर शीट से चयन करे"))) -> स्थायीकरण दिनांक से पूर्व वेतन | N8: आगामी वेतनवृद्धि | O8: विशेष विवरण | Q8: मास्टर शीट मे CONFIRMATION/ACP/PROMOTION का चयन करने पर आदेश ऑटोमैटिक GENERATE होगा | BB8: =YEAR(G11) -> 2017 | BC8: 7 | BD8: 1 | BE8: =MONTH(G11) -> 1
H9: पे लेवल | I9: मूल वेतन | J9: दिनांक | K9: पे बैण्ड | L9: पे लेवल | M9: मूल वेतन | S9: HELPING POINT | X9: 9 | Y9: प्रथम एसीपी | AA9: Existing R.P.Band | AB9: PB-1 5200-20200 | AK9: PB-2 9300-34800 | AO9: PB-3 15600-39100 | AW9: PB-4 37400-67000 | BB9: =YEAR(J12) -> 2017 | BC9: 7 | BD9: 1 | BE9: 1
B10: 1 | C10: 2 | D10: 3 | E10: 4 | F10: 5 | G10: 6 | H10: 7 | I10: 8 | J10: 9 | K10: 10 | L10: 11 | M10: 12 | N10: 13 | O10: 14 | S10: स्थाईकरण हेतु | BB10: =YEAR(J13) -> 2018 | BC10: 7 | BD10: 1 | BE10: 1
B11: =IF(C11="","",1) -> 1 | C11: ='DATA ENTRY'!E4 -> RAMCHANDER SWAMI | D11: ='DATA ENTRY'!E6 -> HEADMASTER | E11: =MASTER!D8 -> GSSS 13DOL | F11: =IF(MASTER!$D$12="NOTIONAL",MASTER!E33,IF(MASTER!D10="","Fill in Master",MASTER!D10)) -> 2013-09-11 | G11: =IF(MASTER!$D$12="NOTIONAL",MASTER!$E$35,IF(MASTER!D14="","Fill in Master",MASTER!D14)) -> 2017-01-01 | H11: =MASTER!I10 -> L_11 | I11: =MASTER!I12 -> 46500 | J11: =IF(G11="","",G11) -> 2017-01-01 | K11: =IFERROR(HLOOKUP($L11,Payband,2,0)&"-"&HLOOKUP($L11,Payband,3,0),"") -> 44300-140100 | L11: L_12 | M11: 48400 | N11: =IFERROR(IF(G11="","",IF(G11<DATE(BB8,BC8,BD8),DATE(BB8,BC8,BD8),DATE((BB8)+1,BC8,BD8))),"") -> 2017-07-01 | O11: =IF(MASTER!$D$12="NOTIONAL",IF(ORDER!J11<ORDER!$G$15,"नोशनल","वास्तविक"),"") ->  | S11: 1MASTER SHEET मे डाटा भरे | X11: 10 | Y11: प्रथम एसीपी | AA11: Exist.G.P. | AB11: 1700 | AC11: 1750 | AD11: 1900 | AE11: 2000 | AF11: 2400 | AG11: 2400 | AH11: 2400 | AI11: 2800 | AJ11: 2800 | AK11: 3600 | AL11: 4200 | AM11: 4800 | AN11: 5400 | AO11: 5400 | AP11: 6000 | AQ11: 6600 | AR11: 6800 | AS11: 7200 | AT11: 7600 | AU11: 8200 | AV11: 8700 | AW11: 8900 | AX11: 9500 | AY11: 10000 | BB11: =YEAR(G14) ->  | BC11: 7 | BD11: 1
B12: =IF(C12="","",MAX($B$11:B11)+1) ->  | J12: =IF(AND(J11<DATE($BD$6,$BE$6,$BF$6),N12="वार्षिक वेतनवृद्धि "),N11,"") -> 2017-07-01 | K12: =IFERROR(HLOOKUP($L12,Payband,2,0)&"-"&HLOOKUP($L12,Payband,3,0),"") -> 44300-140100 | L12: =IF(J12="","",IF(N12="वार्षिक वेतनवृद्धि ",L11,"-")) -> L_12 | M12: =IF(J12="","",IF(N12="वार्षिक वेतनवृद्धि ",MROUND(M11*103%,100),"")) -> 49900 | N12: वार्षिक वेतनवृद्धि | O12: =IF(MASTER!$D$12="NOTIONAL",IF(ORDER!J12<ORDER!$G$15,"नोशनल","वास्तविक"),"") ->  | Q12: आगामी वेतनवृद्धि | S12: 2. यदि आप FIX PAY प्राप्त कर रहे है तो कॉलम 11 मे आपके पद का PAY LEVAL और कॉलम 12 में न्यूनतम वेतन का चयन करे। | X12: 18 | Y12: द्वितीय एसीपी | AA12: Exist.G.P.No | AB12: 2 | AC12: 3 | AD12: 4 | AE12: 5 | AF12: 9 | AG12: 9A | AH12: 9B | AI12: 10 | AJ12: 10A | AK12: 11 | AL12: 12 | AM12: 14 | AN12: 15 | AO12: 15 | AP12: 16 | AQ12: 17 | AR12: 18 | AS12: 19 | AT12: 20 | AU12: 21 | AV12: 22 | AW12: 23 | AX12: 23A | AY12: 24 | BB12: =YEAR(G15) ->  | BC12: 7 | BD12: 1
B13: =IF(C13="","",MAX($B$11:B12)+1) ->  | F13: =IF(MASTER!$D$12="NOTIONAL","वास्तविक कार्यग्रहण /स्थाईकरण तिथि अनुसार लाभ ","") ->  | J13: =IF(AND(J12<DATE(BD6,BE6,BF6),N13="वार्षिक वेतनवृद्धि "),DATE(YEAR(J12)+1,7,1),"") -> 2018-07-01 | K13: =IFERROR(HLOOKUP($L13,Payband,2,0)&"-"&HLOOKUP($L13,Payband,3,0),"") -> 44300-140100 | L13: =IF(J13="","",IF(N13="वार्षिक वेतनवृद्धि ",L12,"-")) -> L_12 | M13: =IF(J13="","",IF(N13="वार्षिक वेतनवृद्धि ",MROUND(M12*103%,100),"")) -> 51400 | N13: वार्षिक वेतनवृद्धि | O13: =IF(MASTER!$D$12="NOTIONAL",IF(ORDER!J13<ORDER!$G$15,"नोशनल","वास्तविक"),"") ->  | X13: 20 | Y13: द्वितीय एसीपी | AA13: Levels → | AB13: L_1 | AC13: L_2 | AD13: L_3 | AE13: L_4 | AF13: L_5 | AG13: L_6 | AH13: L_7 | AI13: L_8 | AJ13: L_9 | AK13: L_10 | AL13: L_11 | AM13: L_12 | AN13: L_13 | AO13: L_14 | AP13: L_15 | AQ13: L_16 | AR13: L_17 | AS13: L_18 | AT13: L_19 | AU13: L_20 | AV13: L_21 | AW13: L_22 | AX13: L_23 | AY13: L_24 | BB13: =YEAR(G16) -> 1900 | BC13: 7 | BD13: 1 | BE13: 1
B14: =IF(C14="","",MAX($B$11:B13)+1) ->  | F14: =IF(MASTER!$D$12="NOTIONAL","कार्यग्रहण तिथि","") ->  | G14: =IF(MASTER!$D$12="NOTIONAL"," स्थाईकरण तिथि","") ->  | H14: =IF(MASTER!$D$12="NOTIONAL"," पे -लेवल","") ->  | I14: =IF(MASTER!$D$12="NOTIONAL","वेतन","") ->  | J14: =IF(AND(J13<DATE(BD6,BE6,BF6),N14="वार्षिक वेतनवृद्धि "),DATE(YEAR(J13)+1,7,1),"") -> 2019-07-01 | K14: =IFERROR(HLOOKUP($L14,Payband,2,0)&"-"&HLOOKUP($L14,Payband,3,0),"") -> 44300-140100 | L14: =IF(J14="","",IF(N14="वार्षिक वेतनवृद्धि ",L13,"-")) -> L_12 | M14: =IF(J14="","",IF(N14="वार्षिक वेतनवृद्धि ",MROUND(M13*103%,100),"")) -> 52900 | N14: वार्षिक वेतनवृद्धि | O14: =IF(MASTER!$D$12="NOTIONAL",IF(ORDER!J14<ORDER!$G$15,"नोशनल","वास्तविक"),"") ->  | S14: 2. यदि आप पुराने पद का वेतन प्राप्त कर रहे है तो कॉलम 11 मे आपके नवीन पद का PAY LEVAL और कॉलम 12 में आपके विद्यमान वेतन के समान या ठीक ऊपर वेतन का चयन करे। | X14: 27 | Y14: तृतीय एसीपी | AA14: 1 | AB14: 17700 | AC14: 17900 | AD14: 18200 | AE14: 19200 | AF14: 20800 | AG14: 21500 | AH14: 22400 | AI14: 26300 | AJ14: 28700 | AK14: 33800 | AL14: 37800 | AM14: 44300 | AN14: 53100 | AO14: 56100 | AP14: 60700 | AQ14: 67300 | AR14: 71000 | AS14: 75300 | AT14: 79900 | AU14: 88900 | AV14: 123100 | AW14: 129700 | AX14: 145800 | AY14: 148800 | BB14: =YEAR(G17) -> 1900 | BC14: 7 | BD14: 1 | BE14: 1
B15: =IF(C15="","",MAX($B$11:B14)+1) ->  | F15: =IF(MASTER!$D$12="NOTIONAL",IF(MASTER!$D$10="","FILL IN MASTER",MASTER!$D$10),"") ->  | G15: =IF(MASTER!$D$12="NOTIONAL",IF(MASTER!$D$14="","FILL IN MASTER",MASTER!$D$14),"") ->  | H15: =IF(MASTER!$D$12="NOTIONAL",IF(MASTER!$G$34="YES",MASTER!H35,control!K17),"") ->  | I15: =IF(MASTER!$D$12="NOTIONAL",IF(MASTER!$G$34="YES",MASTER!I35,control!L17),"") ->  | J15: =IF(AND(J14<DATE($BD$6,$BE$6,$BF$6),N15="वार्षिक वेतनवृद्धि "),DATE(YEAR(J14)+1,7,1),"") -> 2020-07-01 | K15: =IFERROR(HLOOKUP($L15,Payband,2,0)&"-"&HLOOKUP($L15,Payband,3,0),"") -> 44300-140100 | L15: =IF(J15="","",IF(N15="वार्षिक वेतनवृद्धि ",L14,"-")) -> L_12 | M15: =IF(J15="","",IF(N15="वार्षिक वेतनवृद्धि ",MROUND(M14*103%,100),"")) -> 54500 | N15: वार्षिक वेतनवृद्धि | O15: =IF(MASTER!$D$12="NOTIONAL",IF(ORDER!J15<ORDER!$G$15,"नोशनल","वास्तविक"),"") ->  | X15: 30 | Y15: तृतीय एसीपी | AA15: 2 | AB15: 18200 | AC15: 18400 | AD15: 18700 | AE15: 19800 | AF15: 21400 | AG15: 22100 | AH15: 23100 | AI15: 27100 | AJ15: 29600 | AK15: 34800 | AL15: 38900 | AM15: 45600 | AN15: 54700 | AO15: 57800 | AP15: 62500 | AQ15: 69300 | AR15: 73100 | AS15: 77600 | AT15: 82300 | AU15: 91600 | AV15: 126800 | AW15: 133600 | AX15: 150200 | AY15: 153300 | BB15: =YEAR(G18) -> 1900 | BC15: 7 | BD15: 1 | BE15: 1
J16: =IF(AND(J15<DATE($BD$6,$BE$6,$BF$6),N16="वार्षिक वेतनवृद्धि "),DATE(YEAR(J15)+1,7,1),"") -> 2021-07-01 | K16: =IFERROR(HLOOKUP($L16,Payband,2,0)&"-"&HLOOKUP($L16,Payband,3,0),"") -> 44300-140100 | L16: =IF(J16="","",IF(N16="वार्षिक वेतनवृद्धि ",L15,"-")) -> L_12 | M16: =IF(J16="","",IF(N16="वार्षिक वेतनवृद्धि ",MROUND(M15*103%,100),"")) -> 56100 | N16: वार्षिक वेतनवृद्धि | O16: =IF(MASTER!$D$12="NOTIONAL",IF(ORDER!J16<ORDER!$G$15,"नोशनल","वास्तविक"),"") ->  | AA16: 3 | AB16: 18700 | AC16: 19000 | AD16: 19300 | AE16: 20400 | AF16: =MROUND(AF15*103%,100) -> 22000 | AG16: =MROUND(AG15*103%,100) -> 22800 | AH16: 23800 | AI16: =MROUND(AI15*103%,100) -> 27900 | AJ16: =MROUND(AJ15*103%,100) -> 30500 | AK16: =MROUND(AK15*103%,100) -> 35800 | AL16: 40100 | AM16: =MROUND(AM15*103%,100) -> 47000 | AN16: =MROUND(AN15*103%,100) -> 56300 | AO16: 59500 | AP16: =MROUND(AP15*103%,100) -> 64400 | AQ16: =MROUND(AQ15*103%,100) -> 71400 | AR16: 75300 | AS16: =MROUND(AS15*103%,100) -> 79900 | AT16: =MROUND(AT15*103%,100) -> 84800 | AU16: 94300 | AV16: =MROUND(AV15*103%,100) -> 130600 | AW16: =MROUND(AW15*103%,100) -> 137600 | AX16: 154700 | AY16: =MROUND(AY15*103%,100) -> 157900
S17: 3.यदि आपकी उतरोत्तर वेतन वृद्धि बकाया है तो कॉलम 13 मे ड्रॉपडाउन से वार्षिक वेतनवृद्धि काचयन करे आगामी वेतन वृद्धि लग जाएगी | AA17: 4 | AB17: 19300 | AC17: 19600 | AD17: 19900 | AE17: 21000 | AF17: 22700 | AG17: 23500 | AH17: 24500 | AI17: 28700 | AJ17: 31400 | AK17: 36900 | AL17: 41300 | AM17: 48400 | AN17: 58000 | AO17: 61300 | AP17: 66300 | AQ17: 73500 | AR17: 77600 | AS17: 82300 | AT17: 87300 | AU17: 97100 | AV17: 134500 | AW17: 141700 | AX17: 159300 | AY17: 162600
F18: =MROUND(I11*1.03,100) -> 47900 | K18: =MASTER!M29 -> प्रधानाचार्य | AA18: 5 | AB18: 19900 | AC18: 20200 | AD18: 20500 | AE18: 21600 | AF18: 23400 | AG18: 24200 | AH18: 25200 | AI18: 29600 | AJ18: 32300 | AK18: 38000 | AL18: 42500 | AM18: 49900 | AN18: 59700 | AO18: 63100 | AP18: 68300 | AQ18: 75700 | AR18: 79900 | AS18: 84800 | AT18: 89900 | AU18: 100000 | AV18: 138500 | AW18: 146000 | AX18: 164100 | AY18: 167500
F19: =SMALL('7th pay chart'!M6:M45,COUNTIF('7th pay chart'!M6:M45,"<"&ORDER!F18)+1) -> 48400 | K19: =MASTER!M30 -> राजकीय उच्च माध्यमिक विद्यालय | AA19: 6 | AB19: 20500 | AC19: 20800 | AD19: 21100 | AE19: 22200 | AF19: 24100 | AG19: 24900 | AH19: 26000 | AI19: 30500 | AJ19: 33300 | AK19: 39100 | AL19: 43800 | AM19: 51400 | AN19: 61500 | AO19: 65000 | AP19: 70300 | AQ19: 78000 | AR19: 82300 | AS19: 87300 | AT19: 92600 | AU19: 103000 | AV19: 142700 | AW19: 150400 | AX19: 169000 | AY19: 172500
B20: Øekad%& | K20: =MASTER!M31 -> 13डीओएल श्रीगंगानगर | S20: एसीपी हेतु | AA20: 7 | AB20: 21100 | AC20: 21400 | AD20: 21700 | AE20: 22900 | AF20: 24800 | AG20: 25600 | AH20: 26800 | AI20: 31400 | AJ20: 34300 | AK20: 40300 | AL20: 45100 | AM20: 52900 | AN20: 63300 | AO20: 67000 | AP20: 72400 | AQ20: 80300 | AR20: 84800 | AS20: 89900 | AT20: 95400 | AU20: 106100 | AV20: 147000 | AW20: 154900 | AX20: 174100 | AY20: 177700
B21: Ikzfrfyih %& | L21: fnukad%& | S21: 1 MASTER SHEET मे डाटा भरे | AA21: 8 | AB21: 21700 | AC21: 22000 | AD21: 22400 | AE21: 23600 | AF21: 25500 | AG21: 26400 | AH21: 27600 | AI21: 32300 | AJ21: 35300 | AK21: 41500 | AL21: 46500 | AM21: 54500 | AN21: 65200 | AO21: 69000 | AP21: 74600 | AQ21: 82700 | AR21: 87300 | AS21: 92600 | AT21: 98300 | AU21: 109300 | AV21: 151400 | AW21: 159500 | AX21: 179300 | AY21: 183000
B22: 1 | C22: =MASTER!D20&" "&MASTER!D22 -> श्रीमान संयुक्त निदेशक संयुक्त निदेशक स्कूल शिक्षा ,बीकानेर संभाग,बीकानेर | S22: 2. कॉलम 11 मे आपका ACP उपरांत नवीन PAY LEVAL और कॉलम 12 में विद्यमान वेतन लेवल के वेतन मे एक वेतन वृद्धि जोड़कर जो राशि आए उसके समान या ठीक ऊपर वेतन का चयन करे। | AA22: 9 | AB22: 22400 | AC22: 22700 | AD22: 23100 | AE22: 24300 | AF22: 26300 | AG22: 27200 | AH22: 28400 | AI22: 33300 | AJ22: 36400 | AK22: 42700 | AL22: 47900 | AM22: 56100 | AN22: 67200 | AO22: 71100 | AP22: 76800 | AQ22: 85200 | AR22: 89900 | AS22: 95400 | AT22: 101200 | AU22: 112600 | AV22: 155900 | AW22: 164300 | AX22: 184700 | AY22: 188500
B23: 2 | C23: श्रीमान् उपकोषाधिकारी महोदय........... | AA23: 10 | AB23: 23100 | AC23: 23400 | AD23: 23800 | AE23: 25000 | AF23: 27100 | AG23: 28000 | AH23: 29300 | AI23: 34300 | AJ23: 37500 | AK23: 44000 | AL23: 49300 | AM23: 57800 | AN23: 69200 | AO23: 73200 | AP23: 79100 | AQ23: 87800 | AR23: 92600 | AS23: 98300 | AT23: 104200 | AU23: 116000 | AV23: 160600 | AW23: 169200 | AX23: 190200 | AY23: 194200
B24: 3 | C24: संबंधित कार्मिक श्री ........................ | AA24: 11 | AB24: 23800 | AC24: 24100 | AD24: 24500 | AE24: 25800 | AF24: 27900 | AG24: 28800 | AH24: 30200 | AI24: 35300 | AJ24: 38600 | AK24: 45300 | AL24: 50800 | AM24: 59500 | AN24: 71300 | AO24: 75400 | AP24: 81500 | AQ24: 90400 | AR24: 95400 | AS24: 101200 | AT24: 107300 | AU24: 119500 | AV24: 165400 | AW24: 174300 | AX24: 195900 | AY24: 200000
B25: 4 | C25: निजी पंजिका संबंधित श्री ...................... | S25: 3.यदि आपकी उतरोत्तर वेतन वृद्धि बकाया है तो कॉलम 13 मे ड्रॉपडाउन से वार्षिक वेतनवृद्धि काचयन करे आगामी वेतन वृद्धि लग जाएगी | AA25: 12 | AB25: 24500 | AC25: 24800 | AD25: 25200 | AE25: 26600 | AF25: 28700 | AG25: 29700 | AH25: 31100 | AI25: 36400 | AJ25: 39800 | AK25: 46700 | AL25: 52300 | AM25: 61300 | AN25: 73400 | AO25: 77700 | AP25: 83900 | AQ25: 93100 | AR25: 98300 | AS25: 104200 | AT25: 110500 | AU25: 123100 | AV25: 170400 | AW25: 179500 | AX25: 201800 | AY25: 206000
B26: 5 | C26: लेखा शाखा कार्यालय हाजा । | AA26: 13 | AB26: 25200 | AC26: 25500 | AD26: 26000 | AE26: 27400 | AF26: 29600 | AG26: 30600 | AH26: 32000 | AI26: 37500 | AJ26: 41000 | AK26: 48100 | AL26: 53900 | AM26: 63100 | AN26: 75600 | AO26: 80000 | AP26: 86400 | AQ26: 95900 | AR26: 101200 | AS26: 107300 | AT26: 113800 | AU26: 126800 | AV26: 175500 | AW26: 184900 | AX26: 207900 | AY26: 212200
B27: 6 | C27: रक्षित पंजिका । | K27: =MASTER!M29 -> प्रधानाचार्य | AA27: 14 | AB27: 26000 | AC27: 26300 | AD27: 26800 | AE27: 28200 | AF27: 30500 | AG27: 31500 | AH27: 33000 | AI27: 38600 | AJ27: 42200 | AK27: 49500 | AL27: 55500 | AM27: 65000 | AN27: 77900 | AO27: 82400 | AP27: 89000 | AQ27: 98800 | AR27: 104200 | AS27: 110500 | AT27: 117200 | AU27: 130600 | AV27: 180800 | AW27: 190400 | AX27: 214100 | AY27: 218600
K28: =MASTER!M30 -> राजकीय उच्च माध्यमिक विद्यालय | S28: पदोन्नति हेतु | AA28: 15 | AB28: 26800 | AC28: 27100 | AD28: 27600 | AE28: 29000 | AF28: 31400 | AG28: 32400 | AH28: 34000 | AI28: 39800 | AJ28: 43500 | AK28: 51000 | AL28: 57200 | AM28: 67000 | AN28: 80200 | AO28: 84900 | AP28: 91700 | AQ28: 101800 | AR28: 107300 | AS28: 113800 | AT28: 120700 | AU28: 134500 | AV28: 186200 | AW28: 196100
K29: =MASTER!M31 -> 13डीओएल श्रीगंगानगर | S29: 1 MASTER SHEET मे डाटा भरे | AA29: 16 | AB29: 27600 | AC29: 27900 | AD29: 28400 | AE29: 29900 | AF29: 32300 | AG29: 33400 | AH29: 35000 | AI29: 41000 | AJ29: 44800 | AK29: 52500 | AL29: 58900 | AM29: 69000 | AN29: 82600 | AO29: 87400 | AP29: 94500 | AQ29: 104900 | AR29: 110500 | AS29: 117200 | AT29: 124300 | AU29: 138500 | AV29: 191800 | AW29: 202000
S30: 2. यदि आपको पदोन्नति से पूर्व उस पद के लिए ACP का लाभ मिल चुका है तो कॉलम 11 मे आपका PAY LEVAL और कॉलम 12 में विद्यमान वेतन लेवल के वेतन के समान या ठीक ऊपर वेतन का चयन करे। | AA30: 17 | AB30: 28400 | AC30: 28700 | AD30: 29300 | AE30: 30800 | AF30: 33300 | AG30: 34400 | AH30: 36100 | AI30: 42200 | AJ30: 46100 | AK30: 54100 | AL30: 60700 | AM30: 71100 | AN30: 85100 | AO30: 90000 | AP30: 97300 | AQ30: 108000 | AR30: 113800 | AS30: 120700 | AT30: 128000 | AU30: 142700 | AV30: 197600 | AW30: 208100
AA31: 18 | AB31: 29300 | AC31: 29600 | AD31: 30200 | AE31: 31700 | AF31: 34300 | AG31: 35400 | AH31: 37200 | AI31: 43500 | AJ31: 47500 | AK31: 55700 | AL31: 62500 | AM31: 73200 | AN31: 87700 | AO31: 92700 | AP31: 100200 | AQ31: 111200 | AR31: 117200 | AS31: 124300 | AT31: 131800 | AU31: 147000 | AV31: 203500
S32: 3. यदि आपको पदोन्नति से पूर्व उस पद के लिए ACP का लाभ नहीं मिला है तो कॉलम 11 मे आपका नवीन पद का PAY LEVAL और कॉलम 12 में विद्यमान वेतन लेवल के वेतन मे एक वेतन वृद्धि जोड़कर जो राशि आए उसके समान या ठीक ऊपर वेतन का चयन करे। | AA32: 19 | AB32: 30200 | AC32: 30500 | AD32: 31100 | AE32: 32700 | AF32: 35300 | AG32: 36500 | AH32: 38300 | AI32: 44800 | AJ32: 48900 | AK32: 57400 | AL32: 64400 | AM32: 75400 | AN32: 90300 | AO32: 95500 | AP32: 103200 | AQ32: 114500 | AR32: 120700 | AS32: 128000 | AT32: 135800 | AU32: 151400
AA33: 20 | AB33: 31100 | AC33: 31400 | AD33: 32000 | AE33: 33700 | AF33: 36400 | AG33: 37600 | AH33: 39400 | AI33: 46100 | AJ33: 50400 | AK33: 59100 | AL33: 66300 | AM33: 77700 | AN33: 93000 | AO33: 98400 | AP33: 106300 | AQ33: 117900 | AR33: 124300 | AS33: 131800 | AT33: 139900 | AU33: 155900
AA34: 21 | AB34: 32000 | AC34: 32300 | AD34: 33000 | AE34: 34700 | AF34: 37500 | AG34: 38700 | AH34: 40600 | AI34: 47500 | AJ34: 51900 | AK34: 60900 | AL34: 68300 | AM34: 80000 | AN34: 95800 | AO34: 101400 | AP34: 109500 | AQ34: 121400 | AR34: 128000 | AS34: 135800 | AT34: 144100 | AU34: 160600
S35: 4.यदि आपकी उतरोत्तर वेतन वृद्धि बकाया है तो कॉलम 13 मे ड्रॉपडाउन से वार्षिक वेतनवृद्धि काचयन करे आगामी वेतन वृद्धि लग जाएगी | AA35: 22 | AB35: 33000 | AC35: 33300 | AD35: 34000 | AE35: 35700 | AF35: 38600 | AG35: 39900 | AH35: 41800 | AI35: 48900 | AJ35: 53500 | AK35: 62700 | AL35: 70300 | AM35: 82400 | AN35: 98700 | AO35: 104400 | AP35: 112800 | AQ35: 125000 | AR35: 131800 | AS35: 139900 | AT35: 148400 | AU35: 165400
AA36: 23 | AB36: 34000 | AC36: 34300 | AD36: 35000 | AE36: 36800 | AF36: 39800 | AG36: 41100 | AH36: 43100 | AI36: 50400 | AJ36: 55100 | AK36: 64600 | AL36: 72400 | AM36: 84900 | AN36: 101700 | AO36: 107500 | AP36: 116200 | AQ36: 128800 | AR36: 135800 | AS36: 144100 | AT36: 152900 | AU36: 170400
AA37: 24 | AB37: 35000 | AC37: 35300 | AD37: 36100 | AE37: 37900 | AF37: 41000 | AG37: 42300 | AH37: 44400 | AI37: 51900 | AJ37: 56800 | AK37: 66500 | AL37: 74600 | AM37: 87400 | AN37: 104800 | AO37: 110700 | AP37: 119700 | AQ37: 132700 | AR37: 139900 | AS37: 148400 | AT37: 157500 | AU37: 175500
S38: नोशनल लाभ हेतु | AA38: 25 | AB38: 36100 | AC38: 36400 | AD38: 37200 | AE38: 39000 | AF38: 42200 | AG38: 43600 | AH38: 45700 | AI38: 53500 | AJ38: 58500 | AK38: 68500 | AL38: 76800 | AM38: 90000 | AN38: 107900 | AO38: 114000 | AP38: 123300 | AQ38: 136700 | AR38: 144100 | AS38: 152900 | AT38: 162200 | AU38: 180800
S39: 1 MASTER SHEET मे डाटा भरे | AA39: 26 | AB39: 37200 | AC39: 37500 | AD39: 38300 | AE39: 40200 | AF39: 43500 | AG39: 44900 | AH39: 47100 | AI39: 55100 | AJ39: 60300 | AK39: 70600 | AL39: 79100 | AM39: 92700 | AN39: 111100 | AO39: 117400 | AP39: 127000 | AQ39: 140800 | AR39: 148400 | AS39: 157500 | AT39: 167100 | AU39: 186200
S40: 2. यदि आपको माननीय न्यायालय के आदेशानुसार नोशनल लाभ देय है तो कॉलम 11 मे नोशनल स्थाईकरण तिथि को वर्तमान पद का PAY LEVAL और कॉलम 12 में विद्यमान वेतन लेवल के वेतन के समान या ठीक ऊपर वेतन का चयन करे। | AA40: 27 | AB40: 38300 | AC40: 38600 | AD40: 39400 | AE40: 41400 | AF40: 44800 | AG40: 46200 | AH40: 48500 | AI40: 56800 | AJ40: 62100 | AK40: 72700 | AL40: 81500 | AM40: 95500 | AN40: 114400 | AO40: 120900 | AP40: 130800 | AQ40: 145000 | AR40: 152900 | AS40: 162200 | AT40: 172100 | AU40: 191800
AA41: 28 | AB41: 39400 | AC41: 39800 | AD41: 40600 | AE41: 42600 | AF41: 46100 | AG41: 47600 | AH41: 50000 | AI41: 58500 | AJ41: 64000 | AK41: 74900 | AL41: 83900 | AM41: 98400 | AN41: 117800 | AO41: 124500 | AP41: 134700 | AQ41: 149400 | AR41: 157500 | AS41: 167100 | AT41: 177300 | AU41: 197600
AA42: 29 | AB42: 40600 | AC42: 41000 | AD42: 41800 | AE42: 43900 | AF42: 47500 | AG42: 49000 | AH42: 51500 | AI42: 60300 | AJ42: 65900 | AK42: 77100 | AL42: 86400 | AM42: 101400 | AN42: 121300 | AO42: 128200 | AP42: 138700 | AQ42: 153900 | AR42: 162200 | AS42: 172100 | AT42: 182600 | AU42: 203500
S43: 3.यदि आपकी उतरोत्तर वेतन वृद्धि बकाया है तो कॉलम 13 मे ड्रॉपडाउन से वार्षिक वेतनवृद्धि का चयन करे आगामी वेतन वृद्धि लग जाएगी | AA43: 30 | AB43: 41800 | AC43: 42200 | AD43: 43100 | AE43: 45200 | AF43: 48900 | AG43: 50500 | AH43: 53000 | AI43: 62100 | AJ43: 67900 | AK43: 79400 | AL43: 89000 | AM43: 104400 | AN43: 124900 | AO43: 132000 | AP43: 142900 | AQ43: 158500 | AR43: 167100 | AS43: 177300 | AT43: 188100
AA44: 31 | AB44: 43100 | AC44: 43500 | AD44: 44400 | AE44: 46600 | AF44: 50400 | AG44: 52000 | AH44: 54600 | AI44: 64000 | AJ44: 69900 | AK44: 81800 | AL44: 91700 | AM44: 107500 | AN44: 128600 | AO44: 136000 | AP44: 147200 | AQ44: 163300 | AR44: 172100 | AS44: 182600 | AT44: 193700
AA45: 32 | AB45: 44400 | AC45: 44800 | AD45: 45700 | AE45: 48000 | AF45: 51900 | AG45: 53600 | AH45: 56200 | AI45: 65900 | AJ45: 72000 | AK45: 84300 | AL45: 94500 | AM45: 110700 | AN45: 132500 | AO45: 140100 | AP45: 151600 | AQ45: 168200 | AR45: 177300 | AS45: 188100 | AT45: 199500
AA46: 33 | AB46: 45700 | AC46: 46100 | AD46: 47100 | AE46: 49400 | AF46: 53500 | AG46: 55200 | AH46: 57900 | AI46: 67900 | AJ46: 74200 | AK46: 86800 | AL46: 97300 | AM46: 114000 | AN46: 136500 | AO46: 144300 | AP46: 156100 | AQ46: 173200 | AR46: 182600 | AS46: 193700
AA47: 34 | AB47: 47100 | AC47: 47500 | AD47: 48500 | AE47: 50900 | AF47: 55100 | AG47: 56900 | AH47: 59600 | AI47: 69900 | AJ47: 76400 | AK47: 89400 | AL47: 100200 | AM47: 117400 | AN47: 140600 | AO47: 148600 | AP47: 160800 | AQ47: 178400 | AR47: 188100 | AS47: 199500
AA48: 35 | AB48: 48500 | AC48: 48900 | AD48: 50000 | AE48: 52400 | AF48: 56800 | AG48: 58600 | AH48: 61400 | AI48: 72000 | AJ48: 78700 | AK48: 92100 | AL48: 103200 | AM48: 120900 | AN48: 144800 | AO48: 153100 | AP48: 165600 | AQ48: 183800 | AR48: 193700
AA49: 36 | AB49: 50000 | AC49: 50400 | AD49: 51500 | AE49: 54000 | AF49: 58500 | AG49: 60400 | AH49: 63200 | AI49: 74200 | AJ49: 81100 | AK49: 94900 | AL49: 106300 | AM49: 124500 | AN49: 149100 | AO49: 157700 | AP49: 170600 | AQ49: 189300 | AR49: 199500
AA50: 37 | AB50: 51500 | AC50: 51900 | AD50: 53000 | AE50: 55600 | AF50: 60300 | AG50: 62200 | AH50: 65100 | AI50: 76400 | AJ50: 83500 | AK50: 97700 | AL50: 109500 | AM50: 128200 | AN50: 153600 | AO50: 162400 | AP50: 175700 | AQ50: 195000
AA51: 38 | AB51: 53000 | AC51: 53500 | AD51: 54600 | AE51: 57300 | AF51: 62100 | AG51: 64100 | AH51: 67100 | AI51: 78700 | AJ51: 86000 | AK51: 100600 | AL51: 112800 | AM51: 132000 | AN51: 158200 | AO51: 167300 | AP51: 181000
AA52: 39 | AB52: 54600 | AC52: 55100 | AD52: 56200 | AE52: 59000 | AF52: 64000 | AG52: 66000 | AH52: 69100 | AI52: 81100 | AJ52: 88600 | AK52: 103600 | AL52: 116200 | AM52: 136000 | AN52: 162900 | AO52: 172300 | AP52: 186400
AA53: 40 | AB53: 56200 | AC53: 56800 | AD53: 57900 | AE53: 60800 | AF53: 65900 | AG53: 68000 | AH53: 71200 | AI53: 83500 | AJ53: 91300 | AK53: 106700 | AL53: 119700 | AM53: 140100 | AN53: 167800 | AO53: 177500 | AP53: 192000
AB58: LP_1 | AC58: LP_2 | AD58: LP_3 | AE58: LP_4 | AF58: LP_5 | AG58: LP_6 | AH58: LP_7 | AI58: LP_8 | AJ58: LP_9 | AK58: LP_10 | AL58: LP_11 | AM58: LP_12 | AN58: LP_13 | AO58: LP_14 | AP58: LP_15 | AQ58: LP_16 | AR58: LP_17 | AS58: LP_18 | AT58: LP_19 | AU58: LP_20 | AV58: LP_21 | AW58: LP_22 | AX58: LP_23 | AY58: LP_24
AB59: 12400 | AC59: 12600 | AD59: 12800 | AE59: 13500 | AF59: 14600 | AG59: 15100 | AH59: 15700 | AI59: 18500 | AJ59: 20100 | AK59: 23700 | AL59: 26500 | AM59: 31100 | AO59: 39300 | AP59: 42500 | AQ59: 47200 | AR59: 49700 | AS59: 52800 | AT59: 56000 | AU59: 62300 | AV59: 86200 | AW59: 90800 | AX59: 102100 | AY59: 104200

Sheet DATA ENTRY
B2: =MASTER!B2&" "&MASTER!C2 -> कार्यालय प्रधानाचार्य राजकीय उच्च माध्यमिक विद्यालय 13डीओएल श्री गंगानगर
AC3: MONTHS
B4: Name Of Employee | E4: =MASTER!D6 -> RAMCHANDER SWAMI | J4: ARE YOU "NPS" Employee | M4: Yes | AC4: JAN
AC5: FEB
B6: Post | E6: =MASTER!G6 -> HEADMASTER | J6: वेतन नियतन से पूर्व वेतन का प्रकार | M6: =MASTER!I14 -> Regular | AC6: MAR
H7: जिस दिनांक तक ARREAR बनाना यहाँ भरे | AC7: APR
B8: Type Of Areear | E8: =MASTER!D12&" "&"ARREAR" -> CONFIRMATION ARREAR | G8: From | H8: =MASTER!D14 -> 2017-01-01 | I8: to | J8: 2021-12-31 | L8: TOTAL MONTHS | M8: =DATEDIF(H8,J8,"m")+1 -> 60 | AC8: MAY
C9: {नोट:- इस शीट में एंट्री करने से पूर्व MASTER sheet और ORDER SHEET में आवश्यक पूर्तियाँ करें} | AC9: JUN
B10: SN | C10: वेतन उठाना है(Due) | I10: वेतन उठाया गया(Drawn) | P10: DA RATE | AC10: JUL
C11: Month | D11: Basic Pay | E11: Edit Basic Pay | F11: DA Rate | G11: HRA Rate | I11: Month | J11: Basic Pay | K11: Edit Basic Pay | L11: DA Rate | M11: HRA Rate | AC11: AUG
B12: =IF(control!A9="","",control!A9) -> 1 | C12: =IFERROR(IF(control!C9="","",control!C9),0) -> Jan-17 | D12: =IF(MASTER!$D$12="NOTIONAL",ORDER!$I$15,ORDER!$M$11) -> 48400 | F12: 0.17 | G12: 0.08 | I12: =C12 -> Jan-17 | J12: =MASTER!I12 -> 46500 | L12: 0 | M12: 0 | AC12: SEP
B13: =IF(control!A10="","",control!A10) -> 2 | C13: =IFERROR(IF(control!C10="","",control!C10),0) -> Feb-17 | D13: =IF(C13="","",IF(LEFT(C13,3)="Jul",MROUND(D12*103%,100),D12)) -> 48400 | F13: 0.17 | G13: 0.08 | I13: =C13 -> Feb-17 | J13: =IF(I13="","",IF(AND(MASTER!$I$14="Regular",LEFT(I13,3)="Jul"),MROUND(J12*103%,100),J12)) -> 46500 | L13: 0 | M13: 0 | AC13: OCT
B14: =IF(control!A11="","",control!A11) -> 3 | C14: =IFERROR(IF(control!C11="","",control!C11),0) -> Mar-17 | D14: =IF(C14="","",IF(LEFT(C14,3)="Jul",MROUND(D13*103%,100),D13)) -> 48400 | E14: 75700 | F14: 0.17 | G14: 0.08 | I14: =C14 -> Mar-17 | J14: =IF(I14="","",IF(AND(MASTER!$I$14="Regular",LEFT(I14,3)="Jul"),MROUND(J13*103%,100),J13)) -> 46500 | L14: 0 | M14: 0 | AC14: NOV
B15: =IF(control!A12="","",control!A12) -> 4 | C15: =IFERROR(IF(control!C12="","",control!C12),0) -> Apr-17 | D15: 48400 | F15: 0.17 | G15: 0.08 | I15: Apr-17 | J15: =IF(I15="","",IF(AND(MASTER!$I$14="Regular",LEFT(I15,3)="Jul"),MROUND(J14*103%,100),J14)) -> 46500 | K15: 36900 | L15: 0 | M15: 0.08 | AC15: DEC
B16: =IF(control!A13="","",control!A13) -> 5 | C16: =IFERROR(IF(control!C13="","",control!C13),0) -> May-17 | D16: 48400 | F16: 0.17 | G16: 0.08 | I16: May-17 | J16: =IF(I16="","",IF(AND(MASTER!$I$14="Regular",LEFT(I16,3)="Jul"),MROUND(J15*103%,100),J15)) -> 46500 | K16: 36900 | L16: 0.12 | M16: 0.08
B17: =IF(control!A14="","",control!A14) -> 6 | C17: =IFERROR(IF(control!C14="","",control!C14),0) -> Jun-17 | D17: 48400 | F17: 0.17 | G17: 0.08 | I17: Jun-17 | J17: =IF(I17="","",IF(AND(MASTER!$I$14="Regular",LEFT(I17,3)="Jul"),MROUND(J16*103%,100),J16)) -> 46500 | L17: 0.17 | M17: 0.08
B18: =IF(control!A15="","",control!A15) -> 7 | C18: =IFERROR(IF(control!C15="","",control!C15),0) -> Jul-17 | D18: 49900 | F18: 0.17 | G18: 0.08 | I18: Jul-17 | J18: =IF(I18="","",IF(AND(MASTER!$I$14="Regular",LEFT(I18,3)="Jul"),MROUND(J17*103%,100),J17)) -> 47900 | L18: 0.17 | M18: 0.08
B19: =IF(control!A16="","",control!A16) -> 8 | C19: =IFERROR(IF(control!C16="","",control!C16),0) -> Aug-17 | D19: 49900 | F19: 0.17 | G19: 0.08 | I19: Aug-17 | J19: =IF(I19="","",IF(AND(MASTER!$I$14="Regular",LEFT(I19,3)="Jul"),MROUND(J18*103%,100),J18)) -> 47900 | L19: 0.17 | M19: 0.08
B20: =IF(control!A17="","",control!A17) -> 9 | C20: =IFERROR(IF(control!C17="","",control!C17),0) -> Sep-17 | D20: 49900 | F20: 0.17 | G20: 0.08 | I20: Sep-17 | J20: =IF(I20="","",IF(AND(MASTER!$I$14="Regular",LEFT(I20,3)="Jul"),MROUND(J19*103%,100),J19)) -> 47900 | L20: 0.17 | M20: 0.08
B21: =IF(control!A18="","",control!A18) -> 10 | C21: =IFERROR(IF(control!C18="","",control!C18),0) -> Oct-17 | D21: 49900 | F21: 0.17 | G21: 0.08 | I21: Oct-17 | J21: =IF(I21="","",IF(AND(MASTER!$I$14="Regular",LEFT(I21,3)="Jul"),MROUND(J20*103%,100),J20)) -> 47900 | L21: 0.17 | M21: 0.08
B22: =IF(control!A19="","",control!A19) -> 11 | C22: =IFERROR(IF(control!C19="","",control!C19),0) -> Nov-17 | D22: 49900 | F22: 0.17 | G22: 0.08 | I22: Nov-17 | J22: =IF(I22="","",IF(AND(MASTER!$I$14="Regular",LEFT(I22,3)="Jul"),MROUND(J21*103%,100),J21)) -> 47900 | L22: 0.17 | M22: 0.08
B23: =IF(control!A20="","",control!A20) -> 12 | C23: =IFERROR(IF(control!C20="","",control!C20),0) -> Dec-17 | D23: 49900 | F23: 0.17 | G23: 0.08 | I23: Dec-17 | J23: =IF(I23="","",IF(AND(MASTER!$I$14="Regular",LEFT(I23,3)="Jul"),MROUND(J22*103%,100),J22)) -> 47900 | L23: 0.17 | M23: 0.08
B24: =IF(control!A21="","",control!A21) -> 13 | C24: =IFERROR(IF(control!C21="","",control!C21),0) -> Jan-18 | D24: 49900 | F24: 0.17 | G24: 0.08 | I24: Jan-18 | J24: =IF(I24="","",IF(AND(MASTER!$I$14="Regular",LEFT(I24,3)="Jul"),MROUND(J23*103%,100),J23)) -> 47900 | L24: 0.17 | M24: 0.08
B25: =IF(control!A22="","",control!A22) -> 14 | C25: =IFERROR(IF(control!C22="","",control!C22),0) -> Feb-18 | D25: 49900 | F25: 0.17 | G25: 0.08 | I25: Feb-18 | J25: =IF(I25="","",IF(AND(MASTER!$I$14="Regular",LEFT(I25,3)="Jul"),MROUND(J24*103%,100),J24)) -> 47900 | L25: 0.17 | M25: 0.08
B26: =IF(control!A23="","",control!A23) -> 15 | C26: =IFERROR(IF(control!C23="","",control!C23),0) -> Mar-18 | D26: 49900 | F26: 0.17 | G26: 0.08 | I26: Mar-18 | J26: =IF(I26="","",IF(AND(MASTER!$I$14="Regular",LEFT(I26,3)="Jul"),MROUND(J25*103%,100),J25)) -> 47900 | L26: 0.17 | M26: 0.08
B27: =IF(control!A24="","",control!A24) -> 16 | C27: =IFERROR(IF(control!C24="","",control!C24),0) -> Apr-18 | D27: 49900 | F27: 0.17 | G27: 0.08 | I27: Apr-18 | J27: =IF(I27="","",IF(AND(MASTER!$I$14="Regular",LEFT(I27,3)="Jul"),MROUND(J26*103%,100),J26)) -> 47900 | L27: 0.17 | M27: 0.08
B28: =IF(control!A25="","",control!A25) -> 17 | C28: =IFERROR(IF(control!C25="","",control!C25),0) -> May-18 | D28: 49900 | F28: 0.17 | G28: 0.08 | I28: May-18 | J28: =IF(I28="","",IF(AND(MASTER!$I$14="Regular",LEFT(I28,3)="Jul"),MROUND(J27*103%,100),J27)) -> 47900 | L28: 0.17 | M28: 0.08
B29: =IF(control!A26="","",control!A26) -> 18 | C29: =IFERROR(IF(control!C26="","",control!C26),0) -> Jun-18 | D29: 49900 | F29: 0.17 | G29: 0.08 | I29: Jun-18 | J29: =IF(I29="","",IF(AND(MASTER!$I$14="Regular",LEFT(I29,3)="Jul"),MROUND(J28*103%,100),J28)) -> 47900 | L29: 0.17 | M29: 0.08
B30: =IF(control!A27="","",control!A27) -> 19 | C30: =IFERROR(IF(control!C27="","",control!C27),0) -> Jul-18 | D30: 51400 | F30: 0.17 | G30: 0.08 | I30: Jul-18 | J30: =IF(I30="","",IF(AND(MASTER!$I$14="Regular",LEFT(I30,3)="Jul"),MROUND(J29*103%,100),J29)) -> 49300 | L30: 0.17 | M30: 0.08
B31: =IF(control!A28="","",control!A28) -> 20 | C31: =IFERROR(IF(control!C28="","",control!C28),0) -> Aug-18 | D31: 51400 | F31: 0.17 | G31: 0.08 | I31: Aug-18 | J31: =IF(I31="","",IF(AND(MASTER!$I$14="Regular",LEFT(I31,3)="Jul"),MROUND(J30*103%,100),J30)) -> 49300 | L31: 0.17 | M31: 0.08
B32: =IF(control!A29="","",control!A29) -> 21 | C32: =IFERROR(IF(control!C29="","",control!C29),0) -> Sep-18 | D32: 51400 | F32: 0.17 | G32: 0.08 | I32: Sep-18 | J32: =IF(I32="","",IF(AND(MASTER!$I$14="Regular",LEFT(I32,3)="Jul"),MROUND(J31*103%,100),J31)) -> 49300 | L32: 0.17 | M32: 0.08
B33: =IF(control!A30="","",control!A30) -> 22 | C33: =IFERROR(IF(control!C30="","",control!C30),0) -> Oct-18 | D33: 51400 | F33: 0.17 | G33: 0.08 | I33: Oct-18 | J33: =IF(I33="","",IF(AND(MASTER!$I$14="Regular",LEFT(I33,3)="Jul"),MROUND(J32*103%,100),J32)) -> 49300 | L33: 0.17 | M33: 0.08
B34: =IF(control!A31="","",control!A31) -> 23 | C34: =IFERROR(IF(control!C31="","",control!C31),0) -> Nov-18 | D34: 51400 | F34: 0.17 | G34: 0.08 | I34: Nov-18 | J34: =IF(I34="","",IF(AND(MASTER!$I$14="Regular",LEFT(I34,3)="Jul"),MROUND(J33*103%,100),J33)) -> 49300 | L34: 0.17 | M34: 0.08
B35: =IF(control!A32="","",control!A32) -> 24 | C35: =IFERROR(IF(control!C32="","",control!C32),0) -> Dec-18 | D35: 51400 | F35: 0.17 | G35: 0.08 | I35: Dec-18 | J35: =IF(I35="","",IF(AND(MASTER!$I$14="Regular",LEFT(I35,3)="Jul"),MROUND(J34*103%,100),J34)) -> 49300 | L35: 0.17 | M35: 0.08
B36: =IF(control!A33="","",control!A33) -> 25 | C36: =IFERROR(IF(control!C33="","",control!C33),0) -> Jan-19 | D36: 51400 | F36: 0.17 | G36: 0.08 | I36: =C36 -> Jan-19 | J36: =IF(I36="","",IF(AND(MASTER!$I$14="Regular",LEFT(I36,3)="Jul"),MROUND(J35*103%,100),J35)) -> 49300 | L36: 0.17 | M36: 0.08
B37: =IF(control!A34="","",control!A34) -> 26 | C37: =IFERROR(IF(control!C34="","",control!C34),0) -> Feb-19 | D37: 51400 | F37: 0.17 | G37: 0.08 | I37: Feb-19 | J37: =IF(I37="","",IF(AND(MASTER!$I$14="Regular",LEFT(I37,3)="Jul"),MROUND(J36*103%,100),J36)) -> 49300 | L37: 0.17 | M37: 0.08
B38: =IF(control!A35="","",control!A35) -> 27 | C38: =IFERROR(IF(control!C35="","",control!C35),0) -> Mar-19 | D38: 51400 | F38: 0.17 | G38: 0.08 | I38: Mar-19 | J38: =IF(I38="","",IF(AND(MASTER!$I$14="Regular",LEFT(I38,3)="Jul"),MROUND(J37*103%,100),J37)) -> 49300 | L38: 0.17 | M38: 0.08
B39: =IF(control!A36="","",control!A36) -> 28 | C39: =IFERROR(IF(control!C36="","",control!C36),0) -> Apr-19 | D39: 51400 | F39: 0.17 | G39: 0.08 | I39: Apr-19 | J39: =IF(I39="","",IF(AND(MASTER!$I$14="Regular",LEFT(I39,3)="Jul"),MROUND(J38*103%,100),J38)) -> 49300 | L39: 0.17 | M39: 0.08
B40: =IF(control!A37="","",control!A37) -> 29 | C40: =IFERROR(IF(control!C37="","",control!C37),0) -> May-19 | D40: 51400 | F40: 0.17 | G40: 0.08 | I40: May-19 | J40: =IF(I40="","",IF(AND(MASTER!$I$14="Regular",LEFT(I40,3)="Jul"),MROUND(J39*103%,100),J39)) -> 49300 | L40: 0.17 | M40: 0.08
B41: =IF(control!A38="","",control!A38) -> 30 | C41: =IFERROR(IF(control!C38="","",control!C38),0) -> Jun-19 | D41: 51400 | F41: 0.17 | G41: 0.08 | I41: Jun-19 | J41: =IF(I41="","",IF(AND(MASTER!$I$14="Regular",LEFT(I41,3)="Jul"),MROUND(J40*103%,100),J40)) -> 49300 | L41: 0.17 | M41: 0.08
B42: =IF(control!A39="","",control!A39) -> 31 | C42: =IFERROR(IF(control!C39="","",control!C39),0) -> Jul-19 | D42: 52900 | F42: 0.17 | G42: 0.08 | I42: Jul-19 | J42: =IF(I42="","",IF(AND(MASTER!$I$14="Regular",LEFT(I42,3)="Jul"),MROUND(J41*103%,100),J41)) -> 50800 | L42: 0.17 | M42: 0.08
B43: =IF(control!A40="","",control!A40) -> 32 | C43: =IFERROR(IF(control!C40="","",control!C40),0) -> Aug-19 | D43: 52900 | F43: 0.17 | G43: 0.08 | I43: Aug-19 | J43: =IF(I43="","",IF(AND(MASTER!$I$14="Regular",LEFT(I43,3)="Jul"),MROUND(J42*103%,100),J42)) -> 50800 | L43: 0.17 | M43: 0.08
B44: =IF(control!A41="","",control!A41) -> 33 | C44: =IFERROR(IF(control!C41="","",control!C41),0) -> Sep-19 | D44: 52900 | F44: 0.17 | G44: 0.08 | I44: Sep-19 | J44: =IF(I44="","",IF(AND(MASTER!$I$14="Regular",LEFT(I44,3)="Jul"),MROUND(J43*103%,100),J43)) -> 50800 | L44: 0.17 | M44: 0.08
B45: =IF(control!A42="","",control!A42) -> 34 | C45: =IFERROR(IF(control!C42="","",control!C42),0) -> Oct-19 | D45: 52900 | F45: 0.17 | G45: 0.08 | I45: Oct-19 | J45: =IF(I45="","",IF(AND(MASTER!$I$14="Regular",LEFT(I45,3)="Jul"),MROUND(J44*103%,100),J44)) -> 50800 | L45: 0.17 | M45: 0.08
B46: =IF(control!A43="","",control!A43) -> 35 | C46: =IFERROR(IF(control!C43="","",control!C43),0) -> Nov-19 | D46: 52900 | F46: 0.17 | G46: 0.08 | I46: Nov-19 | J46: =IF(I46="","",IF(AND(MASTER!$I$14="Regular",LEFT(I46,3)="Jul"),MROUND(J45*103%,100),J45)) -> 50800 | L46: 0.17 | M46: 0.08
B47: =IF(control!A44="","",control!A44) -> 36 | C47: =IFERROR(IF(control!C44="","",control!C44),0) -> Dec-19 | D47: 52900 | F47: 0.17 | G47: 0.08 | I47: Dec-19 | J47: =IF(I47="","",IF(AND(MASTER!$I$14="Regular",LEFT(I47,3)="Jul"),MROUND(J46*103%,100),J46)) -> 50800 | L47: 0.17 | M47: 0.08
B48: =IF(control!A45="","",control!A45) -> 37 | C48: =IFERROR(IF(control!C45="","",control!C45),0) -> Jan-20 | D48: =IF(C48="","",IF(LEFT(C48,3)="Jul",MROUND(D47*103%,100),D47)) -> 52900 | F48: 0.17 | G48: 0.08 | I48: Jan-20 | J48: =IF(I48="","",IF(AND(MASTER!$I$14="Regular",LEFT(I48,3)="Jul"),MROUND(J47*103%,100),J47)) -> 50800 | L48: 0.17 | M48: 0.08
B49: =IF(control!A46="","",control!A46) -> 38 | C49: =IFERROR(IF(control!C46="","",control!C46),0) -> Feb-20 | D49: 52900 | F49: 0.17 | G49: 0.08 | I49: Feb-20 | J49: =IF(I49="","",IF(AND(MASTER!$I$14="Regular",LEFT(I49,3)="Jul"),MROUND(J48*103%,100),J48)) -> 50800 | L49: 0.17 | M49: 0.08
B50: =IF(control!A47="","",control!A47) -> 39 | C50: =IFERROR(IF(control!C47="","",control!C47),0) -> Mar-20 | D50: 52900 | F50: 0.17 | G50: 0.08 | I50: Mar-20 | J50: =IF(I50="","",IF(AND(MASTER!$I$14="Regular",LEFT(I50,3)="Jul"),MROUND(J49*103%,100),J49)) -> 50800 | L50: 0.17 | M50: 0.08
B51: =IF(control!A48="","",control!A48) -> 40 | C51: =IFERROR(IF(control!C48="","",control!C48),0) -> Apr-20 | D51: 52900 | F51: 0.17 | G51: 0.08 | I51: Apr-20 | J51: =IF(I51="","",IF(AND(MASTER!$I$14="Regular",LEFT(I51,3)="Jul"),MROUND(J50*103%,100),J50)) -> 50800 | L51: 0.17 | M51: 0.08
B52: =IF(control!A49="","",control!A49) -> 41 | C52: =IFERROR(IF(control!C49="","",control!C49),0) -> May-20 | D52: 52900 | F52: 0.17 | G52: 0.08 | I52: May-20 | J52: =IF(I52="","",IF(AND(MASTER!$I$14="Regular",LEFT(I52,3)="Jul"),MROUND(J51*103%,100),J51)) -> 50800 | L52: 0.17 | M52: 0.08
B53: =IF(control!A50="","",control!A50) -> 42 | C53: =IFERROR(IF(control!C50="","",control!C50),0) -> Jun-20 | D53: 52900 | F53: 0.17 | G53: 0.08 | I53: Jun-20 | J53: =IF(I53="","",IF(AND(MASTER!$I$14="Regular",LEFT(I53,3)="Jul"),MROUND(J52*103%,100),J52)) -> 50800 | L53: 0.17 | M53: 0.08
B54: =IF(control!A51="","",control!A51) -> 43 | C54: =IFERROR(IF(control!C51="","",control!C51),0) -> Jul-20 | D54: 54500 | F54: 0.17 | G54: 0.08 | I54: Jul-20 | J54: =IF(I54="","",IF(AND(MASTER!$I$14="Regular",LEFT(I54,3)="Jul"),MROUND(J53*103%,100),J53)) -> 52300 | L54: 0.17 | M54: 0.08
B55: =IF(control!A52="","",control!A52) -> 44 | C55: =IFERROR(IF(control!C52="","",control!C52),0) -> Aug-20 | D55: 54500 | F55: 0.17 | G55: 0.08 | I55: Aug-20 | J55: =IF(I55="","",IF(AND(MASTER!$I$14="Regular",LEFT(I55,3)="Jul"),MROUND(J54*103%,100),J54)) -> 52300 | L55: 0.17 | M55: 0.08
B56: =IF(control!A53="","",control!A53) -> 45 | C56: =IFERROR(IF(control!C53="","",control!C53),0) -> Sep-20 | D56: 54500 | F56: 0.17 | G56: 0.08 | I56: Sep-20 | J56: =IF(I56="","",IF(AND(MASTER!$I$14="Regular",LEFT(I56,3)="Jul"),MROUND(J55*103%,100),J55)) -> 52300 | L56: 0.17 | M56: 0.08
B57: =IF(control!A54="","",control!A54) -> 46 | C57: =IFERROR(IF(control!C54="","",control!C54),0) -> Oct-20 | D57: =IF(C57="","",IF(LEFT(C57,3)="Jul",MROUND(D56*103%,100),D56)) -> 54500 | F57: 0.17 | G57: 0.08 | I57: Oct-20 | J57: =IF(I57="","",IF(AND(MASTER!$I$14="Regular",LEFT(I57,3)="Jul"),MROUND(J56*103%,100),J56)) -> 52300 | L57: 0.17 | M57: 0.08
B58: =IF(control!A55="","",control!A55) -> 47 | C58: =IFERROR(IF(control!C55="","",control!C55),0) -> Nov-20 | D58: 54500 | F58: 0.17 | G58: 0.08 | I58: Nov-20 | J58: =IF(I58="","",IF(AND(MASTER!$I$14="Regular",LEFT(I58,3)="Jul"),MROUND(J57*103%,100),J57)) -> 52300 | L58: 0.17 | M58: 0.08
B59: =IF(control!A56="","",control!A56) -> 48 | C59: =IFERROR(IF(control!C56="","",control!C56),0) -> Dec-20 | D59: 54500 | F59: 0.17 | G59: 0.08 | I59: Dec-20 | J59: =IF(I59="","",IF(AND(MASTER!$I$14="Regular",LEFT(I59,3)="Jul"),MROUND(J58*103%,100),J58)) -> 52300 | L59: 0.17 | M59: 0.08
B60: =IF(control!A57="","",control!A57) -> 49 | C60: =IFERROR(IF(control!C57="","",control!C57),0) -> Jan-21 | D60: =IF(C60="","",IF(LEFT(C60,3)="Jul",MROUND(D59*103%,100),D59)) -> 54500 | F60: 0.17 | G60: 0.08 | I60: =C60 -> Jan-21 | J60: =IF(I60="","",IF(AND(MASTER!$I$14="Regular",LEFT(I60,3)="Jul"),MROUND(J59*103%,100),J59)) -> 52300 | L60: 0.17 | M60: 0.08
B61: =IF(control!A58="","",control!A58) -> 50 | C61: =IFERROR(IF(control!C58="","",control!C58),0) -> Feb-21 | D61: 54500 | F61: 0.17 | G61: 0.08 | I61: Feb-21 | J61: =IF(I61="","",IF(AND(MASTER!$I$14="Regular",LEFT(I61,3)="Jul"),MROUND(J60*103%,100),J60)) -> 52300 | L61: 0.17 | M61: 0.08
B62: =IF(control!A59="","",control!A59) -> 51 | C62: =IFERROR(IF(control!C59="","",control!C59),0) -> Mar-21 | D62: 54500 | F62: 0.17 | G62: 0.08 | I62: Mar-21 | J62: =IF(I62="","",IF(AND(MASTER!$I$14="Regular",LEFT(I62,3)="Jul"),MROUND(J61*103%,100),J61)) -> 52300 | L62: 0.17 | M62: 0.08
B63: =IF(control!A60="","",control!A60) -> 52 | C63: =IFERROR(IF(control!C60="","",control!C60),0) -> Apr-21 | D63: 54500 | F63: 0.17 | G63: 0.08 | I63: Apr-21 | J63: =IF(I63="","",IF(AND(MASTER!$I$14="Regular",LEFT(I63,3)="Jul"),MROUND(J62*103%,100),J62)) -> 52300 | L63: 0.17 | M63: 0.08
B64: =IF(control!A61="","",control!A61) -> 53 | C64: =IFERROR(IF(control!C61="","",control!C61),0) -> May-21 | D64: 54500 | F64: 0.17 | G64: 0.08 | I64: May-21 | J64: =IF(I64="","",IF(AND(MASTER!$I$14="Regular",LEFT(I64,3)="Jul"),MROUND(J63*103%,100),J63)) -> 52300 | L64: 0.17 | M64: 0.08
B65: =IF(control!A62="","",control!A62) -> 54 | C65: =IFERROR(IF(control!C62="","",control!C62),0) -> Jun-21 | D65: 54500 | F65: 0.17 | G65: 0.08 | I65: Jun-21 | J65: =IF(I65="","",IF(AND(MASTER!$I$14="Regular",LEFT(I65,3)="Jul"),MROUND(J64*103%,100),J64)) -> 52300 | L65: 0.17 | M65: 0.08
B66: =IF(control!A63="","",control!A63) -> 55 | C66: =IFERROR(IF(control!C63="","",control!C63),0) -> Jul-21 | D66: 56100 | F66: 0.17 | G66: 0.08 | I66: Jul-21 | J66: =IF(I66="","",IF(AND(MASTER!$I$14="Regular",LEFT(I66,3)="Jul"),MROUND(J65*103%,100),J65)) -> 53900 | L66: 0.17 | M66: 0.08
B67: =IF(control!A64="","",control!A64) -> 56 | C67: =IFERROR(IF(control!C64="","",control!C64),0) -> Aug-21 | D67: 56100 | F67: 0.17 | G67: 0.08 | I67: Aug-21 | J67: =IF(I67="","",IF(AND(MASTER!$I$14="Regular",LEFT(I67,3)="Jul"),MROUND(J66*103%,100),J66)) -> 53900 | L67: 0.17 | M67: 0.08
B68: =IF(control!A65="","",control!A65) -> 57 | C68: =IFERROR(IF(control!C65="","",control!C65),0) -> Sep-21 | D68: 56100 | F68: 0.17 | G68: 0.08 | I68: Sep-21 | J68: =IF(I68="","",IF(AND(MASTER!$I$14="Regular",LEFT(I68,3)="Jul"),MROUND(J67*103%,100),J67)) -> 53900 | L68: 0.17 | M68: 0.08
B69: =IF(control!A66="","",control!A66) -> 58 | C69: =IFERROR(IF(control!C66="","",control!C66),0) -> Oct-21 | D69: 56100 | F69: 0.17 | G69: 0.08 | I69: Oct-21 | J69: =IF(I69="","",IF(AND(MASTER!$I$14="Regular",LEFT(I69,3)="Jul"),MROUND(J68*103%,100),J68)) -> 53900 | L69: 0.17 | M69: 0.08
B70: =IF(control!A67="","",control!A67) -> 59 | C70: =IFERROR(IF(control!C67="","",control!C67),0) -> Nov-21 | D70: 56100 | F70: 0.17 | G70: 0.08 | I70: Nov-21 | J70: =IF(I70="","",IF(AND(MASTER!$I$14="Regular",LEFT(I70,3)="Jul"),MROUND(J69*103%,100),J69)) -> 53900 | L70: 0.17 | M70: 0.08
B71: =IF(control!A68="","",control!A68) -> 60 | C71: =IFERROR(IF(control!C68="","",control!C68),0) -> Dec-21 | D71: 56100 | F71: 0.17 | G71: 0.08 | I71: Dec-21 | J71: =IF(I71="","",IF(AND(MASTER!$I$14="Regular",LEFT(I71,3)="Jul"),MROUND(J70*103%,100),J70)) -> 53900 | L71: 0.17 | M71: 0.08

Sheet ARREAR
B2: =ORDER!B2 -> कार्यालय प्रधानाचार्य राजकीय उच्च माध्यमिक विद्यालय 13डीओएल श्री गंगानगर
B3: ='DATA ENTRY'!E8&" " &"FROM"&" "&TEXT('DATA ENTRY'!H8,"Mmmm-yyyy")&" "&"TO"&" "&TEXT('DATA ENTRY'!J8,"mmmm-yyyy") -> CONFIRMATION ARREAR FROM January-2017 TO December-2021
C4: NAME | E4: ='DATA ENTRY'!E4 -> RAMCHANDER SWAMI | L4: POST | M4: ='DATA ENTRY'!E6 -> HEADMASTER | AE4: Emp ID | AF4: =MASTER!G8 -> RJGA99999999999
B6: S.No. | C6: Month | D6: To Be Drawn | H6: Alread Drawn | L6: Difference | P6: Deductions | AF6: Total Deductions | AG6: Net Amount | AH6: omitted bill no | AI6: TV no/date
D7: Basic | E7: DA | F7: HRA | G7: Total | H7: Basic | I7: DA | J7: HRA | K7: Total | L7: Basic | M7: DA | N7: HRA | O7: Total | P7: NPS | S7: GPF | V7: SI | Y7: RPMF | AB7: CM CORONA RELIEF FUND | AE7: I.TAX
P8: Due | Q8: Drawn | R8: Diff | S8: Due | T8: Drawn | U8: Diff | V8: Due | W8: Drawn | X8: Diff | Y8: Due | Z8: Drawn | AA8: Diff | AB8: Due | AC8: Drawn | AD8: Diff
A9: =IF(D9="","v","") ->  | B9: =IF(control!A9="","",control!A9) -> 1 | C9: =IF(control!C9="","",control!C9) -> Jan-17 | D9: =IF(C9="March-20",control!E9/2,control!E9) -> 48400 | E9: =IFERROR(ROUND(D9*'DATA ENTRY'!F12,0),0) -> 8228 | F9: =IFERROR(ROUND(D9*'DATA ENTRY'!G12,0),0) -> 3872 | G9: =IFERROR(D9+E9+F9,0) -> 60500 | H9: =control!G9 -> 46500 | I9: =IFERROR(IF(MASTER!$I$14="Fix Pay",0,ROUND(H9*'DATA ENTRY'!L12,0)),0) -> 0 | J9: =IFERROR(IF(MASTER!$I$14="Fix Pay",0,ROUND(H9*'DATA ENTRY'!M12,0)),0) -> 0 | K9: =IFERROR(H9+I9+J9,0) -> 46500 | L9: =IFERROR(D9-H9,0) -> 1900 | M9: =IFERROR(E9-I9,0) -> 8228 | N9: =IFERROR(F9-J9,0) -> 3872 | O9: =IFERROR(L9+M9+N9,0) -> 14000 | P9: =IFERROR(IF('DATA ENTRY'!$M$4="YES",ROUND((ARREAR!D9+ARREAR!E9)*10%,0),0),0) -> 5663 | Q9: =IFERROR(IF('DATA ENTRY'!$M$4="YES",ROUND((ARREAR!H9+ARREAR!I9)*10%,0),0),0) -> 4650 | R9: =IFERROR(P9-Q9,0) -> 1013 | U9: =IFERROR(S9-T9,0) -> 0 | X9: =IFERROR(V9-W9,0) -> 0 | AA9: =IFERROR(Y9-Z9,0) -> 0 | AD9: =IFERROR(AB9-AC9,0) -> 0 | AE9: 100 | AF9: =R9+U9+X9+AA9+AD9+AE9 -> 1113 | AG9: =O9-AF9 -> 12887
A10: =IF(D10="","v","") ->  | B10: =IF(control!A10="","",control!A10) -> 2 | C10: =IF(control!C10="","",control!C10) -> Feb-17 | D10: =IF(C10="March-20",control!E10/2,control!E10) -> 48400 | E10: =IFERROR(ROUND(D10*'DATA ENTRY'!F13,0),0) -> 8228 | F10: =IFERROR(ROUND(D10*'DATA ENTRY'!G13,0),0) -> 3872 | G10: =IFERROR(D10+E10+F10,0) -> 60500 | H10: =control!G10 -> 46500 | I10: =IFERROR(IF(MASTER!$I$14="Fix Pay",0,ROUND(H10*'DATA ENTRY'!L13,0)),0) -> 0 | J10: =IFERROR(IF(MASTER!$I$14="Fix Pay",0,ROUND(H10*'DATA ENTRY'!M13,0)),0) -> 0 | K10: =IFERROR(H10+I10+J10,0) -> 46500 | L10: =IFERROR(D10-H10,0) -> 1900 | M10: 8228 | N10: 3872 | O10: =IFERROR(L10+M10+N10,0) -> 14000 | P10: =IFERROR(IF('DATA ENTRY'!$M$4="YES",ROUND((ARREAR!D10+ARREAR!E10)*10%,0),0),0) -> 5663 | Q10: =IFERROR(IF('DATA ENTRY'!$M$4="YES",ROUND((ARREAR!H10+ARREAR!I10)*10%,0),0),0) -> 4650 | R10: =IFERROR(P10-Q10,0) -> 1013 | U10: =IFERROR(S10-T10,0) -> 0 | X10: =IFERROR(V10-W10,0) -> 0 | AA10: =IFERROR(Y10-Z10,0) -> 0 | AD10: =IFERROR(AB10-AC10,0) -> 0 | AF10: =R10+U10+X10+AA10+AD10+AE10 -> 1013 | AG10: =O10-AF10 -> 12987
B11: =IF(control!A11="","",control!A11) -> 3 | C11: =IF(control!C11="","",control!C11) -> Mar-17 | D11: =IF(C11="Mar-20",control!E11/2,control!E11) -> 75700 | E11: =IFERROR(ROUND(D11*'DATA ENTRY'!F14,0),0) -> 12869 | F11: =IFERROR(ROUND(D11*'DATA ENTRY'!G14,0),0) -> 6056 | G11: 94625 | H11: =control!G11 -> 46500 | I11: =IFERROR(IF(MASTER!$I$14="Fix Pay",0,ROUND(H11*'DATA ENTRY'!L14,0)),0) -> 0 | J11: =IFERROR(IF(MASTER!$I$14="Fix Pay",0,ROUND(H11*'DATA ENTRY'!M14,0)),0) -> 0 | K11: 46500 | L11: 29200 | M11: 12869 | N11: 6056 | O11: 48125 | P11: =IFERROR(IF('DATA ENTRY'!$M$4="YES",ROUND((ARREAR!D11+ARREAR!E11)*10%,0),0),0) -> 8857 | Q11: =IFERROR(IF('DATA ENTRY'!$M$4="YES",ROUND((ARREAR!H11+ARREAR!I11)*10%,0),0),0) -> 4650 | R11: =IFERROR(P11-Q11,0) -> 4207 | U11: 0 | X11: 0 | AA11: =IFERROR(Y11-Z11,0) -> 0 | AD11: 0 | AF11: 4207 | AG11: 43918
B12: =IF(control!A12="","",control!A12) -> 4 | C12: =IF(control!C12="","",control!C12) -> Apr-17 | D12: =IF(C12="March-20",control!E12/2,control!E12) -> 48400 | E12: =IFERROR(ROUND(D12*'DATA ENTRY'!F15,0),0) -> 8228 | F12: =IFERROR(ROUND(D12*'DATA ENTRY'!G15,0),0) -> 3872 | G12: 60500 | H12: =control!G12 -> 36900 | I12: =IFERROR(IF(MASTER!$I$14="Fix Pay",0,ROUND(H12*'DATA ENTRY'!L15,0)),0) -> 0 | J12: =IFERROR(IF(MASTER!$I$14="Fix Pay",0,ROUND(H12*'DATA ENTRY'!M15,0)),0) -> 2952 | K12: 39852 | L12: 11500 | M12: 8228 | N12: 920 | O12: 20648 | P12: =IFERROR(IF('DATA ENTRY'!$M$4="YES",ROUND((ARREAR!D12+ARREAR!E12)*10%,0),0),0) -> 5663 | Q12: =IFERROR(IF('DATA ENTRY'!$M$4="YES",ROUND((ARREAR!H12+ARREAR!I12)*10%,0),0),0) -> 3690 | R12: 1973 | U12: 0 | X12: 0 | AA12: 0 | AD12: 0 | AF12: 1973 | AG12: 18675
B13: =IF(control!A13="","",control!A13) -> 5 | C13: =IF(control!C13="","",control!C13) -> May-17 | D13: =IF(C13="March-20",control!E13/2,control!E13) -> 48400 | E13: =IFERROR(ROUND(D13*'DATA ENTRY'!F16,0),0) -> 8228 | F13: =IFERROR(ROUND(D13*'DATA ENTRY'!G16,0),0) -> 3872 | G13: 60500 | H13: =control!G13 -> 36900 | I13: =IFERROR(IF(MASTER!$I$14="Fix Pay",0,ROUND(H13*'DATA ENTRY'!L16,0)),0) -> 4428 | J13: =IFERROR(IF(MASTER!$I$14="Fix Pay",0,ROUND(H13*'DATA ENTRY'!M16,0)),0) -> 2952 | K13: 44280 | L13: 11500 | M13: 3800 | N13: 920 | O13: 16220 | P13: =IFERROR(IF('DATA ENTRY'!$M$4="YES",ROUND((ARREAR!D13+ARREAR!E13)*10%,0),0),0) -> 5663 | Q13: =IFERROR(IF('DATA ENTRY'!$M$4="YES",ROUND((ARREAR!H13+ARREAR!I13)*10%,0),0),0) -> 4133 | R13: 1530 | U13: 0 | X13: 0 | AA13: 0 | AD13: 0 | AF13: 1530 | AG13: 14690
A14: =IF(D14="","v","") ->  | B14: =IF(control!A14="","",control!A14) -> 6 | C14: =IF(control!C14="","",control!C14) -> Jun-17 | D14: =IF(C14="March-20",control!E14/2,control!E14) -> 48400 | E14: =IFERROR(ROUND(D14*'DATA ENTRY'!F17,0),0) -> 8228 | F14: =IFERROR(ROUND(D14*'DATA ENTRY'!G17,0),0) -> 3872 | G14: 60500 | H14: =control!G14 -> 46500 | I14: =IFERROR(IF(MASTER!$I$14="Fix Pay",0,ROUND(H14*'DATA ENTRY'!L17,0)),0) -> 7905 | J14: =IFERROR(IF(MASTER!$I$14="Fix Pay",0,ROUND(H14*'DATA ENTRY'!M17,0)),0) -> 3720 | K14: 58125 | L14: 1900 | M14: 323 | N14: 152 | O14: 2375 | P14: =IFERROR(IF('DATA ENTRY'!$M$4="YES",ROUND((ARREAR!D14+ARREAR!E14)*10%,0),0),0) -> 5663 | Q14: =IFERROR(IF('DATA ENTRY'!$M$4="YES",ROUND((ARREAR!H14+ARREAR!I14)*10%,0),0),0) -> 5441 | R14: 222 | U14: 0 | X14: 0 | AA14: 0 | AD14: 0 | AF14: 222 | AG14: 2153
A15: =IF(D15="","v","") ->  | B15: =IF(control!A15="","",control!A15) -> 7 | C15: =IF(control!C15="","",control!C15) -> Jul-17 | D15: =control!E15 -> 49900 | E15: =IFERROR(ROUND(D15*'DATA ENTRY'!F18,0),0) -> 8483 | F15: =IFERROR(ROUND(D15*'DATA ENTRY'!G18,0),0) -> 3992 | G15: 62375 | H15: =control!G15 -> 47900 | I15: =IFERROR(IF(MASTER!$I$14="Fix Pay",0,ROUND(H15*'DATA ENTRY'!L18,0)),0) -> 8143 | J15: =IFERROR(IF(MASTER!$I$14="Fix Pay",0,ROUND(H15*'DATA ENTRY'!M18,0)),0) -> 3832 | K15: 59875 | L15: 2000 | M15: 340 | N15: 160 | O15: 2500 | P15: =IFERROR(IF('DATA ENTRY'!$M$4="YES",ROUND((ARREAR!D15+ARREAR!E15)*10%,0),0),0) -> 5838 | Q15: =IFERROR(IF('DATA ENTRY'!$M$4="YES",ROUND((ARREAR!H15+ARREAR!I15)*10%,0),0),0) -> 5604 | R15: 234 | U15: 0 | X15: 0 | AA15: 0 | AD15: 0 | AF15: 234 | AG15: 2266
B16: =IF(control!A16="","",control!A16) -> 8 | C16: =IF(control!C16="","",control!C16) -> Aug-17 | D16: =control!E16 -> 49900 | E16: =IFERROR(ROUND(D16*'DATA ENTRY'!F19,0),0) -> 8483 | F16: =IFERROR(ROUND(D16*'DATA ENTRY'!G19,0),0) -> 3992 | G16: 62375 | H16: =control!G16 -> 47900 | I16: =IFERROR(IF(MASTER!$I$14="Fix Pay",0,ROUND(H16*'DATA ENTRY'!L19,0)),0) -> 8143 | J16: =IFERROR(IF(MASTER!$I$14="Fix Pay",0,ROUND(H16*'DATA ENTRY'!M19,0)),0) -> 3832 | K16: 59875 | L16: 2000 | M16: 340 | N16: 160 | O16: 2500 | P16: =IFERROR(IF('DATA ENTRY'!$M$4="YES",ROUND((ARREAR!D16+ARREAR!E16)*10%,0),0),0) -> 5838 | Q16: =IFERROR(IF('DATA ENTRY'!$M$4="YES",ROUND((ARREAR!H16+ARREAR!I16)*10%,0),0),0) -> 5604 | R16: 234 | U16: 0 | X16: 0 | AA16: 0 | AD16: 0 | AF16: 234 | AG16: 2266
B17: =IF(control!A17="","",control!A17) -> 9 | C17: =IF(control!C17="","",control!C17) -> Sep-17 | D17: =control!E17 -> 49900 | E17: =IFERROR(ROUND(D17*'DATA ENTRY'!F20,0),0) -> 8483 | F17: =IFERROR(ROUND(D17*'DATA ENTRY'!G20,0),0) -> 3992 | G17: 62375 | H17: =control!G17 -> 47900 | I17: =IFERROR(IF(MASTER!$I$14="Fix Pay",0,ROUND(H17*'DATA ENTRY'!L20,0)),0) -> 8143 | J17: =IFERROR(IF(MASTER!$I$14="Fix Pay",0,ROUND(H17*'DATA ENTRY'!M20,0)),0) -> 3832 | K17: 59875 | L17: 2000 | M17: 340 | N17: 160 | O17: 2500 | P17: =IFERROR(IF('DATA ENTRY'!$M$4="YES",ROUND((ARREAR!D17+ARREAR!E17)*10%,0),0),0) -> 5838 | Q17: =IFERROR(IF('DATA ENTRY'!$M$4="YES",ROUND((ARREAR!H17+ARREAR!I17)*10%,0),0),0) -> 5604 | R17: 234 | U17: 0 | X17: 0 | AA17: 0 | AD17: 0 | AF17: 234 | AG17: 2266
B18: =IF(control!A18="","",control!A18) -> 10 | C18: =IF(control!C18="","",control!C18) -> Oct-17 | D18: =control!E18 -> 49900 | E18: =IFERROR(ROUND(D18*'DATA ENTRY'!F21,0),0) -> 8483 | F18: =IFERROR(ROUND(D18*'DATA ENTRY'!G21,0),0) -> 3992 | G18: 62375 | H18: =control!G18 -> 47900 | I18: =IFERROR(IF(MASTER!$I$14="Fix Pay",0,ROUND(H18*'DATA ENTRY'!L21,0)),0) -> 8143 | J18: =IFERROR(IF(MASTER!$I$14="Fix Pay",0,ROUND(H18*'DATA ENTRY'!M21,0)),0) -> 3832 | K18: 59875 | L18: 2000 | M18: 340 | N18: 160 | O18: 2500 | P18: =IFERROR(IF('DATA ENTRY'!$M$4="YES",ROUND((ARREAR!D18+ARREAR!E18)*10%,0),0),0) -> 5838 | Q18: =IFERROR(IF('DATA ENTRY'!$M$4="YES",ROUND((ARREAR!H18+ARREAR!I18)*10%,0),0),0) -> 5604 | R18: 234 | U18: 0 | X18: 0 | AA18: 0 | AD18: 0 | AF18: 234 | AG18: 2266
B19: =IF(control!A19="","",control!A19) -> 11 | C19: =IF(control!C19="","",control!C19) -> Nov-17 | D19: =control!E19 -> 49900 | E19: =IFERROR(ROUND(D19*'DATA ENTRY'!F22,0),0) -> 8483 | F19: =IFERROR(ROUND(D19*'DATA ENTRY'!G22,0),0) -> 3992 | G19: 62375 | H19: =control!G19 -> 47900 | I19: =IFERROR(IF(MASTER!$I$14="Fix Pay",0,ROUND(H19*'DATA ENTRY'!L22,0)),0) -> 8143 | J19: =IFERROR(IF(MASTER!$I$14="Fix Pay",0,ROUND(H19*'DATA ENTRY'!M22,0)),0) -> 3832 | K19: 59875 | L19: 2000 | M19: 340 | N19: 160 | O19: 2500 | P19: =IFERROR(IF('DATA ENTRY'!$M$4="YES",ROUND((ARREAR!D19+ARREAR!E19)*10%,0),0),0) -> 5838 | Q19: =IFERROR(IF('DATA ENTRY'!$M$4="YES",ROUND((ARREAR!H19+ARREAR!I19)*10%,0),0),0) -> 5604 | R19: 234 | U19: 0 | X19: 0 | AA19: 0 | AD19: 0 | AF19: 234 | AG19: 2266
B20: =IF(control!A20="","",control!A20) -> 12 | C20: =IF(control!C20="","",control!C20) -> Dec-17 | D20: =control!E20 -> 49900 | E20: =IFERROR(ROUND(D20*'DATA ENTRY'!F23,0),0) -> 8483 | F20: =IFERROR(ROUND(D20*'DATA ENTRY'!G23,0),0) -> 3992 | G20: 62375 | H20: =control!G20 -> 47900 | I20: =IFERROR(IF(MASTER!$I$14="Fix Pay",0,ROUND(H20*'DATA ENTRY'!L23,0)),0) -> 8143 | J20: =IFERROR(IF(MASTER!$I$14="Fix Pay",0,ROUND(H20*'DATA ENTRY'!M23,0)),0) -> 3832 | K20: 59875 | L20: 2000 | M20: 340 | N20: 160 | O20: 2500 | P20: =IFERROR(IF('DATA ENTRY'!$M$4="YES",ROUND((ARREAR!D20+ARREAR!E20)*10%,0),0),0) -> 5838 | Q20: =IFERROR(IF('DATA ENTRY'!$M$4="YES",ROUND((ARREAR!H20+ARREAR!I20)*10%,0),0),0) -> 5604 | R20: 234 | U20: 0 | X20: 0 | AA20: 0 | AD20: 0 | AF20: 234 | AG20: 2266
B21: =IF(control!A21="","",control!A21) -> 13 | C21: =IF(control!C21="","",control!C21) -> Jan-18 | D21: =control!E21 -> 49900 | E21: =IFERROR(ROUND(D21*'DATA ENTRY'!F24,0),0) -> 8483 | F21: =IFERROR(ROUND(D21*'DATA ENTRY'!G24,0),0) -> 3992 | G21: 62375 | H21: =control!G21 -> 47900 | I21: =IFERROR(IF(MASTER!$I$14="Fix Pay",0,ROUND(H21*'DATA ENTRY'!L24,0)),0) -> 8143 | J21: =IFERROR(IF(MASTER!$I$14="Fix Pay",0,ROUND(H21*'DATA ENTRY'!M24,0)),0) -> 3832 | K21: 59875 | L21: 2000 | M21: 340 | N21: 160 | O21: 2500 | P21: =IFERROR(IF('DATA ENTRY'!$M$4="YES",ROUND((ARREAR!D21+ARREAR!E21)*10%,0),0),0) -> 5838 | Q21: =IFERROR(IF('DATA ENTRY'!$M$4="YES",ROUND((ARREAR!H21+ARREAR!I21)*10%,0),0),0) -> 5604 | R21: 234 | U21: 0 | X21: 0 | AA21: 0 | AD21: 0 | AF21: 234 | AG21: 2266
B22: =IF(control!A22="","",control!A22) -> 14 | C22: =IF(control!C22="","",control!C22) -> Feb-18 | D22: =control!E22 -> 49900 | E22: =IFERROR(ROUND(D22*'DATA ENTRY'!F25,0),0) -> 8483 | F22: =IFERROR(ROUND(D22*'DATA ENTRY'!G25,0),0) -> 3992 | G22: 62375 | H22: =control!G22 -> 47900 | I22: =IFERROR(IF(MASTER!$I$14="Fix Pay",0,ROUND(H22*'DATA ENTRY'!L25,0)),0) -> 8143 | J22: =IFERROR(IF(MASTER!$I$14="Fix Pay",0,ROUND(H22*'DATA ENTRY'!M25,0)),0) -> 3832 | K22: 59875 | L22: 2000 | M22: 340 | N22: 160 | O22: 2500 | P22: =IFERROR(IF('DATA ENTRY'!$M$4="YES",ROUND((ARREAR!D22+ARREAR!E22)*10%,0),0),0) -> 5838 | Q22: =IFERROR(IF('DATA ENTRY'!$M$4="YES",ROUND((ARREAR!H22+ARREAR!I22)*10%,0),0),0) -> 5604 | R22: 234 | U22: 0 | X22: 0 | AA22: 0 | AD22: 0 | AF22: 234 | AG22: 2266
B23: =IF(control!A23="","",control!A23) -> 15 | C23: =IF(control!C23="","",control!C23) -> Mar-18 | D23: =control!E23 -> 49900 | E23: =IFERROR(ROUND(D23*'DATA ENTRY'!F26,0),0) -> 8483 | F23: =IFERROR(ROUND(D23*'DATA ENTRY'!G26,0),0) -> 3992 | G23: 62375 | H23: =control!G23 -> 47900 | I23: =IFERROR(IF(MASTER!$I$14="Fix Pay",0,ROUND(H23*'DATA ENTRY'!L26,0)),0) -> 8143 | J23: =IFERROR(IF(MASTER!$I$14="Fix Pay",0,ROUND(H23*'DATA ENTRY'!M26,0)),0) -> 3832 | K23: 59875 | L23: 2000 | M23: 340 | N23: 160 | O23: 2500 | P23: =IFERROR(IF('DATA ENTRY'!$M$4="YES",ROUND((ARREAR!D23+ARREAR!E23)*10%,0),0),0) -> 5838 | Q23: =IFERROR(IF('DATA ENTRY'!$M$4="YES",ROUND((ARREAR!H23+ARREAR!I23)*10%,0),0),0) -> 5604 | R23: 234 | U23: 0 | X23: 0 | AA23: 0 | AD23: 0 | AF23: 234 | AG23: 2266
B24: =IF(control!A24="","",control!A24) -> 16 | C24: =IF(control!C24="","",control!C24) -> Apr-18 | D24: =control!E24 -> 49900 | E24: =IFERROR(ROUND(D24*'DATA ENTRY'!F27,0),0) -> 8483 | F24: =IFERROR(ROUND(D24*'DATA ENTRY'!G27,0),0) -> 3992 | G24: 62375 | H24: =control!G24 -> 47900 | I24: =IFERROR(IF(MASTER!$I$14="Fix Pay",0,ROUND(H24*'DATA ENTRY'!L27,0)),0) -> 8143 | J24: =IFERROR(IF(MASTER!$I$14="Fix Pay",0,ROUND(H24*'DATA ENTRY'!M27,0)),0) -> 3832 | K24: 59875 | L24: 2000 | M24: 340 | N24: 160 | O24: 2500 | P24: =IFERROR(IF('DATA ENTRY'!$M$4="YES",ROUND((ARREAR!D24+ARREAR!E24)*10%,0),0),0) -> 5838 | Q24: =IFERROR(IF('DATA ENTRY'!$M$4="YES",ROUND((ARREAR!H24+ARREAR!I24)*10%,0),0),0) -> 5604 | R24: 234 | U24: 0 | X24: 0 | AA24: 0 | AD24: 0 | AF24: 234 | AG24: 2266
B25: =IF(control!A25="","",control!A25) -> 17 | C25: =IF(control!C25="","",control!C25) -> May-18 | D25: =control!E25 -> 49900 | E25: =IFERROR(ROUND(D25*'DATA ENTRY'!F28,0),0) -> 8483 | F25: =IFERROR(ROUND(D25*'DATA ENTRY'!G28,0),0) -> 3992 | G25: 62375 | H25: =control!G25 -> 47900 | I25: =IFERROR(IF(MASTER!$I$14="Fix Pay",0,ROUND(H25*'DATA ENTRY'!L28,0)),0) -> 8143 | J25: =IFERROR(IF(MASTER!$I$14="Fix Pay",0,ROUND(H25*'DATA ENTRY'!M28,0)),0) -> 3832 | K25: 59875 | L25: 2000 | M25: 340 | N25: 160 | O25: 2500 | P25: =IFERROR(IF('DATA ENTRY'!$M$4="YES",ROUND((ARREAR!D25+ARREAR!E25)*10%,0),0),0) -> 5838 | Q25: =IFERROR(IF('DATA ENTRY'!$M$4="YES",ROUND((ARREAR!H25+ARREAR!I25)*10%,0),0),0) -> 5604 | R25: 234 | U25: 0 | X25: 0 | AA25: 0 | AD25: 0 | AF25: 234 | AG25: 2266
B26: =IF(control!A26="","",control!A26) -> 18 | C26: =IF(control!C26="","",control!C26) -> Jun-18 | D26: =control!E26 -> 49900 | E26: =IFERROR(ROUND(D26*'DATA ENTRY'!F29,0),0) -> 8483 | F26: =IFERROR(ROUND(D26*'DATA ENTRY'!G29,0),0) -> 3992 | G26: 62375 | H26: =control!G26 -> 47900 | I26: =IFERROR(IF(MASTER!$I$14="Fix Pay",0,ROUND(H26*'DATA ENTRY'!L29,0)),0) -> 8143 | J26: =IFERROR(IF(MASTER!$I$14="Fix Pay",0,ROUND(H26*'DATA ENTRY'!M29,0)),0) -> 3832 | K26: 59875 | L26: 2000 | M26: 340 | N26: 160 | O26: 2500 | P26: =IFERROR(IF('DATA ENTRY'!$M$4="YES",ROUND((ARREAR!D26+ARREAR!E26)*10%,0),0),0) -> 5838 | Q26: =IFERROR(IF('DATA ENTRY'!$M$4="YES",ROUND((ARREAR!H26+ARREAR!I26)*10%,0),0),0) -> 5604 | R26: 234 | U26: 0 | X26: 0 | AA26: 0 | AD26: 0 | AF26: 234 | AG26: 2266
B27: =IF(control!A27="","",control!A27) -> 19 | C27: =IF(control!C27="","",control!C27) -> Jul-18 | D27: =control!E27 -> 51400 | E27: =IFERROR(ROUND(D27*'DATA ENTRY'!F30,0),0) -> 8738 | F27: =IFERROR(ROUND(D27*'DATA ENTRY'!G30,0),0) -> 4112 | G27: 64250 | H27: =control!G27 -> 49300 | I27: =IFERROR(IF(MASTER!$I$14="Fix Pay",0,ROUND(H27*'DATA ENTRY'!L30,0)),0) -> 8381 | J27: =IFERROR(IF(MASTER!$I$14="Fix Pay",0,ROUND(H27*'DATA ENTRY'!M30,0)),0) -> 3944 | K27: 61625 | L27: 2100 | M27: 357 | N27: 168 | O27: 2625 | P27: =IFERROR(IF('DATA ENTRY'!$M$4="YES",ROUND((ARREAR!D27+ARREAR!E27)*10%,0),0),0) -> 6014 | Q27: =IFERROR(IF('DATA ENTRY'!$M$4="YES",ROUND((ARREAR!H27+ARREAR!I27)*10%,0),0),0) -> 5768 | R27: 246 | U27: 0 | X27: 0 | AA27: 0 | AD27: 0 | AF27: 246 | AG27: 2379
B28: =IF(control!A28="","",control!A28) -> 20 | C28: =IF(control!C28="","",control!C28) -> Aug-18 | D28: =control!E28 -> 51400 | E28: =IFERROR(ROUND(D28*'DATA ENTRY'!F31,0),0) -> 8738 | F28: =IFERROR(ROUND(D28*'DATA ENTRY'!G31,0),0) -> 4112 | G28: 64250 | H28: =control!G28 -> 49300 | I28: =IFERROR(IF(MASTER!$I$14="Fix Pay",0,ROUND(H28*'DATA ENTRY'!L31,0)),0) -> 8381 | J28: =IFERROR(IF(MASTER!$I$14="Fix Pay",0,ROUND(H28*'DATA ENTRY'!M31,0)),0) -> 3944 | K28: 61625 | L28: 2100 | M28: 357 | N28: 168 | O28: 2625 | P28: =IFERROR(IF('DATA ENTRY'!$M$4="YES",ROUND((ARREAR!D28+ARREAR!E28)*10%,0),0),0) -> 6014 | Q28: =IFERROR(IF('DATA ENTRY'!$M$4="YES",ROUND((ARREAR!H28+ARREAR!I28)*10%,0),0),0) -> 5768 | R28: 246 | U28: 0 | X28: 0 | AA28: 0 | AD28: 0 | AF28: 246 | AG28: 2379
B29: =IF(control!A29="","",control!A29) -> 21 | C29: =IF(control!C29="","",control!C29) -> Sep-18 | D29: =control!E29 -> 51400 | E29: =IFERROR(ROUND(D29*'DATA ENTRY'!F32,0),0) -> 8738 | F29: =IFERROR(ROUND(D29*'DATA ENTRY'!G32,0),0) -> 4112 | G29: 64250 | H29: =control!G29 -> 49300 | I29: =IFERROR(IF(MASTER!$I$14="Fix Pay",0,ROUND(H29*'DATA ENTRY'!L32,0)),0) -> 8381 | J29: =IFERROR(IF(MASTER!$I$14="Fix Pay",0,ROUND(H29*'DATA ENTRY'!M32,0)),0) -> 3944 | K29: 61625 | L29: 2100 | M29: 357 | N29: 168 | O29: 2625 | P29: =IFERROR(IF('DATA ENTRY'!$M$4="YES",ROUND((ARREAR!D29+ARREAR!E29)*10%,0),0),0) -> 6014 | Q29: =IFERROR(IF('DATA ENTRY'!$M$4="YES",ROUND((ARREAR!H29+ARREAR!I29)*10%,0),0),0) -> 5768 | R29: 246 | U29: 0 | X29: 0 | AA29: 0 | AD29: 0 | AF29: 246 | AG29: 2379
B30: =IF(control!A30="","",control!A30) -> 22 | C30: =IF(control!C30="","",control!C30) -> Oct-18 | D30: =control!E30 -> 51400 | E30: =IFERROR(ROUND(D30*'DATA ENTRY'!F33,0),0) -> 8738 | F30: =IFERROR(ROUND(D30*'DATA ENTRY'!G33,0),0) -> 4112 | G30: 64250 | H30: =control!G30 -> 49300 | I30: =IFERROR(IF(MASTER!$I$14="Fix Pay",0,ROUND(H30*'DATA ENTRY'!L33,0)),0) -> 8381 | J30: =IFERROR(IF(MASTER!$I$14="Fix Pay",0,ROUND(H30*'DATA ENTRY'!M33,0)),0) -> 3944 | K30: 61625 | L30: 2100 | M30: 357 | N30: 168 | O30: 2625 | P30: =IFERROR(IF('DATA ENTRY'!$M$4="YES",ROUND((ARREAR!D30+ARREAR!E30)*10%,0),0),0) -> 6014 | Q30: =IFERROR(IF('DATA ENTRY'!$M$4="YES",ROUND((ARREAR!H30+ARREAR!I30)*10%,0),0),0) -> 5768 | R30: 246 | U30: 0 | X30: 0 | AA30: 0 | AD30: 0 | AF30: 246 | AG30: 2379
B31: =IF(control!A31="","",control!A31) -> 23 | C31: =IF(control!C31="","",control!C31) -> Nov-18 | D31: =control!E31 -> 51400 | E31: =IFERROR(ROUND(D31*'DATA ENTRY'!F34,0),0) -> 8738 | F31: =IFERROR(ROUND(D31*'DATA ENTRY'!G34,0),0) -> 4112 | G31: 64250 | H31: =control!G31 -> 49300 | I31: =IFERROR(IF(MASTER!$I$14="Fix Pay",0,ROUND(H31*'DATA ENTRY'!L34,0)),0) -> 8381 | J31: =IFERROR(IF(MASTER!$I$14="Fix Pay",0,ROUND(H31*'DATA ENTRY'!M34,0)),0) -> 3944 | K31: 61625 | L31: 2100 | M31: 357 | N31: 168 | O31: 2625 | P31: =IFERROR(IF('DATA ENTRY'!$M$4="YES",ROUND((ARREAR!D31+ARREAR!E31)*10%,0),0),0) -> 6014 | Q31: =IFERROR(IF('DATA ENTRY'!$M$4="YES",ROUND((ARREAR!H31+ARREAR!I31)*10%,0),0),0) -> 5768 | R31: 246 | U31: 0 | X31: 0 | AA31: 0 | AD31: 0 | AF31: 246 | AG31: 2379
B32: =IF(control!A32="","",control!A32) -> 24 | C32: =IF(control!C32="","",control!C32) -> Dec-18 | D32: =control!E32 -> 51400 | E32: =IFERROR(ROUND(D32*'DATA ENTRY'!F35,0),0) -> 8738 | F32: =IFERROR(ROUND(D32*'DATA ENTRY'!G35,0),0) -> 4112 | G32: 64250 | H32: =control!G32 -> 49300 | I32: =IFERROR(IF(MASTER!$I$14="Fix Pay",0,ROUND(H32*'DATA ENTRY'!L35,0)),0) -> 8381 | J32: =IFERROR(IF(MASTER!$I$14="Fix Pay",0,ROUND(H32*'DATA ENTRY'!M35,0)),0) -> 3944 | K32: 61625 | L32: 2100 | M32: 357 | N32: 168 | O32: 2625 | P32: =IFERROR(IF('DATA ENTRY'!$M$4="YES",ROUND((ARREAR!D32+ARREAR!E32)*10%,0),0),0) -> 6014 | Q32: =IFERROR(IF('DATA ENTRY'!$M$4="YES",ROUND((ARREAR!H32+ARREAR!I32)*10%,0),0),0) -> 5768 | R32: 246 | U32: 0 | X32: 0 | AA32: 0 | AD32: 0 | AF32: 246 | AG32: 2379
B33: =IF(control!A33="","",control!A33) -> 25 | C33: =IF(control!C33="","",control!C33) -> Jan-19 | D33: =control!E33 -> 51400 | E33: =IFERROR(ROUND(D33*'DATA ENTRY'!F36,0),0) -> 8738 | F33: =IFERROR(ROUND(D33*'DATA ENTRY'!G36,0),0) -> 4112 | G33: =IFERROR(D33+E33+F33,0) -> 64250 | H33: =control!G33 -> 49300 | I33: =IFERROR(IF(MASTER!$I$14="Fix Pay",0,ROUND(H33*'DATA ENTRY'!L36,0)),0) -> 8381 | J33: =IFERROR(IF(MASTER!$I$14="Fix Pay",0,ROUND(H33*'DATA ENTRY'!M36,0)),0) -> 3944 | K33: =IFERROR(H33+I33+J33,0) -> 61625 | L33: =IFERROR(D33-H33,0) -> 2100 | M33: =IFERROR(E33-I33,0) -> 357 | N33: =IFERROR(F33-J33,0) -> 168 | O33: =IFERROR(L33+M33+N33,0) -> 2625 | P33: =IFERROR(IF('DATA ENTRY'!$M$4="YES",ROUND((ARREAR!D33+ARREAR!E33)*10%,0),0),0) -> 6014 | Q33: =IFERROR(IF('DATA ENTRY'!$M$4="YES",ROUND((ARREAR!H33+ARREAR!I33)*10%,0),0),0) -> 5768 | R33: =IFERROR(P33-Q33,0) -> 246 | U33: =IFERROR(S33-T33,0) -> 0 | X33: =IFERROR(V33-W33,0) -> 0 | AA33: =IFERROR(Y33-Z33,0) -> 0 | AD33: =IFERROR(AB33-AC33,0) -> 0 | AF33: 246 | AG33: =O33-AF33 -> 2379
B34: =IF(control!A34="","",control!A34) -> 26 | C34: =IF(control!C34="","",control!C34) -> Feb-19 | D34: =control!E34 -> 51400 | E34: =IFERROR(ROUND(D34*'DATA ENTRY'!F37,0),0) -> 8738 | F34: =IFERROR(ROUND(D34*'DATA ENTRY'!G37,0),0) -> 4112 | G34: 64250 | H34: =control!G34 -> 49300 | I34: =IFERROR(IF(MASTER!$I$14="Fix Pay",0,ROUND(H34*'DATA ENTRY'!L37,0)),0) -> 8381 | J34: =IFERROR(IF(MASTER!$I$14="Fix Pay",0,ROUND(H34*'DATA ENTRY'!M37,0)),0) -> 3944 | K34: 61625 | L34: 2100 | M34: 357 | N34: 168 | O34: 2625 | P34: =IFERROR(IF('DATA ENTRY'!$M$4="YES",ROUND((ARREAR!D34+ARREAR!E34)*10%,0),0),0) -> 6014 | Q34: =IFERROR(IF('DATA ENTRY'!$M$4="YES",ROUND((ARREAR!H34+ARREAR!I34)*10%,0),0),0) -> 5768 | R34: 246 | U34: 0 | X34: 0 | AA34: 0 | AD34: 0 | AF34: 246 | AG34: 2379
B35: =IF(control!A35="","",control!A35) -> 27 | C35: =IF(control!C35="","",control!C35) -> Mar-19 | D35: =control!E35 -> 51400 | E35: =IFERROR(ROUND(D35*'DATA ENTRY'!F38,0),0) -> 8738 | F35: =IFERROR(ROUND(D35*'DATA ENTRY'!G38,0),0) -> 4112 | G35: 64250 | H35: =control!G35 -> 49300 | I35: =IFERROR(IF(MASTER!$I$14="Fix Pay",0,ROUND(H35*'DATA ENTRY'!L38,0)),0) -> 8381 | J35: =IFERROR(IF(MASTER!$I$14="Fix Pay",0,ROUND(H35*'DATA ENTRY'!M38,0)),0) -> 3944 | K35: 61625 | L35: 2100 | M35: 357 | N35: 168 | O35: 2625 | P35: =IFERROR(IF('DATA ENTRY'!$M$4="YES",ROUND((ARREAR!D35+ARREAR!E35)*10%,0),0),0) -> 6014 | Q35: =IFERROR(IF('DATA ENTRY'!$M$4="YES",ROUND((ARREAR!H35+ARREAR!I35)*10%,0),0),0) -> 5768 | R35: 246 | U35: 0 | X35: 0 | AA35: 0 | AD35: 0 | AF35: 246 | AG35: 2379
B36: =IF(control!A36="","",control!A36) -> 28 | C36: =IF(control!C36="","",control!C36) -> Apr-19 | D36: =control!E36 -> 51400 | E36: =IFERROR(ROUND(D36*'DATA ENTRY'!F39,0),0) -> 8738 | F36: =IFERROR(ROUND(D36*'DATA ENTRY'!G39,0),0) -> 4112 | G36: 64250 | H36: =control!G36 -> 49300 | I36: =IFERROR(IF(MASTER!$I$14="Fix Pay",0,ROUND(H36*'DATA ENTRY'!L39,0)),0) -> 8381 | J36: =IFERROR(IF(MASTER!$I$14="Fix Pay",0,ROUND(H36*'DATA ENTRY'!M39,0)),0) -> 3944 | K36: 61625 | L36: 2100 | M36: 357 | N36: 168 | O36: 2625 | P36: =IFERROR(IF('DATA ENTRY'!$M$4="YES",ROUND((ARREAR!D36+ARREAR!E36)*10%,0),0),0) -> 6014 | Q36: =IFERROR(IF('DATA ENTRY'!$M$4="YES",ROUND((ARREAR!H36+ARREAR!I36)*10%,0),0),0) -> 5768 | R36: 246 | U36: 0 | X36: 0 | AA36: 0 | AD36: 0 | AF36: 246 | AG36: 2379
B37: =IF(control!A37="","",control!A37) -> 29 | C37: =IF(control!C37="","",control!C37) -> May-19 | D37: =control!E37 -> 51400 | E37: =IFERROR(ROUND(D37*'DATA ENTRY'!F40,0),0) -> 8738 | F37: =IFERROR(ROUND(D37*'DATA ENTRY'!G40,0),0) -> 4112 | G37: 64250 | H37: =control!G37 -> 49300 | I37: =IFERROR(IF(MASTER!$I$14="Fix Pay",0,ROUND(H37*'DATA ENTRY'!L40,0)),0) -> 8381 | J37: =IFERROR(IF(MASTER!$I$14="Fix Pay",0,ROUND(H37*'DATA ENTRY'!M40,0)),0) -> 3944 | K37: 61625 | L37: 2100 | M37: 357 | N37: 168 | O37: 2625 | P37: =IFERROR(IF('DATA ENTRY'!$M$4="YES",ROUND((ARREAR!D37+ARREAR!E37)*10%,0),0),0) -> 6014 | Q37: =IFERROR(IF('DATA ENTRY'!$M$4="YES",ROUND((ARREAR!H37+ARREAR!I37)*10%,0),0),0) -> 5768 | R37: 246 | U37: 0 | X37: 0 | AA37: 0 | AD37: 0 | AF37: 246 | AG37: 2379
B38: =IF(control!A38="","",control!A38) -> 30 | C38: =IF(control!C38="","",control!C38) -> Jun-19 | D38: =control!E38 -> 51400 | E38: =IFERROR(ROUND(D38*'DATA ENTRY'!F41,0),0) -> 8738 | F38: =IFERROR(ROUND(D38*'DATA ENTRY'!G41,0),0) -> 4112 | G38: 64250 | H38: =control!G38 -> 49300 | I38: =IFERROR(IF(MASTER!$I$14="Fix Pay",0,ROUND(H38*'DATA ENTRY'!L41,0)),0) -> 8381 | J38: =IFERROR(IF(MASTER!$I$14="Fix Pay",0,ROUND(H38*'DATA ENTRY'!M41,0)),0) -> 3944 | K38: 61625 | L38: 2100 | M38: 357 | N38: 168 | O38: 2625 | P38: =IFERROR(IF('DATA ENTRY'!$M$4="YES",ROUND((ARREAR!D38+ARREAR!E38)*10%,0),0),0) -> 6014 | Q38: =IFERROR(IF('DATA ENTRY'!$M$4="YES",ROUND((ARREAR!H38+ARREAR!I38)*10%,0),0),0) -> 5768 | R38: 246 | U38: 0 | X38: 0 | AA38: 0 | AD38: 0 | AF38: 246 | AG38: 2379
B39: =IF(control!A39="","",control!A39) -> 31 | C39: =IF(control!C39="","",control!C39) -> Jul-19 | D39: =control!E39 -> 52900 | E39: =IFERROR(ROUND(D39*'DATA ENTRY'!F42,0),0) -> 8993 | F39: =IFERROR(ROUND(D39*'DATA ENTRY'!G42,0),0) -> 4232 | G39: 66125 | H39: =control!G39 -> 50800 | I39: =IFERROR(IF(MASTER!$I$14="Fix Pay",0,ROUND(H39*'DATA ENTRY'!L42,0)),0) -> 8636 | J39: =IFERROR(IF(MASTER!$I$14="Fix Pay",0,ROUND(H39*'DATA ENTRY'!M42,0)),0) -> 4064 | K39: 63500 | L39: 2100 | M39: 357 | N39: 168 | O39: 2625 | P39: =IFERROR(IF('DATA ENTRY'!$M$4="YES",ROUND((ARREAR!D39+ARREAR!E39)*10%,0),0),0) -> 6189 | Q39: =IFERROR(IF('DATA ENTRY'!$M$4="YES",ROUND((ARREAR!H39+ARREAR!I39)*10%,0),0),0) -> 5944 | R39: 245 | U39: 0 | X39: 0 | AA39: 0 | AD39: 0 | AF39: 245 | AG39: 2380
B40: =IF(control!A40="","",control!A40) -> 32 | C40: =IF(control!C40="","",control!C40) -> Aug-19 | D40: =control!E40 -> 52900 | E40: =IFERROR(ROUND(D40*'DATA ENTRY'!F43,0),0) -> 8993 | F40: =IFERROR(ROUND(D40*'DATA ENTRY'!G43,0),0) -> 4232 | G40: 66125 | H40: =control!G40 -> 50800 | I40: =IFERROR(IF(MASTER!$I$14="Fix Pay",0,ROUND(H40*'DATA ENTRY'!L43,0)),0) -> 8636 | J40: =IFERROR(IF(MASTER!$I$14="Fix Pay",0,ROUND(H40*'DATA ENTRY'!M43,0)),0) -> 4064 | K40: 63500 | L40: 2100 | M40: 357 | N40: 168 | O40: 2625 | P40: =IFERROR(IF('DATA ENTRY'!$M$4="YES",ROUND((ARREAR!D40+ARREAR!E40)*10%,0),0),0) -> 6189 | Q40: =IFERROR(IF('DATA ENTRY'!$M$4="YES",ROUND((ARREAR!H40+ARREAR!I40)*10%,0),0),0) -> 5944 | R40: 245 | U40: 0 | X40: 0 | AA40: 0 | AD40: 0 | AF40: 245 | AG40: 2380
B41: =IF(control!A41="","",control!A41) -> 33 | C41: =IF(control!C41="","",control!C41) -> Sep-19 | D41: =control!E41 -> 52900 | E41: =IFERROR(ROUND(D41*'DATA ENTRY'!F44,0),0) -> 8993 | F41: =IFERROR(ROUND(D41*'DATA ENTRY'!G44,0),0) -> 4232 | G41: 66125 | H41: =control!G41 -> 50800 | I41: =IFERROR(IF(MASTER!$I$14="Fix Pay",0,ROUND(H41*'DATA ENTRY'!L44,0)),0) -> 8636 | J41: =IFERROR(IF(MASTER!$I$14="Fix Pay",0,ROUND(H41*'DATA ENTRY'!M44,0)),0) -> 4064 | K41: 63500 | L41: 2100 | M41: 357 | N41: 168 | O41: 2625 | P41: =IFERROR(IF('DATA ENTRY'!$M$4="YES",ROUND((ARREAR!D41+ARREAR!E41)*10%,0),0),0) -> 6189 | Q41: =IFERROR(IF('DATA ENTRY'!$M$4="YES",ROUND((ARREAR!H41+ARREAR!I41)*10%,0),0),0) -> 5944 | R41: 245 | U41: 0 | X41: 0 | AA41: 0 | AD41: 0 | AF41: 245 | AG41: 2380
B42: =IF(control!A42="","",control!A42) -> 34 | C42: =IF(control!C42="","",control!C42) -> Oct-19 | D42: =control!E42 -> 52900 | E42: =IFERROR(ROUND(D42*'DATA ENTRY'!F45,0),0) -> 8993 | F42: =IFERROR(ROUND(D42*'DATA ENTRY'!G45,0),0) -> 4232 | G42: 66125 | H42: =control!G42 -> 50800 | I42: =IFERROR(IF(MASTER!$I$14="Fix Pay",0,ROUND(H42*'DATA ENTRY'!L45,0)),0) -> 8636 | J42: =IFERROR(IF(MASTER!$I$14="Fix Pay",0,ROUND(H42*'DATA ENTRY'!M45,0)),0) -> 4064 | K42: 63500 | L42: 2100 | M42: 357 | N42: 168 | O42: 2625 | P42: =IFERROR(IF('DATA ENTRY'!$M$4="YES",ROUND((ARREAR!D42+ARREAR!E42)*10%,0),0),0) -> 6189 | Q42: =IFERROR(IF('DATA ENTRY'!$M$4="YES",ROUND((ARREAR!H42+ARREAR!I42)*10%,0),0),0) -> 5944 | R42: 245 | U42: 0 | X42: 0 | AA42: 0 | AD42: 0 | AF42: 245 | AG42: 2380
B43: =IF(control!A43="","",control!A43) -> 35 | C43: =IF(control!C43="","",control!C43) -> Nov-19 | D43: =control!E43 -> 52900 | E43: =IFERROR(ROUND(D43*'DATA ENTRY'!F46,0),0) -> 8993 | F43: =IFERROR(ROUND(D43*'DATA ENTRY'!G46,0),0) -> 4232 | G43: 66125 | H43: =control!G43 -> 50800 | I43: =IFERROR(IF(MASTER!$I$14="Fix Pay",0,ROUND(H43*'DATA ENTRY'!L46,0)),0) -> 8636 | J43: =IFERROR(IF(MASTER!$I$14="Fix Pay",0,ROUND(H43*'DATA ENTRY'!M46,0)),0) -> 4064 | K43: 63500 | L43: 2100 | M43: 357 | N43: 168 | O43: 2625 | P43: =IFERROR(IF('DATA ENTRY'!$M$4="YES",ROUND((ARREAR!D43+ARREAR!E43)*10%,0),0),0) -> 6189 | Q43: =IFERROR(IF('DATA ENTRY'!$M$4="YES",ROUND((ARREAR!H43+ARREAR!I43)*10%,0),0),0) -> 5944 | R43: 245 | U43: 0 | X43: 0 | AA43: 0 | AD43: 0 | AF43: 245 | AG43: 2380
B44: =IF(control!A44="","",control!A44) -> 36 | C44: =IF(control!C44="","",control!C44) -> Dec-19 | D44: =control!E44 -> 52900 | E44: =IFERROR(ROUND(D44*'DATA ENTRY'!F47,0),0) -> 8993 | F44: =IFERROR(ROUND(D44*'DATA ENTRY'!G47,0),0) -> 4232 | G44: =IFERROR(D44+E44+F44,0) -> 66125 | H44: =control!G44 -> 50800 | I44: =IFERROR(IF(MASTER!$I$14="Fix Pay",0,ROUND(H44*'DATA ENTRY'!L47,0)),0) -> 8636 | J44: =IFERROR(IF(MASTER!$I$14="Fix Pay",0,ROUND(H44*'DATA ENTRY'!M47,0)),0) -> 4064 | K44: =IFERROR(H44+I44+J44,0) -> 63500 | L44: =IFERROR(D44-H44,0) -> 2100 | M44: =IFERROR(E44-I44,0) -> 357 | N44: =IFERROR(F44-J44,0) -> 168 | O44: =IFERROR(L44+M44+N44,0) -> 2625 | P44: =IFERROR(IF('DATA ENTRY'!$M$4="YES",ROUND((ARREAR!D44+ARREAR!E44)*10%,0),0),0) -> 6189 | Q44: =IFERROR(IF('DATA ENTRY'!$M$4="YES",ROUND((ARREAR!H44+ARREAR!I44)*10%,0),0),0) -> 5944 | R44: =IFERROR(P44-Q44,0) -> 245 | U44: =IFERROR(S44-T44,0) -> 0 | X44: =IFERROR(V44-W44,0) -> 0 | AA44: =IFERROR(Y44-Z44,0) -> 0 | AD44: =IFERROR(AB44-AC44,0) -> 0 | AF44: 245 | AG44: =O44-AF44 -> 2380
B45: =IF(control!A45="","",control!A45) -> 37 | C45: =IF(control!C45="","",control!C45) -> Jan-20 | D45: =control!E45 -> 52900 | E45: =IFERROR(ROUND(D45*'DATA ENTRY'!F48,0),0) -> 8993 | F45: =IFERROR(ROUND(D45*'DATA ENTRY'!G48,0),0) -> 4232 | G45: =IFERROR(D45+E45+F45,0) -> 66125 | H45: =control!G45 -> 50800 | I45: =IFERROR(IF(MASTER!$I$14="Fix Pay",0,ROUND(H45*'DATA ENTRY'!L48,0)),0) -> 8636 | J45: =IFERROR(IF(MASTER!$I$14="Fix Pay",0,ROUND(H45*'DATA ENTRY'!M48,0)),0) -> 4064 | K45: =IFERROR(H45+I45+J45,0) -> 63500 | L45: =IFERROR(D45-H45,0) -> 2100 | M45: =IFERROR(E45-I45,0) -> 357 | N45: =IFERROR(F45-J45,0) -> 168 | O45: =IFERROR(L45+M45+N45,0) -> 2625 | P45: =IFERROR(IF('DATA ENTRY'!$M$4="YES",ROUND((ARREAR!D45+ARREAR!E45)*10%,0),0),0) -> 6189 | Q45: =IFERROR(IF('DATA ENTRY'!$M$4="YES",ROUND((ARREAR!H45+ARREAR!I45)*10%,0),0),0) -> 5944 | R45: =IFERROR(P45-Q45,0) -> 245 | U45: =IFERROR(S45-T45,0) -> 0 | X45: =IFERROR(V45-W45,0) -> 0 | AA45: =IFERROR(Y45-Z45,0) -> 0 | AD45: =IFERROR(AB45-AC45,0) -> 0 | AF45: 245 | AG45: =O45-AF45 -> 2380
B46: =IF(control!A46="","",control!A46) -> 38 | C46: =IF(control!C46="","",control!C46) -> Feb-20 | D46: =control!E46 -> 52900 | E46: =IFERROR(ROUND(D46*'DATA ENTRY'!F49,0),0) -> 8993 | F46: =IFERROR(ROUND(D46*'DATA ENTRY'!G49,0),0) -> 4232 | G46: 66125 | H46: =control!G46 -> 50800 | I46: =IFERROR(IF(MASTER!$I$14="Fix Pay",0,ROUND(H46*'DATA ENTRY'!L49,0)),0) -> 8636 | J46: =IFERROR(IF(MASTER!$I$14="Fix Pay",0,ROUND(H46*'DATA ENTRY'!M49,0)),0) -> 4064 | K46: 63500 | L46: 2100 | M46: 357 | N46: 168 | O46: 2625 | P46: =IFERROR(IF('DATA ENTRY'!$M$4="YES",ROUND((ARREAR!D46+ARREAR!E46)*10%,0),0),0) -> 6189 | Q46: =IFERROR(IF('DATA ENTRY'!$M$4="YES",ROUND((ARREAR!H46+ARREAR!I46)*10%,0),0),0) -> 5944 | R46: 245 | U46: 0 | X46: 0 | AA46: 0 | AD46: 0 | AF46: 245 | AG46: 2380
B47: =IF(control!A47="","",control!A47) -> 39 | C47: =IF(control!C47="","",control!C47) -> Mar-20 | D47: =control!E47 -> 52900 | E47: =IFERROR(ROUND(D47*'DATA ENTRY'!F50,0),0) -> 8993 | F47: =IFERROR(ROUND(D47*'DATA ENTRY'!G50,0),0) -> 4232 | G47: 66125 | H47: =control!G47 -> 50800 | I47: =IFERROR(IF(MASTER!$I$14="Fix Pay",0,ROUND(H47*'DATA ENTRY'!L50,0)),0) -> 8636 | J47: =IFERROR(IF(MASTER!$I$14="Fix Pay",0,ROUND(H47*'DATA ENTRY'!M50,0)),0) -> 4064 | K47: 63500 | L47: 2100 | M47: 357 | N47: 168 | O47: 2625 | P47: =IFERROR(IF('DATA ENTRY'!$M$4="YES",ROUND((ARREAR!D47+ARREAR!E47)*10%,0),0),0) -> 6189 | Q47: =IFERROR(IF('DATA ENTRY'!$M$4="YES",ROUND((ARREAR!H47+ARREAR!I47)*10%,0),0),0) -> 5944 | R47: 245 | U47: 0 | X47: 0 | AA47: 0 | AD47: 0 | AF47: 245 | AG47: 2380
B48: =IF(control!A48="","",control!A48) -> 40 | C48: =IF(control!C48="","",control!C48) -> Apr-20 | D48: =control!E48 -> 52900 | E48: =IFERROR(ROUND(D48*'DATA ENTRY'!F51,0),0) -> 8993 | F48: =IFERROR(ROUND(D48*'DATA ENTRY'!G51,0),0) -> 4232 | G48: 66125 | H48: =control!G48 -> 50800 | I48: =IFERROR(IF(MASTER!$I$14="Fix Pay",0,ROUND(H48*'DATA ENTRY'!L51,0)),0) -> 8636 | J48: =IFERROR(IF(MASTER!$I$14="Fix Pay",0,ROUND(H48*'DATA ENTRY'!M51,0)),0) -> 4064 | K48: 63500 | L48: 2100 | M48: 357 | N48: 168 | O48: 2625 | P48: =IFERROR(IF('DATA ENTRY'!$M$4="YES",ROUND((ARREAR!D48+ARREAR!E48)*10%,0),0),0) -> 6189 | Q48: =IFERROR(IF('DATA ENTRY'!$M$4="YES",ROUND((ARREAR!H48+ARREAR!I48)*10%,0),0),0) -> 5944 | R48: 245 | U48: 0 | X48: 0 | AA48: 0 | AD48: 0 | AF48: 245 | AG48: 2380
B49: =IF(control!A49="","",control!A49) -> 41 | C49: =IF(control!C49="","",control!C49) -> May-20 | D49: =control!E49 -> 52900 | E49: =IFERROR(ROUND(D49*'DATA ENTRY'!F52,0),0) -> 8993 | F49: =IFERROR(ROUND(D49*'DATA ENTRY'!G52,0),0) -> 4232 | G49: 66125 | H49: =control!G49 -> 50800 | I49: =IFERROR(IF(MASTER!$I$14="Fix Pay",0,ROUND(H49*'DATA ENTRY'!L52,0)),0) -> 8636 | J49: =IFERROR(IF(MASTER!$I$14="Fix Pay",0,ROUND(H49*'DATA ENTRY'!M52,0)),0) -> 4064 | K49: 63500 | L49: 2100 | M49: 357 | N49: 168 | O49: 2625 | P49: =IFERROR(IF('DATA ENTRY'!$M$4="YES",ROUND((ARREAR!D49+ARREAR!E49)*10%,0),0),0) -> 6189 | Q49: =IFERROR(IF('DATA ENTRY'!$M$4="YES",ROUND((ARREAR!H49+ARREAR!I49)*10%,0),0),0) -> 5944 | R49: 245 | U49: 0 | X49: 0 | AA49: 0 | AD49: 0 | AF49: 245 | AG49: 2380
B50: =IF(control!A50="","",control!A50) -> 42 | C50: =IF(control!C50="","",control!C50) -> Jun-20 | D50: =control!E50 -> 52900 | E50: =IFERROR(ROUND(D50*'DATA ENTRY'!F53,0),0) -> 8993 | F50: =IFERROR(ROUND(D50*'DATA ENTRY'!G53,0),0) -> 4232 | G50: 66125 | H50: =control!G50 -> 50800 | I50: =IFERROR(IF(MASTER!$I$14="Fix Pay",0,ROUND(H50*'DATA ENTRY'!L53,0)),0) -> 8636 | J50: =IFERROR(IF(MASTER!$I$14="Fix Pay",0,ROUND(H50*'DATA ENTRY'!M53,0)),0) -> 4064 | K50: 63500 | L50: 2100 | M50: 357 | N50: 168 | O50: 2625 | P50: =IFERROR(IF('DATA ENTRY'!$M$4="YES",ROUND((ARREAR!D50+ARREAR!E50)*10%,0),0),0) -> 6189 | Q50: =IFERROR(IF('DATA ENTRY'!$M$4="YES",ROUND((ARREAR!H50+ARREAR!I50)*10%,0),0),0) -> 5944 | R50: 245 | U50: 0 | X50: 0 | AA50: 0 | AD50: 0 | AF50: 245 | AG50: 2380
B51: =IF(control!A51="","",control!A51) -> 43 | C51: =IF(control!C51="","",control!C51) -> Jul-20 | D51: =control!E51 -> 54500 | E51: =IFERROR(ROUND(D51*'DATA ENTRY'!F54,0),0) -> 9265 | F51: =IFERROR(ROUND(D51*'DATA ENTRY'!G54,0),0) -> 4360 | G51: 68125 | H51: =control!G51 -> 52300 | I51: =IFERROR(IF(MASTER!$I$14="Fix Pay",0,ROUND(H51*'DATA ENTRY'!L54,0)),0) -> 8891 | J51: =IFERROR(IF(MASTER!$I$14="Fix Pay",0,ROUND(H51*'DATA ENTRY'!M54,0)),0) -> 4184 | K51: 65375 | L51: 2200 | M51: 374 | N51: 176 | O51: 2750 | P51: =IFERROR(IF('DATA ENTRY'!$M$4="YES",ROUND((ARREAR!D51+ARREAR!E51)*10%,0),0),0) -> 6377 | Q51: =IFERROR(IF('DATA ENTRY'!$M$4="YES",ROUND((ARREAR!H51+ARREAR!I51)*10%,0),0),0) -> 6119 | R51: 258 | U51: 0 | X51: 0 | AA51: 0 | AD51: 0 | AF51: 258 | AG51: 2492
B52: =IF(control!A52="","",control!A52) -> 44 | C52: =IF(control!C52="","",control!C52) -> Aug-20 | D52: =control!E52 -> 54500 | E52: =IFERROR(ROUND(D52*'DATA ENTRY'!F55,0),0) -> 9265 | F52: =IFERROR(ROUND(D52*'DATA ENTRY'!G55,0),0) -> 4360 | G52: 68125 | H52: =control!G52 -> 52300 | I52: =IFERROR(IF(MASTER!$I$14="Fix Pay",0,ROUND(H52*'DATA ENTRY'!L55,0)),0) -> 8891 | J52: =IFERROR(IF(MASTER!$I$14="Fix Pay",0,ROUND(H52*'DATA ENTRY'!M55,0)),0) -> 4184 | K52: 65375 | L52: 2200 | M52: 374 | N52: 176 | O52: 2750 | P52: =IFERROR(IF('DATA ENTRY'!$M$4="YES",ROUND((ARREAR!D52+ARREAR!E52)*10%,0),0),0) -> 6377 | Q52: =IFERROR(IF('DATA ENTRY'!$M$4="YES",ROUND((ARREAR!H52+ARREAR!I52)*10%,0),0),0) -> 6119 | R52: 258 | U52: 0 | X52: 0 | AA52: 0 | AD52: 0 | AF52: 258 | AG52: 2492
B53: =IF(control!A53="","",control!A53) -> 45 | C53: =IF(control!C53="","",control!C53) -> Sep-20 | D53: =control!E53 -> 54500 | E53: =IFERROR(ROUND(D53*'DATA ENTRY'!F56,0),0) -> 9265 | F53: =IFERROR(ROUND(D53*'DATA ENTRY'!G56,0),0) -> 4360 | G53: 68125 | H53: =control!G53 -> 52300 | I53: =IFERROR(IF(MASTER!$I$14="Fix Pay",0,ROUND(H53*'DATA ENTRY'!L56,0)),0) -> 8891 | J53: =IFERROR(IF(MASTER!$I$14="Fix Pay",0,ROUND(H53*'DATA ENTRY'!M56,0)),0) -> 4184 | K53: 65375 | L53: 2200 | M53: 374 | N53: 176 | O53: 2750 | P53: =IFERROR(IF('DATA ENTRY'!$M$4="YES",ROUND((ARREAR!D53+ARREAR!E53)*10%,0),0),0) -> 6377 | Q53: =IFERROR(IF('DATA ENTRY'!$M$4="YES",ROUND((ARREAR!H53+ARREAR!I53)*10%,0),0),0) -> 6119 | R53: 258 | U53: 0 | X53: 0 | AA53: 0 | AD53: 0 | AF53: 258 | AG53: 2492
B54: =IF(control!A54="","",control!A54) -> 46 | C54: =IF(control!C54="","",control!C54) -> Oct-20 | D54: =control!E54 -> 54500 | E54: =IFERROR(ROUND(D54*'DATA ENTRY'!F57,0),0) -> 9265 | F54: =IFERROR(ROUND(D54*'DATA ENTRY'!G57,0),0) -> 4360 | G54: 68125 | H54: =control!G54 -> 52300 | I54: =IFERROR(IF(MASTER!$I$14="Fix Pay",0,ROUND(H54*'DATA ENTRY'!L57,0)),0) -> 8891 | J54: =IFERROR(IF(MASTER!$I$14="Fix Pay",0,ROUND(H54*'DATA ENTRY'!M57,0)),0) -> 4184 | K54: 65375 | L54: 2200 | M54: 374 | N54: 176 | O54: 2750 | P54: =IFERROR(IF('DATA ENTRY'!$M$4="YES",ROUND((ARREAR!D54+ARREAR!E54)*10%,0),0),0) -> 6377 | Q54: =IFERROR(IF('DATA ENTRY'!$M$4="YES",ROUND((ARREAR!H54+ARREAR!I54)*10%,0),0),0) -> 6119 | R54: 258 | U54: 0 | X54: 0 | AA54: 0 | AD54: 0 | AF54: 258 | AG54: 2492
B55: =IF(control!A55="","",control!A55) -> 47 | C55: =IF(control!C55="","",control!C55) -> Nov-20 | D55: =control!E55 -> 54500 | E55: =IFERROR(ROUND(D55*'DATA ENTRY'!F58,0),0) -> 9265 | F55: =IFERROR(ROUND(D55*'DATA ENTRY'!G58,0),0) -> 4360 | G55: 68125 | H55: =control!G55 -> 52300 | I55: =IFERROR(IF(MASTER!$I$14="Fix Pay",0,ROUND(H55*'DATA ENTRY'!L58,0)),0) -> 8891 | J55: =IFERROR(IF(MASTER!$I$14="Fix Pay",0,ROUND(H55*'DATA ENTRY'!M58,0)),0) -> 4184 | K55: 65375 | L55: 2200 | M55: 374 | N55: 176 | O55: 2750 | P55: =IFERROR(IF('DATA ENTRY'!$M$4="YES",ROUND((ARREAR!D55+ARREAR!E55)*10%,0),0),0) -> 6377 | Q55: =IFERROR(IF('DATA ENTRY'!$M$4="YES",ROUND((ARREAR!H55+ARREAR!I55)*10%,0),0),0) -> 6119 | R55: 258 | U55: 0 | X55: 0 | AA55: 0 | AD55: 0 | AF55: 258 | AG55: 2492
B56: =IF(control!A56="","",control!A56) -> 48 | C56: =IF(control!C56="","",control!C56) -> Dec-20 | D56: =control!E56 -> 54500 | E56: =IFERROR(ROUND(D56*'DATA ENTRY'!F59,0),0) -> 9265 | F56: =IFERROR(ROUND(D56*'DATA ENTRY'!G59,0),0) -> 4360 | G56: 68125 | H56: =control!G56 -> 52300 | I56: =IFERROR(IF(MASTER!$I$14="Fix Pay",0,ROUND(H56*'DATA ENTRY'!L59,0)),0) -> 8891 | J56: =IFERROR(IF(MASTER!$I$14="Fix Pay",0,ROUND(H56*'DATA ENTRY'!M59,0)),0) -> 4184 | K56: 65375 | L56: 2200 | M56: 374 | N56: 176 | O56: 2750 | P56: =IFERROR(IF('DATA ENTRY'!$M$4="YES",ROUND((ARREAR!D56+ARREAR!E56)*10%,0),0),0) -> 6377 | Q56: =IFERROR(IF('DATA ENTRY'!$M$4="YES",ROUND((ARREAR!H56+ARREAR!I56)*10%,0),0),0) -> 6119 | R56: 258 | U56: 0 | X56: 0 | AA56: 0 | AD56: 0 | AF56: 258 | AG56: 2492
B57: =IF(control!A57="","",control!A57) -> 49 | C57: =IF(control!C57="","",control!C57) -> Jan-21 | D57: =control!E57 -> 54500 | E57: =IFERROR(ROUND(D57*'DATA ENTRY'!F60,0),0) -> 9265 | F57: =IFERROR(ROUND(D57*'DATA ENTRY'!G60,0),0) -> 4360 | G57: =IFERROR(D57+E57+F57,0) -> 68125 | H57: =control!G57 -> 52300 | I57: =IFERROR(IF(MASTER!$I$14="Fix Pay",0,ROUND(H57*'DATA ENTRY'!L60,0)),0) -> 8891 | J57: =IFERROR(IF(MASTER!$I$14="Fix Pay",0,ROUND(H57*'DATA ENTRY'!M60,0)),0) -> 4184 | K57: =IFERROR(H57+I57+J57,0) -> 65375 | L57: =IFERROR(D57-H57,0) -> 2200 | M57: =IFERROR(E57-I57,0) -> 374 | N57: =IFERROR(F57-J57,0) -> 176 | O57: =IFERROR(L57+M57+N57,0) -> 2750 | P57: =IFERROR(IF('DATA ENTRY'!$M$4="YES",ROUND((ARREAR!D57+ARREAR!E57)*10%,0),0),0) -> 6377 | Q57: =IFERROR(IF('DATA ENTRY'!$M$4="YES",ROUND((ARREAR!H57+ARREAR!I57)*10%,0),0),0) -> 6119 | R57: =IFERROR(P57-Q57,0) -> 258 | U57: =IFERROR(S57-T57,0) -> 0 | X57: =IFERROR(V57-W57,0) -> 0 | AA57: =IFERROR(Y57-Z57,0) -> 0 | AD57: =IFERROR(AB57-AC57,0) -> 0 | AF57: =R57+U57+X57+AA57+AD57+AE57 -> 258 | AG57: =O57-AF57 -> 2492
B58: =IF(control!A58="","",control!A58) -> 50 | C58: =IF(control!C58="","",control!C58) -> Feb-21 | D58: =control!E58 -> 54500 | E58: =IFERROR(ROUND(D58*'DATA ENTRY'!F61,0),0) -> 9265 | F58: =IFERROR(ROUND(D58*'DATA ENTRY'!G61,0),0) -> 4360 | G58: 68125 | H58: =control!G58 -> 52300 | I58: =IFERROR(IF(MASTER!$I$14="Fix Pay",0,ROUND(H58*'DATA ENTRY'!L61,0)),0) -> 8891 | J58: =IFERROR(IF(MASTER!$I$14="Fix Pay",0,ROUND(H58*'DATA ENTRY'!M61,0)),0) -> 4184 | K58: 65375 | L58: 2200 | M58: 374 | N58: 176 | O58: 2750 | P58: =IFERROR(IF('DATA ENTRY'!$M$4="YES",ROUND((ARREAR!D58+ARREAR!E58)*10%,0),0),0) -> 6377 | Q58: =IFERROR(IF('DATA ENTRY'!$M$4="YES",ROUND((ARREAR!H58+ARREAR!I58)*10%,0),0),0) -> 6119 | R58: 258 | U58: 0 | X58: 0 | AA58: 0 | AD58: 0 | AF58: 258 | AG58: 2492
B59: =IF(control!A59="","",control!A59) -> 51 | C59: =IF(control!C59="","",control!C59) -> Mar-21 | D59: =control!E59 -> 54500 | E59: =IFERROR(ROUND(D59*'DATA ENTRY'!F62,0),0) -> 9265 | F59: =IFERROR(ROUND(D59*'DATA ENTRY'!G62,0),0) -> 4360 | G59: 68125 | H59: =control!G59 -> 52300 | I59: =IFERROR(IF(MASTER!$I$14="Fix Pay",0,ROUND(H59*'DATA ENTRY'!L62,0)),0) -> 8891 | J59: =IFERROR(IF(MASTER!$I$14="Fix Pay",0,ROUND(H59*'DATA ENTRY'!M62,0)),0) -> 4184 | K59: 65375 | L59: 2200 | M59: 374 | N59: 176 | O59: 2750 | P59: =IFERROR(IF('DATA ENTRY'!$M$4="YES",ROUND((ARREAR!D59+ARREAR!E59)*10%,0),0),0) -> 6377 | Q59: =IFERROR(IF('DATA ENTRY'!$M$4="YES",ROUND((ARREAR!H59+ARREAR!I59)*10%,0),0),0) -> 6119 | R59: 258 | U59: 0 | X59: 0 | AA59: 0 | AD59: 0 | AF59: 258 | AG59: 2492
B60: =IF(control!A60="","",control!A60) -> 52 | C60: =IF(control!C60="","",control!C60) -> Apr-21 | D60: =control!E60 -> 54500 | E60: =IFERROR(ROUND(D60*'DATA ENTRY'!F63,0),0) -> 9265 | F60: =IFERROR(ROUND(D60*'DATA ENTRY'!G63,0),0) -> 4360 | G60: 68125 | H60: =control!G60 -> 52300 | I60: =IFERROR(IF(MASTER!$I$14="Fix Pay",0,ROUND(H60*'DATA ENTRY'!L63,0)),0) -> 8891 | J60: =IFERROR(IF(MASTER!$I$14="Fix Pay",0,ROUND(H60*'DATA ENTRY'!M63,0)),0) -> 4184 | K60: 65375 | L60: 2200 | M60: 374 | N60: 176 | O60: 2750 | P60: =IFERROR(IF('DATA ENTRY'!$M$4="YES",ROUND((ARREAR!D60+ARREAR!E60)*10%,0),0),0) -> 6377 | Q60: =IFERROR(IF('DATA ENTRY'!$M$4="YES",ROUND((ARREAR!H60+ARREAR!I60)*10%,0),0),0) -> 6119 | R60: 258 | U60: 0 | X60: 0 | AA60: 0 | AD60: 0 | AF60: 258 | AG60: 2492
B61: =IF(control!A61="","",control!A61) -> 53 | C61: =IF(control!C61="","",control!C61) -> May-21 | D61: =control!E61 -> 54500 | E61: =IFERROR(ROUND(D61*'DATA ENTRY'!F64,0),0) -> 9265 | F61: =IFERROR(ROUND(D61*'DATA ENTRY'!G64,0),0) -> 4360 | G61: 68125 | H61: =control!G61 -> 52300 | I61: =IFERROR(IF(MASTER!$I$14="Fix Pay",0,ROUND(H61*'DATA ENTRY'!L64,0)),0) -> 8891 | J61: =IFERROR(IF(MASTER!$I$14="Fix Pay",0,ROUND(H61*'DATA ENTRY'!M64,0)),0) -> 4184 | K61: 65375 | L61: 2200 | M61: 374 | N61: 176 | O61: 2750 | P61: =IFERROR(IF('DATA ENTRY'!$M$4="YES",ROUND((ARREAR!D61+ARREAR!E61)*10%,0),0),0) -> 6377 | Q61: =IFERROR(IF('DATA ENTRY'!$M$4="YES",ROUND((ARREAR!H61+ARREAR!I61)*10%,0),0),0) -> 6119 | R61: 258 | U61: 0 | X61: 0 | AA61: 0 | AD61: 0 | AF61: 258 | AG61: 2492
B62: =IF(control!A62="","",control!A62) -> 54 | C62: =IF(control!C62="","",control!C62) -> Jun-21 | D62: =control!E62 -> 54500 | E62: =IFERROR(ROUND(D62*'DATA ENTRY'!F65,0),0) -> 9265 | F62: =IFERROR(ROUND(D62*'DATA ENTRY'!G65,0),0) -> 4360 | G62: 68125 | H62: =control!G62 -> 52300 | I62: =IFERROR(IF(MASTER!$I$14="Fix Pay",0,ROUND(H62*'DATA ENTRY'!L65,0)),0) -> 8891 | J62: =IFERROR(IF(MASTER!$I$14="Fix Pay",0,ROUND(H62*'DATA ENTRY'!M65,0)),0) -> 4184 | K62: 65375 | L62: 2200 | M62: 374 | N62: 176 | O62: 2750 | P62: =IFERROR(IF('DATA ENTRY'!$M$4="YES",ROUND((ARREAR!D62+ARREAR!E62)*10%,0),0),0) -> 6377 | Q62: =IFERROR(IF('DATA ENTRY'!$M$4="YES",ROUND((ARREAR!H62+ARREAR!I62)*10%,0),0),0) -> 6119 | R62: 258 | U62: 0 | X62: 0 | AA62: 0 | AD62: 0 | AF62: 258 | AG62: 2492
B63: =IF(control!A63="","",control!A63) -> 55 | C63: =IF(control!C63="","",control!C63) -> Jul-21 | D63: =control!E63 -> 56100 | E63: =IFERROR(ROUND(D63*'DATA ENTRY'!F66,0),0) -> 9537 | F63: =IFERROR(ROUND(D63*'DATA ENTRY'!G66,0),0) -> 4488 | G63: 70125 | H63: =control!G63 -> 53900 | I63: =IFERROR(IF(MASTER!$I$14="Fix Pay",0,ROUND(H63*'DATA ENTRY'!L66,0)),0) -> 9163 | J63: =IFERROR(IF(MASTER!$I$14="Fix Pay",0,ROUND(H63*'DATA ENTRY'!M66,0)),0) -> 4312 | K63: 67375 | L63: 2200 | M63: 374 | N63: 176 | O63: 2750 | P63: =IFERROR(IF('DATA ENTRY'!$M$4="YES",ROUND((ARREAR!D63+ARREAR!E63)*10%,0),0),0) -> 6564 | Q63: =IFERROR(IF('DATA ENTRY'!$M$4="YES",ROUND((ARREAR!H63+ARREAR!I63)*10%,0),0),0) -> 6306 | R63: 258 | U63: 0 | X63: 0 | AA63: 0 | AD63: 0 | AF63: 258 | AG63: 2492
B64: =IF(control!A64="","",control!A64) -> 56 | C64: =IF(control!C64="","",control!C64) -> Aug-21 | D64: =control!E64 -> 56100 | E64: =IFERROR(ROUND(D64*'DATA ENTRY'!F67,0),0) -> 9537 | F64: =IFERROR(ROUND(D64*'DATA ENTRY'!G67,0),0) -> 4488 | G64: 70125 | H64: =control!G64 -> 53900 | I64: =IFERROR(IF(MASTER!$I$14="Fix Pay",0,ROUND(H64*'DATA ENTRY'!L67,0)),0) -> 9163 | J64: =IFERROR(IF(MASTER!$I$14="Fix Pay",0,ROUND(H64*'DATA ENTRY'!M67,0)),0) -> 4312 | K64: 67375 | L64: 2200 | M64: 374 | N64: 176 | O64: 2750 | P64: =IFERROR(IF('DATA ENTRY'!$M$4="YES",ROUND((ARREAR!D64+ARREAR!E64)*10%,0),0),0) -> 6564 | Q64: =IFERROR(IF('DATA ENTRY'!$M$4="YES",ROUND((ARREAR!H64+ARREAR!I64)*10%,0),0),0) -> 6306 | R64: 258 | U64: 0 | X64: 0 | AA64: 0 | AD64: 0 | AF64: 258 | AG64: 2492
B65: =IF(control!A65="","",control!A65) -> 57 | C65: =IF(control!C65="","",control!C65) -> Sep-21 | D65: =control!E65 -> 56100 | E65: =IFERROR(ROUND(D65*'DATA ENTRY'!F68,0),0) -> 9537 | F65: =IFERROR(ROUND(D65*'DATA ENTRY'!G68,0),0) -> 4488 | G65: 70125 | H65: =control!G65 -> 53900 | I65: =IFERROR(IF(MASTER!$I$14="Fix Pay",0,ROUND(H65*'DATA ENTRY'!L68,0)),0) -> 9163 | J65: =IFERROR(IF(MASTER!$I$14="Fix Pay",0,ROUND(H65*'DATA ENTRY'!M68,0)),0) -> 4312 | K65: 67375 | L65: 2200 | M65: 374 | N65: 176 | O65: 2750 | P65: =IFERROR(IF('DATA ENTRY'!$M$4="YES",ROUND((ARREAR!D65+ARREAR!E65)*10%,0),0),0) -> 6564 | Q65: =IFERROR(IF('DATA ENTRY'!$M$4="YES",ROUND((ARREAR!H65+ARREAR!I65)*10%,0),0),0) -> 6306 | R65: 258 | U65: 0 | X65: 0 | AA65: 0 | AD65: 0 | AF65: 258 | AG65: 2492
B66: =IF(control!A66="","",control!A66) -> 58 | C66: =IF(control!C66="","",control!C66) -> Oct-21 | D66: =control!E66 -> 56100 | E66: =IFERROR(ROUND(D66*'DATA ENTRY'!F69,0),0) -> 9537 | F66: =IFERROR(ROUND(D66*'DATA ENTRY'!G69,0),0) -> 4488 | G66: 70125 | H66: =control!G66 -> 53900 | I66: =IFERROR(IF(MASTER!$I$14="Fix Pay",0,ROUND(H66*'DATA ENTRY'!L69,0)),0) -> 9163 | J66: =IFERROR(IF(MASTER!$I$14="Fix Pay",0,ROUND(H66*'DATA ENTRY'!M69,0)),0) -> 4312 | K66: 67375 | L66: 2200 | M66: 374 | N66: 176 | O66: 2750 | P66: =IFERROR(IF('DATA ENTRY'!$M$4="YES",ROUND((ARREAR!D66+ARREAR!E66)*10%,0),0),0) -> 6564 | Q66: =IFERROR(IF('DATA ENTRY'!$M$4="YES",ROUND((ARREAR!H66+ARREAR!I66)*10%,0),0),0) -> 6306 | R66: 258 | U66: 0 | X66: 0 | AA66: 0 | AD66: 0 | AF66: 258 | AG66: 2492
B67: =IF(control!A67="","",control!A67) -> 59 | C67: =IF(control!C67="","",control!C67) -> Nov-21 | D67: =control!E67 -> 56100 | E67: =IFERROR(ROUND(D67*'DATA ENTRY'!F70,0),0) -> 9537 | F67: =IFERROR(ROUND(D67*'DATA ENTRY'!G70,0),0) -> 4488 | G67: 70125 | H67: =control!G67 -> 53900 | I67: =IFERROR(IF(MASTER!$I$14="Fix Pay",0,ROUND(H67*'DATA ENTRY'!L70,0)),0) -> 9163 | J67: =IFERROR(IF(MASTER!$I$14="Fix Pay",0,ROUND(H67*'DATA ENTRY'!M70,0)),0) -> 4312 | K67: 67375 | L67: 2200 | M67: 374 | N67: 176 | O67: 2750 | P67: =IFERROR(IF('DATA ENTRY'!$M$4="YES",ROUND((ARREAR!D67+ARREAR!E67)*10%,0),0),0) -> 6564 | Q67: =IFERROR(IF('DATA ENTRY'!$M$4="YES",ROUND((ARREAR!H67+ARREAR!I67)*10%,0),0),0) -> 6306 | R67: 258 | U67: 0 | X67: 0 | AA67: 0 | AD67: 0 | AF67: 258 | AG67: 2492
B68: =IF(control!A68="","",control!A68) -> 60 | C68: =IF(control!C68="","",control!C68) -> Dec-21 | D68: =control!E68 -> 56100 | E68: =IFERROR(ROUND(D68*'DATA ENTRY'!F71,0),0) -> 9537 | F68: =IFERROR(ROUND(D68*'DATA ENTRY'!G71,0),0) -> 4488 | G68: 70125 | H68: =control!G68 -> 53900 | I68: =IFERROR(IF(MASTER!$I$14="Fix Pay",0,ROUND(H68*'DATA ENTRY'!L71,0)),0) -> 9163 | J68: =IFERROR(IF(MASTER!$I$14="Fix Pay",0,ROUND(H68*'DATA ENTRY'!M71,0)),0) -> 4312 | K68: 67375 | L68: 2200 | M68: 374 | N68: 176 | O68: 2750 | P68: =IFERROR(IF('DATA ENTRY'!$M$4="YES",ROUND((ARREAR!D68+ARREAR!E68)*10%,0),0),0) -> 6564 | Q68: =IFERROR(IF('DATA ENTRY'!$M$4="YES",ROUND((ARREAR!H68+ARREAR!I68)*10%,0),0),0) -> 6306 | R68: 258 | U68: 0 | X68: 0 | AA68: 0 | AF68: 258 | AG68: 2492
B69: TOTAL | D69: =SUM(D9:D68) -> 3158700 | E69: =SUM(E9:E68) -> 536979 | F69: 252696 | G69: 3948375 | H69: 2986800 | I69: 475923 | J69: 227784 | K69: 3690507 | L69: 171900 | M69: 61056 | N69: 24912 | O69: 257868 | P69: 369572 | Q69: 346270 | R69: 23302 | S69: 0 | T69: 0 | U69: 0 | V69: 0 | W69: 0 | X69: 0 | Y69: 0 | Z69: 0 | AA69: 0 | AB69: 0 | AC69: 0 | AD69: 0 | AE69: 100 | AF69: 23402 | AG69: 234466 | AH69: 0 | AI69: 0
E71: अक्षरे रूपये | G71: =[2]!SpellNumber(AG69) -> Rupees Two Lakh ThirtyFour Thousand Four Hundred SixtySix Only
AD72: =MASTER!M29 -> प्रधानाचार्य
AD73: =MASTER!M30 -> राजकीय उच्च माध्यमिक विद्यालय
AD74: =MASTER!M31 -> 13डीओएल श्रीगंगानगर

Sheet control (hidden)
C1: MASTER
B2: CADER | C2: =MASTER!I6 -> State Service | E2: pay leval | F2: =RIGHT(MASTER!I7,2) -> _9 | J2: CONFIRMATION ORDER | K2: इस विद्यालय में कार्यरत निम्नांकित कार्मिक का कॉलम 3 में अंकित पद पर कॉलम 5 में अंकित कार्यग्रहण करने की दिनांक से दो वर्ष की परिवीक्षाधीन प्रशिक्षणार्थी की अवधि को संतोषप्रद रूप से पूर्ण किये जाने पर राजस्थान सिविल सेवा (पुनरीक्षित वेतनमान) नियम 2017 एवं वित्त विभाग के नोटिफिकेशन दिनांक 30.10.2017 के बिन्दु संख्या 13(2) के प्रावधानानुसार कॉलम 6 में अंकित स्थायीकरण तिथि एवं नियमित वेतन श्रंखला प्राप्ति दिनांक से निम्नानुसार वेतन नियतन किया जाता है-
X3: ACP | Y3: राजस्थान सरकार वित्त विभाग के आदेशांक F15(1)/FD@Rules/2017 जयपुर दिनांक 30.10.2017 के अनुसार में राजस्थान सिविल सेवा (पुनरीक्षित वेतनमान) नियम, 2017 द्वितीय संषोधन के नियम 14 एवं 15 के तहत इस विद्यालय के निम्नांकित कार्मिक का उनके नाम के सम्मुख अंकित तिथि से ए0 सी0 पी0 ( Assured Career Progression ) की स्वीकृति प्रदान किये जाने के फलस्वरूप निम्नानुसार वेतन निर्धारण किया जाता हैः- | Z3: notional | AA3: माननीय उच्च न्यायालय जोधपुर/जयपुर के निर्णयानुसार तृतीय श्रेणी प्राथमिक ओर उच्च प्राथमिक विद्यालय अध्यापक भर्ती 2013 के अन्तर्गत संशोधित एवं पुनः संशोधित परिणाम से चयनोपरान्त शिक्षकों को नोशनल परिलाभ हेतु पारित निर्णय के पालनार्थ श्रीमान वरिष्ठ विधि परामर्शी प्रारम्भिक शिक्षा (विधि प्रकोष्ठ) राजस्थान जयपुर के पत्रांक प.18(279) प्रा.शि/वि.प्र./18/जयपुर दिनांक 20.11.2018 की अनुपालना में इस कार्यालय के निम्नांकित कार्मिक के वास्तविक प्रथम कार्यग्रहण तिथि को माननीय न्यायालय के निर्णयानुसार नोशनल/वरिष्ठता परिलाभ हेतु निर्धारित तिथि (प्रथम परिणाम नियुक्त शिक्षको की कार्यग्रहण तिथि) से नोशनल परिलाभ हेतु स्थायीकरण तिथि करने एवं वास्तविक कार्यग्रहण तिथि से दो वर्ष परिविक्षाकाल पूर्ण होने पर स्थाईकरण किये जाने पर निम्नानुसार वेतन निर्धारण किया जाता है:-"
B4: FROM | C4: ='DATA ENTRY'!H8 -> 2017-01-01 | D4: TO | E4: ='DATA ENTRY'!J8 -> 2021-12-31 | F4: TOTAL DAYS OF STARTING MONTH | H4: =DAY(EOMONTH(C4,0)) -> 31
B5: EOMONTH | C5: =EOMONTH(C4,0) -> 2017-01-31 | I5: 2020-03-01
B6: DAYS | C6: =DATEDIF(C4,C5,"D")+1 -> 31 | E6: =ROUND($D$9/$H$4*$C$6,0) -> 48400 | G6: =ROUND(F9/H4*C6,0) -> 46500 | I6: =TEXT(I5,"mmm"&"-"&"yy") -> Mar-20
B7: MONTH | D7: DUE | F7: DRWAN | I7: =VLOOKUP($I$6,$C$9:$E56,3,0) -> 52900 | Y7: =CONCATENATE("इस विद्यालय में कार्यरत निम्नांकित कार्मिक का" &" "&MASTER!D29&" से "&MASTER!H29&" पद पर पदोन्नति होने पर निम्नानुसार वेतन नियतन किया जाता है।") -> इस विद्यालय में कार्यरत निम्नांकित कार्मिक का SR.TEACHER से LECTURER पद पर पदोन्नति होने पर निम्नानुसार वेतन नियतन किया जाता है।
D8: BASIC | E8: EDIT BASIC | F8: BASIC | G8: EDIT BASIC | K8: ROUND($D$9/$H$4*$C$6,0)
A9: =IF(B9="","",1) -> 1 | B9: =IF(C4="","",DATE(YEAR(C4),MONTH(C4),DAY(C4))) -> 2017-01-01 | C9: =TEXT(B9,"mmm"&"-"&"YY") -> Jan-17 | D9: ='DATA ENTRY'!D12 -> 48400 | E9: =IF('DATA ENTRY'!C12="","",ROUND(IF('DATA ENTRY'!E12="",'DATA ENTRY'!D12,'DATA ENTRY'!E12)/$H$4*$C$6,0)) -> 48400 | F9: ='DATA ENTRY'!J12 -> 46500 | G9: =IF('DATA ENTRY'!I12="","",ROUND(IF('DATA ENTRY'!K12="",'DATA ENTRY'!J12,'DATA ENTRY'!K12)/$H$4*$C$6,0)) -> 46500 | I9: =IF(OR($C$2="All India Services",$C$2="State Service"),ROUND(I7/31*5,0),IF(AND($C$2="Subordinate",$Z$18>9),ROUND(I7/31*3,0),IF(AND($C$2="Subordinate",OR(F2>4,F2<10)),ROUND(I7/31*2,0),IF($C$2="Ministrial",ROUND(I7/31*2,0),IF(OR($C$2="Class IV",$F$2<5),ROUND(I7/31*1,0)))))) -> 8532 | N9: NOTIONAL FITMENT
A10: =IF(B10="","",A9+1) -> 2 | B10: =IF(B9="","",IF(EOMONTH(B9,0)+1>$E$4,"",EOMONTH(B9,0)+1)) -> 2017-02-01 | C10: =TEXT(B10,"mmm"&"-"&"YY") -> Feb-17 | D10: ='DATA ENTRY'!D13 -> 48400 | E10: =IF('DATA ENTRY'!C13="","",IF('DATA ENTRY'!E13="",'DATA ENTRY'!D13,'DATA ENTRY'!E13)) -> 48400 | F10: ='DATA ENTRY'!J13 -> 46500 | G10: =IF('DATA ENTRY'!I13="","",IF('DATA ENTRY'!K13="",'DATA ENTRY'!J13,'DATA ENTRY'!K13)) -> 46500 | K10: वास्तविक स्थाईकरण | N10: YEAR | O10: LEVAL | P10: PAY
A11: =IF(B11="","",A10+1) -> 3 | B11: =IF(B10="","",IF(EOMONTH(B10,0)+1>$E$4,"",EOMONTH(B10,0)+1)) -> 2017-03-01 | C11: Mar-17 | D11: ='DATA ENTRY'!D14 -> 48400 | E11: =IF('DATA ENTRY'!C14="","",IF('DATA ENTRY'!E14="",'DATA ENTRY'!D14,'DATA ENTRY'!E14)) -> 75700 | F11: ='DATA ENTRY'!J14 -> 46500 | G11: =IF('DATA ENTRY'!I14="","",IF('DATA ENTRY'!K14="",'DATA ENTRY'!J14,'DATA ENTRY'!K14)) -> 46500
A12: 4 | B12: 2017-04-01 | C12: Apr-17 | D12: ='DATA ENTRY'!D15 -> 48400 | E12: =IF('DATA ENTRY'!C15="","",IF('DATA ENTRY'!E15="",'DATA ENTRY'!D15,'DATA ENTRY'!E15)) -> 48400 | F12: ='DATA ENTRY'!J15 -> 46500 | G12: =IF('DATA ENTRY'!I15="","",IF('DATA ENTRY'!K15="",'DATA ENTRY'!J15,'DATA ENTRY'!K15)) -> 36900 | K12: DATE | N12: =ORDER!J11 -> 2017-01-01 | O12: =ORDER!L11 -> L_12 | P12: =ORDER!M11 -> 48400 | Q12: =IF($K$13>N12,"NOTIONAL","REAL") -> NOTIONAL
A13: 5 | B13: 2017-05-01 | C13: May-17 | D13: ='DATA ENTRY'!D16 -> 48400 | E13: =IF('DATA ENTRY'!C16="","",IF('DATA ENTRY'!E16="",'DATA ENTRY'!D16,'DATA ENTRY'!E16)) -> 48400 | F13: ='DATA ENTRY'!J16 -> 46500 | G13: =IF('DATA ENTRY'!I16="","",IF('DATA ENTRY'!K16="",'DATA ENTRY'!J16,'DATA ENTRY'!K16)) -> 36900 | K13: =ORDER!G15 ->  | N13: =ORDER!J12 -> 2017-07-01 | O13: =ORDER!L12 -> L_12 | P13: =ORDER!M12 -> 49900 | Q13: =IF($K$13>N13,"NOTIONAL","REAL") -> NOTIONAL
A14: 6 | B14: 2017-06-01 | C14: Jun-17 | D14: ='DATA ENTRY'!D17 -> 48400 | E14: =IF('DATA ENTRY'!C17="","",IF('DATA ENTRY'!E17="",'DATA ENTRY'!D17,'DATA ENTRY'!E17)) -> 48400 | F14: ='DATA ENTRY'!J17 -> 46500 | G14: =IF('DATA ENTRY'!I17="","",IF('DATA ENTRY'!K17="",'DATA ENTRY'!J17,'DATA ENTRY'!K17)) -> 46500 | N14: =ORDER!J13 -> 2018-07-01 | O14: =ORDER!L13 -> L_12 | P14: =ORDER!M13 -> 51400 | Q14: NOTIONAL
A15: 7 | B15: 2017-07-01 | C15: Jul-17 | D15: ='DATA ENTRY'!D18 -> 49900 | E15: =IF('DATA ENTRY'!C18="","",IF('DATA ENTRY'!E18="",'DATA ENTRY'!D18,'DATA ENTRY'!E18)) -> 49900 | F15: ='DATA ENTRY'!J18 -> 47900 | G15: =IF('DATA ENTRY'!I18="","",IF('DATA ENTRY'!K18="",'DATA ENTRY'!J18,'DATA ENTRY'!K18)) -> 47900 | N15: =ORDER!J14 -> 2019-07-01 | O15: =ORDER!L14 -> L_12 | P15: =ORDER!M14 -> 52900 | Q15: NOTIONAL
A16: 8 | B16: 2017-08-01 | C16: Aug-17 | D16: ='DATA ENTRY'!D19 -> 49900 | E16: =IF('DATA ENTRY'!C19="","",IF('DATA ENTRY'!E19="",'DATA ENTRY'!D19,'DATA ENTRY'!E19)) -> 49900 | F16: ='DATA ENTRY'!J19 -> 47900 | G16: =IF('DATA ENTRY'!I19="","",IF('DATA ENTRY'!K19="",'DATA ENTRY'!J19,'DATA ENTRY'!K19)) -> 47900 | K16: PAY LEVAL | L16: PAY | N16: =ORDER!J15 -> 2020-07-01 | O16: =ORDER!L15 -> L_12 | P16: =ORDER!M15 -> 54500 | Q16: NOTIONAL
A17: 9 | B17: 2017-09-01 | C17: Sep-17 | D17: ='DATA ENTRY'!D20 -> 49900 | E17: =IF('DATA ENTRY'!C20="","",IF('DATA ENTRY'!E20="",'DATA ENTRY'!D20,'DATA ENTRY'!E20)) -> 49900 | F17: ='DATA ENTRY'!J20 -> 47900 | G17: =IF('DATA ENTRY'!I20="","",IF('DATA ENTRY'!K20="",'DATA ENTRY'!J20,'DATA ENTRY'!K20)) -> 47900 | K17: =VLOOKUP($K$13,$N$12:$P16,2,TRUE) ->  | L17: =VLOOKUP($K$13,$N$12:$P16,3,TRUE) -> 
A18: 10 | B18: 2017-10-01 | C18: Oct-17 | D18: ='DATA ENTRY'!D21 -> 49900 | E18: =IF('DATA ENTRY'!C21="","",IF('DATA ENTRY'!E21="",'DATA ENTRY'!D21,'DATA ENTRY'!E21)) -> 49900 | F18: ='DATA ENTRY'!J21 -> 47900 | G18: =IF('DATA ENTRY'!I21="","",IF('DATA ENTRY'!K21="",'DATA ENTRY'!J21,'DATA ENTRY'!K21)) -> 47900
A19: 11 | B19: 2017-11-01 | C19: Nov-17 | D19: ='DATA ENTRY'!D22 -> 49900 | E19: =IF('DATA ENTRY'!C22="","",IF('DATA ENTRY'!E22="",'DATA ENTRY'!D22,'DATA ENTRY'!E22)) -> 49900 | F19: ='DATA ENTRY'!J22 -> 47900 | G19: =IF('DATA ENTRY'!I22="","",IF('DATA ENTRY'!K22="",'DATA ENTRY'!J22,'DATA ENTRY'!K22)) -> 47900
A20: 12 | B20: 2017-12-01 | C20: Dec-17 | D20: ='DATA ENTRY'!D23 -> 49900 | E20: =IF('DATA ENTRY'!C23="","",IF('DATA ENTRY'!E23="",'DATA ENTRY'!D23,'DATA ENTRY'!E23)) -> 49900 | F20: ='DATA ENTRY'!J23 -> 47900 | G20: =IF('DATA ENTRY'!I23="","",IF('DATA ENTRY'!K23="",'DATA ENTRY'!J23,'DATA ENTRY'!K23)) -> 47900
A21: 13 | B21: 2018-01-01 | C21: Jan-18 | D21: ='DATA ENTRY'!D24 -> 49900 | E21: =IF('DATA ENTRY'!C24="","",IF('DATA ENTRY'!E24="",'DATA ENTRY'!D24,'DATA ENTRY'!E24)) -> 49900 | F21: ='DATA ENTRY'!J24 -> 47900 | G21: =IF('DATA ENTRY'!I24="","",IF('DATA ENTRY'!K24="",'DATA ENTRY'!J24,'DATA ENTRY'!K24)) -> 47900
A22: 14 | B22: 2018-02-01 | C22: Feb-18 | D22: ='DATA ENTRY'!D25 -> 49900 | E22: =IF('DATA ENTRY'!C25="","",IF('DATA ENTRY'!E25="",'DATA ENTRY'!D25,'DATA ENTRY'!E25)) -> 49900 | F22: ='DATA ENTRY'!J25 -> 47900 | G22: =IF('DATA ENTRY'!I25="","",IF('DATA ENTRY'!K25="",'DATA ENTRY'!J25,'DATA ENTRY'!K25)) -> 47900
A23: 15 | B23: 2018-03-01 | C23: Mar-18 | D23: ='DATA ENTRY'!D26 -> 49900 | E23: =IF('DATA ENTRY'!C26="","",IF('DATA ENTRY'!E26="",'DATA ENTRY'!D26,'DATA ENTRY'!E26)) -> 49900 | F23: ='DATA ENTRY'!J26 -> 47900 | G23: =IF('DATA ENTRY'!I26="","",IF('DATA ENTRY'!K26="",'DATA ENTRY'!J26,'DATA ENTRY'!K26)) -> 47900
A24: 16 | B24: 2018-04-01 | C24: Apr-18 | D24: ='DATA ENTRY'!D27 -> 49900 | E24: =IF('DATA ENTRY'!C27="","",IF('DATA ENTRY'!E27="",'DATA ENTRY'!D27,'DATA ENTRY'!E27)) -> 49900 | F24: ='DATA ENTRY'!J27 -> 47900 | G24: =IF('DATA ENTRY'!I27="","",IF('DATA ENTRY'!K27="",'DATA ENTRY'!J27,'DATA ENTRY'!K27)) -> 47900
A25: 17 | B25: 2018-05-01 | C25: May-18 | D25: ='DATA ENTRY'!D28 -> 49900 | E25: =IF('DATA ENTRY'!C28="","",IF('DATA ENTRY'!E28="",'DATA ENTRY'!D28,'DATA ENTRY'!E28)) -> 49900 | F25: ='DATA ENTRY'!J28 -> 47900 | G25: =IF('DATA ENTRY'!I28="","",IF('DATA ENTRY'!K28="",'DATA ENTRY'!J28,'DATA ENTRY'!K28)) -> 47900
A26: 18 | B26: 2018-06-01 | C26: Jun-18 | D26: ='DATA ENTRY'!D29 -> 49900 | E26: =IF('DATA ENTRY'!C29="","",IF('DATA ENTRY'!E29="",'DATA ENTRY'!D29,'DATA ENTRY'!E29)) -> 49900 | F26: ='DATA ENTRY'!J29 -> 47900 | G26: =IF('DATA ENTRY'!I29="","",IF('DATA ENTRY'!K29="",'DATA ENTRY'!J29,'DATA ENTRY'!K29)) -> 47900
A27: 19 | B27: 2018-07-01 | C27: Jul-18 | D27: ='DATA ENTRY'!D30 -> 51400 | E27: =IF('DATA ENTRY'!C30="","",IF('DATA ENTRY'!E30="",'DATA ENTRY'!D30,'DATA ENTRY'!E30)) -> 51400 | F27: ='DATA ENTRY'!J30 -> 49300 | G27: =IF('DATA ENTRY'!I30="","",IF('DATA ENTRY'!K30="",'DATA ENTRY'!J30,'DATA ENTRY'!K30)) -> 49300
A28: 20 | B28: 2018-08-01 | C28: Aug-18 | D28: ='DATA ENTRY'!D31 -> 51400 | E28: =IF('DATA ENTRY'!C31="","",IF('DATA ENTRY'!E31="",'DATA ENTRY'!D31,'DATA ENTRY'!E31)) -> 51400 | F28: ='DATA ENTRY'!J31 -> 49300 | G28: =IF('DATA ENTRY'!I31="","",IF('DATA ENTRY'!K31="",'DATA ENTRY'!J31,'DATA ENTRY'!K31)) -> 49300
A29: 21 | B29: 2018-09-01 | C29: Sep-18 | D29: ='DATA ENTRY'!D32 -> 51400 | E29: =IF('DATA ENTRY'!C32="","",IF('DATA ENTRY'!E32="",'DATA ENTRY'!D32,'DATA ENTRY'!E32)) -> 51400 | F29: ='DATA ENTRY'!J32 -> 49300 | G29: =IF('DATA ENTRY'!I32="","",IF('DATA ENTRY'!K32="",'DATA ENTRY'!J32,'DATA ENTRY'!K32)) -> 49300
A30: 22 | B30: 2018-10-01 | C30: Oct-18 | D30: ='DATA ENTRY'!D33 -> 51400 | E30: =IF('DATA ENTRY'!C33="","",IF('DATA ENTRY'!E33="",'DATA ENTRY'!D33,'DATA ENTRY'!E33)) -> 51400 | F30: ='DATA ENTRY'!J33 -> 49300 | G30: =IF('DATA ENTRY'!I33="","",IF('DATA ENTRY'!K33="",'DATA ENTRY'!J33,'DATA ENTRY'!K33)) -> 49300
A31: 23 | B31: 2018-11-01 | C31: Nov-18 | D31: ='DATA ENTRY'!D34 -> 51400 | E31: =IF('DATA ENTRY'!C34="","",IF('DATA ENTRY'!E34="",'DATA ENTRY'!D34,'DATA ENTRY'!E34)) -> 51400 | F31: ='DATA ENTRY'!J34 -> 49300 | G31: =IF('DATA ENTRY'!I34="","",IF('DATA ENTRY'!K34="",'DATA ENTRY'!J34,'DATA ENTRY'!K34)) -> 49300
A32: 24 | B32: 2018-12-01 | C32: Dec-18 | D32: ='DATA ENTRY'!D35 -> 51400 | E32: =IF('DATA ENTRY'!C35="","",IF('DATA ENTRY'!E35="",'DATA ENTRY'!D35,'DATA ENTRY'!E35)) -> 51400 | F32: ='DATA ENTRY'!J35 -> 49300 | G32: =IF('DATA ENTRY'!I35="","",IF('DATA ENTRY'!K35="",'DATA ENTRY'!J35,'DATA ENTRY'!K35)) -> 49300
A33: 25 | B33: =IF(B32="","",IF(EOMONTH(B32,0)+1>$E$4,"",EOMONTH(B32,0)+1)) -> 2019-01-01 | C33: Jan-19 | D33: ='DATA ENTRY'!D36 -> 51400 | E33: =IF('DATA ENTRY'!C36="","",IF('DATA ENTRY'!E36="",'DATA ENTRY'!D36,'DATA ENTRY'!E36)) -> 51400 | F33: ='DATA ENTRY'!J36 -> 49300 | G33: =IF('DATA ENTRY'!I36="","",IF('DATA ENTRY'!K36="",'DATA ENTRY'!J36,'DATA ENTRY'!K36)) -> 49300
A34: 26 | B34: 2019-02-01 | C34: Feb-19 | D34: ='DATA ENTRY'!D37 -> 51400 | E34: =IF('DATA ENTRY'!C37="","",IF('DATA ENTRY'!E37="",'DATA ENTRY'!D37,'DATA ENTRY'!E37)) -> 51400 | F34: ='DATA ENTRY'!J37 -> 49300 | G34: =IF('DATA ENTRY'!I37="","",IF('DATA ENTRY'!K37="",'DATA ENTRY'!J37,'DATA ENTRY'!K37)) -> 49300
A35: 27 | B35: =IF(B34="","",IF(EOMONTH(B34,0)+1>$E$4,"",EOMONTH(B34,0)+1)) -> 2019-03-01 | C35: Mar-19 | D35: ='DATA ENTRY'!D38 -> 51400 | E35: =IF('DATA ENTRY'!C38="","",IF('DATA ENTRY'!E38="",'DATA ENTRY'!D38,'DATA ENTRY'!E38)) -> 51400 | F35: ='DATA ENTRY'!J38 -> 49300 | G35: =IF('DATA ENTRY'!I38="","",IF('DATA ENTRY'!K38="",'DATA ENTRY'!J38,'DATA ENTRY'!K38)) -> 49300
A36: 28 | B36: 2019-04-01 | C36: Apr-19 | D36: ='DATA ENTRY'!D39 -> 51400 | E36: =IF('DATA ENTRY'!C39="","",IF('DATA ENTRY'!E39="",'DATA ENTRY'!D39,'DATA ENTRY'!E39)) -> 51400 | F36: ='DATA ENTRY'!J39 -> 49300 | G36: =IF('DATA ENTRY'!I39="","",IF('DATA ENTRY'!K39="",'DATA ENTRY'!J39,'DATA ENTRY'!K39)) -> 49300
A37: 29 | B37: 2019-05-01 | C37: May-19 | D37: ='DATA ENTRY'!D40 -> 51400 | E37: =IF('DATA ENTRY'!C40="","",IF('DATA ENTRY'!E40="",'DATA ENTRY'!D40,'DATA ENTRY'!E40)) -> 51400 | F37: ='DATA ENTRY'!J40 -> 49300 | G37: =IF('DATA ENTRY'!I40="","",IF('DATA ENTRY'!K40="",'DATA ENTRY'!J40,'DATA ENTRY'!K40)) -> 49300
A38: 30 | B38: 2019-06-01 | C38: Jun-19 | D38: ='DATA ENTRY'!D41 -> 51400 | E38: =IF('DATA ENTRY'!C41="","",IF('DATA ENTRY'!E41="",'DATA ENTRY'!D41,'DATA ENTRY'!E41)) -> 51400 | F38: ='DATA ENTRY'!J41 -> 49300 | G38: =IF('DATA ENTRY'!I41="","",IF('DATA ENTRY'!K41="",'DATA ENTRY'!J41,'DATA ENTRY'!K41)) -> 49300
A39: 31 | B39: 2019-07-01 | C39: Jul-19 | D39: ='DATA ENTRY'!D42 -> 52900 | E39: =IF('DATA ENTRY'!C42="","",IF('DATA ENTRY'!E42="",'DATA ENTRY'!D42,'DATA ENTRY'!E42)) -> 52900 | F39: ='DATA ENTRY'!J42 -> 50800 | G39: =IF('DATA ENTRY'!I42="","",IF('DATA ENTRY'!K42="",'DATA ENTRY'!J42,'DATA ENTRY'!K42)) -> 50800
A40: 32 | B40: 2019-08-01 | C40: Aug-19 | D40: ='DATA ENTRY'!D43 -> 52900 | E40: =IF('DATA ENTRY'!C43="","",IF('DATA ENTRY'!E43="",'DATA ENTRY'!D43,'DATA ENTRY'!E43)) -> 52900 | F40: ='DATA ENTRY'!J43 -> 50800 | G40: =IF('DATA ENTRY'!I43="","",IF('DATA ENTRY'!K43="",'DATA ENTRY'!J43,'DATA ENTRY'!K43)) -> 50800
A41: 33 | B41: 2019-09-01 | C41: Sep-19 | D41: ='DATA ENTRY'!D44 -> 52900 | E41: =IF('DATA ENTRY'!C44="","",IF('DATA ENTRY'!E44="",'DATA ENTRY'!D44,'DATA ENTRY'!E44)) -> 52900 | F41: ='DATA ENTRY'!J44 -> 50800 | G41: =IF('DATA ENTRY'!I44="","",IF('DATA ENTRY'!K44="",'DATA ENTRY'!J44,'DATA ENTRY'!K44)) -> 50800
A42: 34 | B42: 2019-10-01 | C42: Oct-19 | D42: ='DATA ENTRY'!D45 -> 52900 | E42: =IF('DATA ENTRY'!C45="","",IF('DATA ENTRY'!E45="",'DATA ENTRY'!D45,'DATA ENTRY'!E45)) -> 52900 | F42: ='DATA ENTRY'!J45 -> 50800 | G42: =IF('DATA ENTRY'!I45="","",IF('DATA ENTRY'!K45="",'DATA ENTRY'!J45,'DATA ENTRY'!K45)) -> 50800
A43: =IF(B43="","",A42+1) -> 35 | B43: =IF(B42="","",IF(EOMONTH(B42,0)+1>$E$4,"",EOMONTH(B42,0)+1)) -> 2019-11-01 | C43: Nov-19 | D43: ='DATA ENTRY'!D46 -> 52900 | E43: =IF('DATA ENTRY'!C46="","",IF('DATA ENTRY'!E46="",'DATA ENTRY'!D46,'DATA ENTRY'!E46)) -> 52900 | F43: ='DATA ENTRY'!J46 -> 50800 | G43: =IF('DATA ENTRY'!I46="","",IF('DATA ENTRY'!K46="",'DATA ENTRY'!J46,'DATA ENTRY'!K46)) -> 50800
A44: 36 | B44: 2019-12-01 | C44: Dec-19 | D44: ='DATA ENTRY'!D47 -> 52900 | E44: =IF('DATA ENTRY'!C47="","",IF('DATA ENTRY'!E47="",'DATA ENTRY'!D47,'DATA ENTRY'!E47)) -> 52900 | F44: ='DATA ENTRY'!J47 -> 50800 | G44: =IF('DATA ENTRY'!I47="","",IF('DATA ENTRY'!K47="",'DATA ENTRY'!J47,'DATA ENTRY'!K47)) -> 50800
A45: =IF(B45="","",A44+1) -> 37 | B45: 2020-01-01 | C45: =TEXT(B45,"mmm"&"-"&"YY") -> Jan-20 | D45: ='DATA ENTRY'!D48 -> 52900 | E45: =IF('DATA ENTRY'!C48="","",IF('DATA ENTRY'!E48="",'DATA ENTRY'!D48,'DATA ENTRY'!E48)) -> 52900 | F45: ='DATA ENTRY'!J48 -> 50800 | G45: =IF('DATA ENTRY'!I48="","",IF('DATA ENTRY'!K48="",'DATA ENTRY'!J48,'DATA ENTRY'!K48)) -> 50800
A46: 38 | B46: 2020-02-01 | C46: Feb-20 | D46: ='DATA ENTRY'!D49 -> 52900 | E46: =IF('DATA ENTRY'!C49="","",IF('DATA ENTRY'!E49="",'DATA ENTRY'!D49,'DATA ENTRY'!E49)) -> 52900 | F46: ='DATA ENTRY'!J49 -> 50800 | G46: =IF('DATA ENTRY'!I49="","",IF('DATA ENTRY'!K49="",'DATA ENTRY'!J49,'DATA ENTRY'!K49)) -> 50800
A47: 39 | B47: 2020-03-01 | C47: Mar-20 | D47: ='DATA ENTRY'!D50 -> 52900 | E47: =IF('DATA ENTRY'!C50="","",IF('DATA ENTRY'!E50="",'DATA ENTRY'!D50,'DATA ENTRY'!E50)) -> 52900 | F47: ='DATA ENTRY'!J50 -> 50800 | G47: =IF('DATA ENTRY'!I50="","",IF('DATA ENTRY'!K50="",'DATA ENTRY'!J50,'DATA ENTRY'!K50)) -> 50800
A48: 40 | B48: 2020-04-01 | C48: Apr-20 | D48: ='DATA ENTRY'!D51 -> 52900 | E48: =IF('DATA ENTRY'!C51="","",IF('DATA ENTRY'!E51="",'DATA ENTRY'!D51,'DATA ENTRY'!E51)) -> 52900 | F48: ='DATA ENTRY'!J51 -> 50800 | G48: =IF('DATA ENTRY'!I51="","",IF('DATA ENTRY'!K51="",'DATA ENTRY'!J51,'DATA ENTRY'!K51)) -> 50800
A49: 41 | B49: 2020-05-01 | C49: May-20 | D49: ='DATA ENTRY'!D52 -> 52900 | E49: =IF('DATA ENTRY'!C52="","",IF('DATA ENTRY'!E52="",'DATA ENTRY'!D52,'DATA ENTRY'!E52)) -> 52900 | F49: ='DATA ENTRY'!J52 -> 50800 | G49: =IF('DATA ENTRY'!I52="","",IF('DATA ENTRY'!K52="",'DATA ENTRY'!J52,'DATA ENTRY'!K52)) -> 50800
A50: 42 | B50: 2020-06-01 | C50: Jun-20 | D50: ='DATA ENTRY'!D53 -> 52900 | E50: =IF('DATA ENTRY'!C53="","",IF('DATA ENTRY'!E53="",'DATA ENTRY'!D53,'DATA ENTRY'!E53)) -> 52900 | F50: ='DATA ENTRY'!J53 -> 50800 | G50: =IF('DATA ENTRY'!I53="","",IF('DATA ENTRY'!K53="",'DATA ENTRY'!J53,'DATA ENTRY'!K53)) -> 50800
A51: 43 | B51: 2020-07-01 | C51: Jul-20 | D51: ='DATA ENTRY'!D54 -> 54500 | E51: =IF('DATA ENTRY'!C54="","",IF('DATA ENTRY'!E54="",'DATA ENTRY'!D54,'DATA ENTRY'!E54)) -> 54500 | F51: ='DATA ENTRY'!J54 -> 52300 | G51: =IF('DATA ENTRY'!I54="","",IF('DATA ENTRY'!K54="",'DATA ENTRY'!J54,'DATA ENTRY'!K54)) -> 52300
A52: 44 | B52: 2020-08-01 | C52: Aug-20 | D52: ='DATA ENTRY'!D55 -> 54500 | E52: =IF('DATA ENTRY'!C55="","",IF('DATA ENTRY'!E55="",'DATA ENTRY'!D55,'DATA ENTRY'!E55)) -> 54500 | F52: ='DATA ENTRY'!J55 -> 52300 | G52: =IF('DATA ENTRY'!I55="","",IF('DATA ENTRY'!K55="",'DATA ENTRY'!J55,'DATA ENTRY'!K55)) -> 52300
A53: 45 | B53: 2020-09-01 | C53: Sep-20 | D53: ='DATA ENTRY'!D56 -> 54500 | E53: =IF('DATA ENTRY'!C56="","",IF('DATA ENTRY'!E56="",'DATA ENTRY'!D56,'DATA ENTRY'!E56)) -> 54500 | F53: ='DATA ENTRY'!J56 -> 52300 | G53: =IF('DATA ENTRY'!I56="","",IF('DATA ENTRY'!K56="",'DATA ENTRY'!J56,'DATA ENTRY'!K56)) -> 52300
A54: 46 | B54: 2020-10-01 | C54: Oct-20 | D54: ='DATA ENTRY'!D57 -> 54500 | E54: =IF('DATA ENTRY'!C57="","",IF('DATA ENTRY'!E57="",'DATA ENTRY'!D57,'DATA ENTRY'!E57)) -> 54500 | F54: ='DATA ENTRY'!J57 -> 52300 | G54: =IF('DATA ENTRY'!I57="","",IF('DATA ENTRY'!K57="",'DATA ENTRY'!J57,'DATA ENTRY'!K57)) -> 52300
A55: 47 | B55: 2020-11-01 | C55: Nov-20 | D55: ='DATA ENTRY'!D58 -> 54500 | E55: =IF('DATA ENTRY'!C58="","",IF('DATA ENTRY'!E58="",'DATA ENTRY'!D58,'DATA ENTRY'!E58)) -> 54500 | F55: ='DATA ENTRY'!J58 -> 52300 | G55: =IF('DATA ENTRY'!I58="","",IF('DATA ENTRY'!K58="",'DATA ENTRY'!J58,'DATA ENTRY'!K58)) -> 52300
A56: 48 | B56: 2020-12-01 | C56: Dec-20 | D56: ='DATA ENTRY'!D59 -> 54500 | E56: =IF('DATA ENTRY'!C59="","",IF('DATA ENTRY'!E59="",'DATA ENTRY'!D59,'DATA ENTRY'!E59)) -> 54500 | F56: ='DATA ENTRY'!J59 -> 52300 | G56: =IF('DATA ENTRY'!I59="","",IF('DATA ENTRY'!K59="",'DATA ENTRY'!J59,'DATA ENTRY'!K59)) -> 52300
A57: =IF(B57="","",A56+1) -> 49 | B57: 2021-01-01 | C57: =TEXT(B57,"mmm"&"-"&"YY") -> Jan-21 | D57: ='DATA ENTRY'!D60 -> 54500 | E57: =IF('DATA ENTRY'!C60="","",IF('DATA ENTRY'!E60="",'DATA ENTRY'!D60,'DATA ENTRY'!E60)) -> 54500 | F57: ='DATA ENTRY'!J60 -> 52300 | G57: =IF('DATA ENTRY'!I60="","",IF('DATA ENTRY'!K60="",'DATA ENTRY'!J60,'DATA ENTRY'!K60)) -> 52300
A58: 50 | B58: 2021-02-01 | C58: Feb-21 | D58: ='DATA ENTRY'!D61 -> 54500 | E58: =IF('DATA ENTRY'!C61="","",IF('DATA ENTRY'!E61="",'DATA ENTRY'!D61,'DATA ENTRY'!E61)) -> 54500 | F58: ='DATA ENTRY'!J61 -> 52300 | G58: =IF('DATA ENTRY'!I61="","",IF('DATA ENTRY'!K61="",'DATA ENTRY'!J61,'DATA ENTRY'!K61)) -> 52300
A59: 51 | B59: 2021-03-01 | C59: Mar-21 | D59: ='DATA ENTRY'!D62 -> 54500 | E59: =IF('DATA ENTRY'!C62="","",IF('DATA ENTRY'!E62="",'DATA ENTRY'!D62,'DATA ENTRY'!E62)) -> 54500 | F59: ='DATA ENTRY'!J62 -> 52300 | G59: =IF('DATA ENTRY'!I62="","",IF('DATA ENTRY'!K62="",'DATA ENTRY'!J62,'DATA ENTRY'!K62)) -> 52300
A60: 52 | B60: 2021-04-01 | C60: Apr-21 | D60: ='DATA ENTRY'!D63 -> 54500 | E60: =IF('DATA ENTRY'!C63="","",IF('DATA ENTRY'!E63="",'DATA ENTRY'!D63,'DATA ENTRY'!E63)) -> 54500 | F60: ='DATA ENTRY'!J63 -> 52300 | G60: =IF('DATA ENTRY'!I63="","",IF('DATA ENTRY'!K63="",'DATA ENTRY'!J63,'DATA ENTRY'!K63)) -> 52300
A61: 53 | B61: 2021-05-01 | C61: May-21 | D61: ='DATA ENTRY'!D64 -> 54500 | E61: =IF('DATA ENTRY'!C64="","",IF('DATA ENTRY'!E64="",'DATA ENTRY'!D64,'DATA ENTRY'!E64)) -> 54500 | F61: ='DATA ENTRY'!J64 -> 52300 | G61: =IF('DATA ENTRY'!I64="","",IF('DATA ENTRY'!K64="",'DATA ENTRY'!J64,'DATA ENTRY'!K64)) -> 52300
A62: =IF(B62="","",A61+1) -> 54 | B62: 2021-06-01 | C62: =TEXT(B62,"mmm"&"-"&"YY") -> Jun-21 | D62: ='DATA ENTRY'!D65 -> 54500 | E62: =IF('DATA ENTRY'!C65="","",IF('DATA ENTRY'!E65="",'DATA ENTRY'!D65,'DATA ENTRY'!E65)) -> 54500 | F62: ='DATA ENTRY'!J65 -> 52300 | G62: =IF('DATA ENTRY'!I65="","",IF('DATA ENTRY'!K65="",'DATA ENTRY'!J65,'DATA ENTRY'!K65)) -> 52300
A63: 55 | B63: 2021-07-01 | C63: Jul-21 | D63: ='DATA ENTRY'!D66 -> 56100 | E63: =IF('DATA ENTRY'!C66="","",IF('DATA ENTRY'!E66="",'DATA ENTRY'!D66,'DATA ENTRY'!E66)) -> 56100 | F63: ='DATA ENTRY'!J66 -> 53900 | G63: =IF('DATA ENTRY'!I66="","",IF('DATA ENTRY'!K66="",'DATA ENTRY'!J66,'DATA ENTRY'!K66)) -> 53900
A64: 56 | B64: 2021-08-01 | C64: Aug-21 | D64: ='DATA ENTRY'!D67 -> 56100 | E64: =IF('DATA ENTRY'!C67="","",IF('DATA ENTRY'!E67="",'DATA ENTRY'!D67,'DATA ENTRY'!E67)) -> 56100 | F64: ='DATA ENTRY'!J67 -> 53900 | G64: =IF('DATA ENTRY'!I67="","",IF('DATA ENTRY'!K67="",'DATA ENTRY'!J67,'DATA ENTRY'!K67)) -> 53900
A65: 57 | B65: 2021-09-01 | C65: Sep-21 | D65: ='DATA ENTRY'!D68 -> 56100 | E65: =IF('DATA ENTRY'!C68="","",IF('DATA ENTRY'!E68="",'DATA ENTRY'!D68,'DATA ENTRY'!E68)) -> 56100 | F65: ='DATA ENTRY'!J68 -> 53900 | G65: =IF('DATA ENTRY'!I68="","",IF('DATA ENTRY'!K68="",'DATA ENTRY'!J68,'DATA ENTRY'!K68)) -> 53900
A66: 58 | B66: 2021-10-01 | C66: Oct-21 | D66: ='DATA ENTRY'!D69 -> 56100 | E66: =IF('DATA ENTRY'!C69="","",IF('DATA ENTRY'!E69="",'DATA ENTRY'!D69,'DATA ENTRY'!E69)) -> 56100 | F66: ='DATA ENTRY'!J69 -> 53900 | G66: =IF('DATA ENTRY'!I69="","",IF('DATA ENTRY'!K69="",'DATA ENTRY'!J69,'DATA ENTRY'!K69)) -> 53900
A67: 59 | B67: 2021-11-01 | C67: Nov-21 | D67: ='DATA ENTRY'!D70 -> 56100 | E67: =IF('DATA ENTRY'!C70="","",IF('DATA ENTRY'!E70="",'DATA ENTRY'!D70,'DATA ENTRY'!E70)) -> 56100 | F67: ='DATA ENTRY'!J70 -> 53900 | G67: =IF('DATA ENTRY'!I70="","",IF('DATA ENTRY'!K70="",'DATA ENTRY'!J70,'DATA ENTRY'!K70)) -> 53900
A68: 60 | B68: 2021-12-01 | C68: Dec-21 | D68: ='DATA ENTRY'!D71 -> 56100 | E68: =IF('DATA ENTRY'!C71="","",IF('DATA ENTRY'!E71="",'DATA ENTRY'!D71,'DATA ENTRY'!E71)) -> 56100 | F68: ='DATA ENTRY'!J71 -> 53900 | G68: =IF('DATA ENTRY'!I71="","",IF('DATA ENTRY'!K71="",'DATA ENTRY'!J71,'DATA ENTRY'!K71)) -> 53900

Sheet 7th pay chart
A1: Existing R.P.Band | B1: PB_1 5200_20200 | K1: PB_2 9300_34800 | O1: PB_3 15600_39100 | W1: PB_4 37400_67000
A2: Exist.G.P. | B2: 1700 | C2: 1750 | D2: 1900 | E2: 2000 | F2: 2400 | G2: 2400 | H2: 2400 | I2: 2800 | J2: 2800 | K2: 3600 | L2: 4200 | M2: 4800 | N2: 5400 | O2: 5400 | P2: 6000 | Q2: 6600 | R2: 6800 | S2: 7200 | T2: 7600 | U2: 8200 | V2: 8700 | W2: 8900 | X2: 9500 | Y2: 10000
A3: Exist.G.P.No | B3: 2 | C3: 3 | D3: 4 | E3: 5 | F3: 9 | G3: 9A | H3: 9B | I3: 10 | J3: 10A | K3: 11 | L3: 12 | M3: 14 | N3: 15 | O3: 15 | P3: 16 | Q3: 17 | R3: 18 | S3: 19 | T3: 20 | U3: 21 | V3: 22 | W3: 23 | X3: 23A | Y3: 24
A4: Levels → | B4: L_1 | C4: L_2 | D4: L_3 | E4: L_4 | F4: L_5 | G4: L_6 | H4: L_7 | I4: L_8 | J4: L_9 | K4: L_10 | L4: L_11 | M4: L_12 | N4: L_13 | O4: L_14 | P4: L_15 | Q4: L_16 | R4: L_17 | S4: L_18 | T4: L_19 | U4: L_20 | V4: L_21 | W4: L_22 | X4: L_23 | Y4: L_24
A5: Cell No. ↓ | B5: 1 | C5: 2 | D5: 3 | E5: 4 | F5: 5 | G5: 6 | H5: 7 | I5: 8 | J5: 9 | K5: 10 | L5: 11 | M5: 12 | N5: 13 | O5: 14 | P5: 15 | Q5: 16 | R5: 17 | S5: 18 | T5: 19 | U5: 20 | V5: 21 | W5: 22 | X5: 23 | Y5: 24
A6: 1 | B6: 17700 | C6: 17900 | D6: 18200 | E6: 19200 | F6: 20800 | G6: 21500 | H6: 22400 | I6: 26300 | J6: 28700 | K6: 33800 | L6: 37800 | M6: 44300 | N6: 53100 | O6: 56100 | P6: 60700 | Q6: 67300 | R6: 71000 | S6: 75300 | T6: 79900 | U6: 88900 | V6: 123100 | W6: 129700 | X6: 145800 | Y6: 148800
A7: 2 | B7: 18200 | C7: 18400 | D7: 18700 | E7: 19800 | F7: 21400 | G7: 22100 | H7: 23100 | I7: 27100 | J7: 29600 | K7: 34800 | L7: 38900 | M7: 45600 | N7: 54700 | O7: 57800 | P7: 62500 | Q7: 69300 | R7: 73100 | S7: 77600 | T7: 82300 | U7: 91600 | V7: 126800 | W7: 133600 | X7: 150200 | Y7: 153300
A8: 3 | B8: 18700 | C8: 19000 | D8: 19300 | E8: 20400 | F8: 22000 | G8: 22800 | H8: 23800 | I8: 27900 | J8: 30500 | K8: 35800 | L8: 40100 | M8: 47000 | N8: 56300 | O8: 59500 | P8: 64400 | Q8: 71400 | R8: 75300 | S8: 79900 | T8: 84800 | U8: 94300 | V8: 130600 | W8: 137600 | X8: 154700 | Y8: 157900
A9: 4 | B9: 19300 | C9: 19600 | D9: 19900 | E9: 21000 | F9: 22700 | G9: 23500 | H9: 24500 | I9: 28700 | J9: 31400 | K9: 36900 | L9: 41300 | M9: 48400 | N9: 58000 | O9: 61300 | P9: 66300 | Q9: 73500 | R9: 77600 | S9: 82300 | T9: 87300 | U9: 97100 | V9: 134500 | W9: 141700 | X9: 159300 | Y9: 162600
A10: 5 | B10: 19900 | C10: 20200 | D10: 20500 | E10: 21600 | F10: 23400 | G10: 24200 | H10: 25200 | I10: 29600 | J10: 32300 | K10: 38000 | L10: 42500 | M10: 49900 | N10: 59700 | O10: 63100 | P10: 68300 | Q10: 75700 | R10: 79900 | S10: 84800 | T10: 89900 | U10: 100000 | V10: 138500 | W10: 146000 | X10: 164100 | Y10: 167500
A11: 6 | B11: 20500 | C11: 20800 | D11: 21100 | E11: 22200 | F11: 24100 | G11: 24900 | H11: 26000 | I11: 30500 | J11: 33300 | K11: 39100 | L11: 43800 | M11: 51400 | N11: 61500 | O11: 65000 | P11: 70300 | Q11: 78000 | R11: 82300 | S11: 87300 | T11: 92600 | U11: 103000 | V11: 142700 | W11: 150400 | X11: 169000 | Y11: 172500
A12: 7 | B12: 21100 | C12: 21400 | D12: 21700 | E12: 22900 | F12: 24800 | G12: 25600 | H12: 26800 | I12: 31400 | J12: 34300 | K12: 40300 | L12: 45100 | M12: 52900 | N12: 63300 | O12: 67000 | P12: 72400 | Q12: 80300 | R12: 84800 | S12: 89900 | T12: 95400 | U12: 106100 | V12: 147000 | W12: 154900 | X12: 174100 | Y12: 177700
A13: 8 | B13: 21700 | C13: 22000 | D13: 22400 | E13: 23600 | F13: 25500 | G13: 26400 | H13: 27600 | I13: 32300 | J13: 35300 | K13: 41500 | L13: 46500 | M13: 54500 | N13: 65200 | O13: 69000 | P13: 74600 | Q13: 82700 | R13: 87300 | S13: 92600 | T13: 98300 | U13: 109300 | V13: 151400 | W13: 159500 | X13: 179300 | Y13: 183000
A14: 9 | B14: 22400 | C14: 22700 | D14: 23100 | E14: 24300 | F14: 26300 | G14: 27200 | H14: 28400 | I14: 33300 | J14: 36400 | K14: 42700 | L14: 47900 | M14: 56100 | N14: 67200 | O14: 71100 | P14: 76800 | Q14: 85200 | R14: 89900 | S14: 95400 | T14: 101200 | U14: 112600 | V14: 155900 | W14: 164300 | X14: 184700 | Y14: 188500
A15: 10 | B15: 23100 | C15: 23400 | D15: 23800 | E15: 25000 | F15: 27100 | G15: 28000 | H15: 29300 | I15: 34300 | J15: 37500 | K15: 44000 | L15: 49300 | M15: 57800 | N15: 69200 | O15: 73200 | P15: 79100 | Q15: 87800 | R15: 92600 | S15: 98300 | T15: 104200 | U15: 116000 | V15: 160600 | W15: 169200 | X15: 190200 | Y15: 194200
A16: 11 | B16: 23800 | C16: 24100 | D16: 24500 | E16: 25800 | F16: 27900 | G16: 28800 | H16: 30200 | I16: 35300 | J16: 38600 | K16: 45300 | L16: 50800 | M16: 59500 | N16: 71300 | O16: 75400 | P16: 81500 | Q16: 90400 | R16: 95400 | S16: 101200 | T16: 107300 | U16: 119500 | V16: 165400 | W16: 174300 | X16: 195900 | Y16: 200000
A17: 12 | B17: 24500 | C17: 24800 | D17: 25200 | E17: 26600 | F17: 28700 | G17: 29700 | H17: 31100 | I17: 36400 | J17: 39800 | K17: 46700 | L17: 52300 | M17: 61300 | N17: 73400 | O17: 77700 | P17: 83900 | Q17: 93100 | R17: 98300 | S17: 104200 | T17: 110500 | U17: 123100 | V17: 170400 | W17: 179500 | X17: 201800 | Y17: 206000
A18: 13 | B18: 25200 | C18: 25500 | D18: 26000 | E18: 27400 | F18: 29600 | G18: 30600 | H18: 32000 | I18: 37500 | J18: 41000 | K18: 48100 | L18: 53900 | M18: 63100 | N18: 75600 | O18: 80000 | P18: 86400 | Q18: 95900 | R18: 101200 | S18: 107300 | T18: 113800 | U18: 126800 | V18: 175500 | W18: 184900 | X18: 207900 | Y18: 212200
A19: 14 | B19: 26000 | C19: 26300 | D19: 26800 | E19: 28200 | F19: 30500 | G19: 31500 | H19: 33000 | I19: 38600 | J19: 42200 | K19: 49500 | L19: 55500 | M19: 65000 | N19: 77900 | O19: 82400 | P19: 89000 | Q19: 98800 | R19: 104200 | S19: 110500 | T19: 117200 | U19: 130600 | V19: 180800 | W19: 190400 | X19: 214100 | Y19: 218600
A20: 15 | B20: 26800 | C20: 27100 | D20: 27600 | E20: 29000 | F20: 31400 | G20: 32400 | H20: 34000 | I20: 39800 | J20: 43500 | K20: 51000 | L20: 57200 | M20: 67000 | N20: 80200 | O20: 84900 | P20: 91700 | Q20: 101800 | R20: 107300 | S20: 113800 | T20: 120700 | U20: 134500 | V20: 186200 | W20: 196100
A21: 16 | B21: 27600 | C21: 27900 | D21: 28400 | E21: 29900 | F21: 32300 | G21: 33400 | H21: 35000 | I21: 41000 | J21: 44800 | K21: 52500 | L21: 58900 | M21: 69000 | N21: 82600 | O21: 87400 | P21: 94500 | Q21: 104900 | R21: 110500 | S21: 117200 | T21: 124300 | U21: 138500 | V21: 191800 | W21: 202000
A22: 17 | B22: 28400 | C22: 28700 | D22: 29300 | E22: 30800 | F22: 33300 | G22: 34400 | H22: 36100 | I22: 42200 | J22: 46100 | K22: 54100 | L22: 60700 | M22: 71100 | N22: 85100 | O22: 90000 | P22: 97300 | Q22: 108000 | R22: 113800 | S22: 120700 | T22: 128000 | U22: 142700 | V22: 197600 | W22: 208100
A23: 18 | B23: 29300 | C23: 29600 | D23: 30200 | E23: 31700 | F23: 34300 | G23: 35400 | H23: 37200 | I23: 43500 | J23: 47500 | K23: 55700 | L23: 62500 | M23: 73200 | N23: 87700 | O23: 92700 | P23: 100200 | Q23: 111200 | R23: 117200 | S23: 124300 | T23: 131800 | U23: 147000 | V23: 203500
A24: 19 | B24: 30200 | C24: 30500 | D24: 31100 | E24: 32700 | F24: 35300 | G24: 36500 | H24: 38300 | I24: 44800 | J24: 48900 | K24: 57400 | L24: 64400 | M24: 75400 | N24: 90300 | O24: 95500 | P24: 103200 | Q24: 114500 | R24: 120700 | S24: 128000 | T24: 135800 | U24: 151400
A25: 20 | B25: 31100 | C25: 31400 | D25: 32000 | E25: 33700 | F25: 36400 | G25: 37600 | H25: 39400 | I25: 46100 | J25: 50400 | K25: 59100 | L25: 66300 | M25: 77700 | N25: 93000 | O25: 98400 | P25: 106300 | Q25: 117900 | R25: 124300 | S25: 131800 | T25: 139900 | U25: 155900
A26: 21 | B26: 32000 | C26: 32300 | D26: 33000 | E26: 34700 | F26: 37500 | G26: 38700 | H26: 40600 | I26: 47500 | J26: 51900 | K26: 60900 | L26: 68300 | M26: 80000 | N26: 95800 | O26: 101400 | P26: 109500 | Q26: 121400 | R26: 128000 | S26: 135800 | T26: 144100 | U26: 160600
A27: 22 | B27: 33000 | C27: 33300 | D27: 34000 | E27: 35700 | F27: 38600 | G27: 39900 | H27: 41800 | I27: 48900 | J27: 53500 | K27: 62700 | L27: 70300 | M27: 82400 | N27: 98700 | O27: 104400 | P27: 112800 | Q27: 125000 | R27: 131800 | S27: 139900 | T27: 148400 | U27: 165400
A28: 23 | B28: 34000 | C28: 34300 | D28: 35000 | E28: 36800 | F28: 39800 | G28: 41100 | H28: 43100 | I28: 50400 | J28: 55100 | K28: 64600 | L28: 72400 | M28: 84900 | N28: 101700 | O28: 107500 | P28: 116200 | Q28: 128800 | R28: 135800 | S28: 144100 | T28: 152900 | U28: 170400
A29: 24 | B29: 35000 | C29: 35300 | D29: 36100 | E29: 37900 | F29: 41000 | G29: 42300 | H29: 44400 | I29: 51900 | J29: 56800 | K29: 66500 | L29: 74600 | M29: 87400 | N29: 104800 | O29: 110700 | P29: 119700 | Q29: 132700 | R29: 139900 | S29: 148400 | T29: 157500 | U29: 175500
A30: 25 | B30: 36100 | C30: 36400 | D30: 37200 | E30: 39000 | F30: 42200 | G30: 43600 | H30: 45700 | I30: 53500 | J30: 58500 | K30: 68500 | L30: 76800 | M30: 90000 | N30: 107900 | O30: 114000 | P30: 123300 | Q30: 136700 | R30: 144100 | S30: 152900 | T30: 162200 | U30: 180800
A31: 26 | B31: 37200 | C31: 37500 | D31: 38300 | E31: 40200 | F31: 43500 | G31: 44900 | H31: 47100 | I31: 55100 | J31: 60300 | K31: 70600 | L31: 79100 | M31: 92700 | N31: 111100 | O31: 117400 | P31: 127000 | Q31: 140800 | R31: 148400 | S31: 157500 | T31: 167100 | U31: 186200
A32: 27 | B32: 38300 | C32: 38600 | D32: 39400 | E32: 41400 | F32: 44800 | G32: 46200 | H32: 48500 | I32: 56800 | J32: 62100 | K32: 72700 | L32: 81500 | M32: 95500 | N32: 114400 | O32: 120900 | P32: 130800 | Q32: 145000 | R32: 152900 | S32: 162200 | T32: 172100 | U32: 191800
A33: 28 | B33: 39400 | C33: 39800 | D33: 40600 | E33: 42600 | F33: 46100 | G33: 47600 | H33: 50000 | I33: 58500 | J33: 64000 | K33: 74900 | L33: 83900 | M33: 98400 | N33: 117800 | O33: 124500 | P33: 134700 | Q33: 149400 | R33: 157500 | S33: 167100 | T33: 177300 | U33: 197600
A34: 29 | B34: 40600 | C34: 41000 | D34: 41800 | E34: 43900 | F34: 47500 | G34: 49000 | H34: 51500 | I34: 60300 | J34: 65900 | K34: 77100 | L34: 86400 | M34: 101400 | N34: 121300 | O34: 128200 | P34: 138700 | Q34: 153900 | R34: 162200 | S34: 172100 | T34: 182600 | U34: 203500
A35: 30 | B35: 41800 | C35: 42200 | D35: 43100 | E35: 45200 | F35: 48900 | G35: 50500 | H35: 53000 | I35: 62100 | J35: 67900 | K35: 79400 | L35: 89000 | M35: 104400 | N35: 124900 | O35: 132000 | P35: 142900 | Q35: 158500 | R35: 167100 | S35: 177300 | T35: 188100
A36: 31 | B36: 43100 | C36: 43500 | D36: 44400 | E36: 46600 | F36: 50400 | G36: 52000 | H36: 54600 | I36: 64000 | J36: 69900 | K36: 81800 | L36: 91700 | M36: 107500 | N36: 128600 | O36: 136000 | P36: 147200 | Q36: 163300 | R36: 172100 | S36: 182600 | T36: 193700
A37: 32 | B37: 44400 | C37: 44800 | D37: 45700 | E37: 48000 | F37: 51900 | G37: 53600 | H37: 56200 | I37: 65900 | J37: 72000 | K37: 84300 | L37: 94500 | M37: 110700 | N37: 132500 | O37: 140100 | P37: 151600 | Q37: 168200 | R37: 177300 | S37: 188100 | T37: 199500
A38: 33 | B38: 45700 | C38: 46100 | D38: 47100 | E38: 49400 | F38: 53500 | G38: 55200 | H38: 57900 | I38: 67900 | J38: 74200 | K38: 86800 | L38: 97300 | M38: 114000 | N38: 136500 | O38: 144300 | P38: 156100 | Q38: 173200 | R38: 182600 | S38: 193700
A39: 34 | B39: 47100 | C39: 47500 | D39: 48500 | E39: 50900 | F39: 55100 | G39: 56900 | H39: 59600 | I39: 69900 | J39: 76400 | K39: 89400 | L39: 100200 | M39: 117400 | N39: 140600 | O39: 148600 | P39: 160800 | Q39: 178400 | R39: 188100 | S39: 199500
A40: 35 | B40: 48500 | C40: 48900 | D40: 50000 | E40: 52400 | F40: 56800 | G40: 58600 | H40: 61400 | I40: 72000 | J40: 78700 | K40: 92100 | L40: 103200 | M40: 120900 | N40: 144800 | O40: 153100 | P40: 165600 | Q40: 183800 | R40: 193700
A41: 36 | B41: 50000 | C41: 50400 | D41: 51500 | E41: 54000 | F41: 58500 | G41: 60400 | H41: 63200 | I41: 74200 | J41: 81100 | K41: 94900 | L41: 106300 | M41: 124500 | N41: 149100 | O41: 157700 | P41: 170600 | Q41: 189300 | R41: 199500
A42: 37 | B42: 51500 | C42: 51900 | D42: 53000 | E42: 55600 | F42: 60300 | G42: 62200 | H42: 65100 | I42: 76400 | J42: 83500 | K42: 97700 | L42: 109500 | M42: 128200 | N42: 153600 | O42: 162400 | P42: 175700 | Q42: 195000
A43: 38 | B43: 53000 | C43: 53500 | D43: 54600 | E43: 57300 | F43: 62100 | G43: 64100 | H43: 67100 | I43: 78700 | J43: 86000 | K43: 100600 | L43: 112800 | M43: 132000 | N43: 158200 | O43: 167300 | P43: 181000
A44: 39 | B44: 54600 | C44: 55100 | D44: 56200 | E44: 59000 | F44: 64000 | G44: 66000 | H44: 69100 | I44: 81100 | J44: 88600 | K44: 103600 | L44: 116200 | M44: 136000 | N44: 162900 | O44: 172300 | P44: 186400
A45: 40 | B45: 56200 | C45: 56800 | D45: 57900 | E45: 60800 | F45: 65900 | G45: 68000 | H45: 71200 | I45: 83500 | J45: 91300 | K45: 106700 | L45: 119700 | M45: 140100 | N45: 167800 | O45: 177500 | P45: 192000
B58: L_1 | C58: L_2 | D58: L_3 | E58: L_4 | F58: L_5 | G58: L_6 | H58: L_7 | I58: L_8 | J58: L_9 | K58: L_10 | L58: L_11 | M58: L_12 | N58: L_13 | O58: L_14 | P58: L_15 | Q58: L_16 | R58: L_17 | S58: L_18 | T58: L_19 | U58: L_20 | V58: L_21 | W58: L_22 | X58: L_23 | Y58: L_24
B59: 17700 | C59: 17900 | D59: 18200 | E59: 19200 | F59: 20800 | G59: 21500 | H59: 22400 | I59: 26300 | J59: 28700 | K59: 33800 | L59: 37800 | M59: 44300 | N59: 53100 | O59: 56100 | P59: 60700 | Q59: 67300 | R59: 71000 | S59: 75300 | T59: 79900 | U59: 88900 | V59: 123100 | W59: 129700 | X59: 145800 | Y59: 148800
B60: 56200 | C60: 56800 | D60: 57900 | E60: 60800 | F60: 65900 | G60: 68000 | H60: 71200 | I60: 83500 | J60: 91300 | K60: 106700 | L60: 119700 | M60: 140100 | N60: 167800 | O60: 177500 | P60: 192000 | Q60: 195000 | R60: 199500 | S60: 199500 | T60: 199500 | U60: 203500 | V60: 203500 | W60: 208100 | X60: 214100 | Y60: 218600
